Body Name,Body,Organisational unit,Service division,Expenditure category,Date,Transacton number,Net amount,Supplier,Narrative
Tendring DC,http://statistics.data.gov.uk/id/local-authority-district/22UN,Corporate Services,1950 - Transport,3062 - Running Costs - Petrol,02/07/2013,2109451-1,120.84,2101825 - Allstar Business Solutions Ltd,Courier Fuel
Tendring DC,http://statistics.data.gov.uk/id/local-authority-district/22UN,Corporate Services,6460 - Career Track,1700 - Training - Courses,23/07/2013,2110088-1,95,REDACTED PERSONAL DATA,REDACTED PERSONAL DATA
Tendring DC,http://statistics.data.gov.uk/id/local-authority-district/22UN,Corporate Services,6460 - Career Track,1700 - Training - Courses,23/07/2013,2110089-1,95,REDACTED PERSONAL DATA,REDACTED PERSONAL DATA
Tendring DC,http://statistics.data.gov.uk/id/local-authority-district/22UN,Corporate Services,6460 - Career Track,1700 - Training - Courses,23/07/2013,2110090-1,95,REDACTED PERSONAL DATA,REDACTED PERSONAL DATA
Tendring DC,http://statistics.data.gov.uk/id/local-authority-district/22UN,Corporate Services,6560 - Other Democratic Costs,4110 - General Provisions,23/07/2013,2110115-1,84.82,2112129 - Autobar Vending Services Ltd,Coffee & Filters
Tendring DC,http://statistics.data.gov.uk/id/local-authority-district/22UN,Corporate Services,6560 - Other Democratic Costs,4110 - General Provisions,23/07/2013,2110115-2,1.02,2112129 - Autobar Vending Services Ltd,Coffee & Filters
Tendring DC,http://statistics.data.gov.uk/id/local-authority-district/22UN,Corporate Services,1320 - Print Unit Service Unit,4302 - External Print Unit Expenses,02/07/2013,7700399-1,329.5,2100069 - Autoprint,JOBS 159-147-160
Tendring DC,http://statistics.data.gov.uk/id/local-authority-district/22UN,Corporate Services,6580 - Member Support Cost,4300 - Printing & Stationery,09/07/2013,1053433-1,5.97,2100111 - Banner Business Supplies Ltd,STATIONERY
Tendring DC,http://statistics.data.gov.uk/id/local-authority-district/22UN,Corporate Services,1100 - Head of Corporate Services and Admin Service Unit,4300 - Printing & Stationery,09/07/2013,1053433-2,54.72,2100111 - Banner Business Supplies Ltd,STATIONERY
Tendring DC,http://statistics.data.gov.uk/id/local-authority-district/22UN,Corporate Services,1100 - Head of Corporate Services and Admin Service Unit,4300 - Printing & Stationery,30/07/2013,1053778-1,0.76,2100111 - Banner Business Supplies Ltd,MISC STATIONERY PART ORDER
Tendring DC,http://statistics.data.gov.uk/id/local-authority-district/22UN,Corporate Services,1100 - Head of Corporate Services and Admin Service Unit,4300 - Printing & Stationery,30/07/2013,1053779-1,21.79,2100111 - Banner Business Supplies Ltd,STATIONERY
Tendring DC,http://statistics.data.gov.uk/id/local-authority-district/22UN,Corporate Services,6580 - Member Support Cost,4300 - Printing & Stationery,30/07/2013,1053779-2,61.84,2100111 - Banner Business Supplies Ltd,STATIONERY
Tendring DC,http://statistics.data.gov.uk/id/local-authority-district/22UN,Corporate Services,6580 - Member Support Cost,4300 - Printing & Stationery,30/07/2013,1053780-1,30.92,2100111 - Banner Business Supplies Ltd,ENVELOPES
Tendring DC,http://statistics.data.gov.uk/id/local-authority-district/22UN,Corporate Services,1100 - Head of Corporate Services and Admin Service Unit,4300 - Printing & Stationery,30/07/2013,1053814-1,30.64,2100111 - Banner Business Supplies Ltd,STORAGE BOXES
Tendring DC,http://statistics.data.gov.uk/id/local-authority-district/22UN,Corporate Services,1100 - Head of Corporate Services and Admin Service Unit,4300 - Printing & Stationery,30/07/2013,1053815-1,51.48,2100111 - Banner Business Supplies Ltd,BANNER
Tendring DC,http://statistics.data.gov.uk/id/local-authority-district/22UN,Corporate Services,1100 - Head of Corporate Services and Admin Service Unit,4300 - Printing & Stationery,02/07/2013,2109445-1,6.81,2100111 - Banner Business Supplies Ltd,Misc Stationery
Tendring DC,http://statistics.data.gov.uk/id/local-authority-district/22UN,Corporate Services,6580 - Member Support Cost,4300 - Printing & Stationery,02/07/2013,2109445-2,43.88,2100111 - Banner Business Supplies Ltd,Misc Stationery
Tendring DC,http://statistics.data.gov.uk/id/local-authority-district/22UN,Corporate Services,1100 - Head of Corporate Services and Admin Service Unit,4300 - Printing & Stationery,02/07/2013,2109446-1,52.58,2100111 - Banner Business Supplies Ltd,Stationery
Tendring DC,http://statistics.data.gov.uk/id/local-authority-district/22UN,Corporate Services,1100 - Head of Corporate Services and Admin Service Unit,4300 - Printing & Stationery,09/07/2013,2109558-1,73.8,REDACTED PERSONAL DATA,REDACTED PERSONAL DATA
Tendring DC,http://statistics.data.gov.uk/id/local-authority-district/22UN,Corporate Services,7025 - CDRP Support,4900 - Grants,09/07/2013,2109587-1,24.12,2100111 - Banner Business Supplies Ltd,Flip Chart & Pens - Event
Tendring DC,http://statistics.data.gov.uk/id/local-authority-district/22UN,Corporate Services,6580 - Member Support Cost,4300 - Printing & Stationery,16/07/2013,2109665-1,21.94,2100111 - Banner Business Supplies Ltd,Misc Stationery
Tendring DC,http://statistics.data.gov.uk/id/local-authority-district/22UN,Corporate Services,6560 - Other Democratic Costs,4110 - General Provisions,16/07/2013,2109665-2,7.22,2100111 - Banner Business Supplies Ltd,Misc Stationery
Tendring DC,http://statistics.data.gov.uk/id/local-authority-district/22UN,Corporate Services,1100 - Head of Corporate Services and Admin Service Unit,4300 - Printing & Stationery,16/07/2013,2109665-3,19.81,2100111 - Banner Business Supplies Ltd,Misc Stationery
Tendring DC,http://statistics.data.gov.uk/id/local-authority-district/22UN,Corporate Services,1100 - Head of Corporate Services and Admin Service Unit,4300 - Printing & Stationery,23/07/2013,2110121-1,27.67,2100111 - Banner Business Supplies Ltd,Stationery
Tendring DC,http://statistics.data.gov.uk/id/local-authority-district/22UN,Corporate Services,6580 - Member Support Cost,4300 - Printing & Stationery,23/07/2013,2110121-2,12.1,2100111 - Banner Business Supplies Ltd,Stationery
Tendring DC,http://statistics.data.gov.uk/id/local-authority-district/22UN,Corporate Services,6980 - Essex Family Needs Project,4469 - Other Non - Legal Professional Services,16/07/2013,2109714-1,20000,REDACTED PERSONAL DATA,REDACTED PERSONAL DATA
Tendring DC,http://statistics.data.gov.uk/id/local-authority-district/22UN,Corporate Services,7040 - Civic Ceremonial Expenses,4100 - Contract Catering,02/07/2013,1053312-1,79.9,2100114 - Bespoke Caterers,
Tendring DC,http://statistics.data.gov.uk/id/local-authority-district/22UN,Corporate Services,1760 - IT Direct Service Costs,4715 - Data Communication Charge,02/07/2013,2109438-1,45.36,2100168 - British Telecommunications plc,
Tendring DC,http://statistics.data.gov.uk/id/local-authority-district/22UN,Corporate Services,1760 - IT Direct Service Costs,4715 - Data Communication Charge,02/07/2013,2109440-1,36.36,2100168 - British Telecommunications plc,
Tendring DC,http://statistics.data.gov.uk/id/local-authority-district/22UN,Corporate Services,1760 - IT Direct Service Costs,4715 - Data Communication Charge,02/07/2013,2109441-1,36.36,2100168 - British Telecommunications plc,
Tendring DC,http://statistics.data.gov.uk/id/local-authority-district/22UN,Corporate Services,1760 - IT Direct Service Costs,4715 - Data Communication Charge,09/07/2013,2109595-1,46.87,2100168 - British Telecommunications plc,33770166 June 13
Tendring DC,http://statistics.data.gov.uk/id/local-authority-district/22UN,Corporate Services,1760 - IT Direct Service Costs,4715 - Data Communication Charge,09/07/2013,2109596-1,46.87,2106306 - British Telecommunications plc,36988418 June 13
Tendring DC,http://statistics.data.gov.uk/id/local-authority-district/22UN,Corporate Services,1760 - IT Direct Service Costs,4715 - Data Communication Charge,09/07/2013,2109597-1,51.55,2100168 - British Telecommunications plc,30297234 June 13
Tendring DC,http://statistics.data.gov.uk/id/local-authority-district/22UN,Corporate Services,1760 - IT Direct Service Costs,4715 - Data Communication Charge,09/07/2013,2109598-1,210,2100168 - British Telecommunications plc,36259059 June 13
Tendring DC,http://statistics.data.gov.uk/id/local-authority-district/22UN,Corporate Services,1760 - IT Direct Service Costs,4715 - Data Communication Charge,16/07/2013,2109882-1,91.5,2100168 - British Telecommunications plc,38923144 Jul 13
Tendring DC,http://statistics.data.gov.uk/id/local-authority-district/22UN,Corporate Services,1320 - Print Unit Service Unit,4080 - Materials & Consumables,30/07/2013,1053858-1,169.42,2100291 - Canon (UK) Ltd,PAPER SRA3
Tendring DC,http://statistics.data.gov.uk/id/local-authority-district/22UN,Corporate Services,9900 - General Fund Balance Sheet,B879 - Charges made by Merchant Acquirer,03/07/2013,1053541-1,21.6,2100202 - Capita Business Services Ltd,CAPITA JUNE 2013
Tendring DC,http://statistics.data.gov.uk/id/local-authority-district/22UN,Corporate Services,9900 - General Fund Balance Sheet,B879 - Charges made by Merchant Acquirer,03/07/2013,1053541-2,45.26,2100202 - Capita Business Services Ltd,CAPITA JUNE 2013
Tendring DC,http://statistics.data.gov.uk/id/local-authority-district/22UN,Corporate Services,9900 - General Fund Balance Sheet,B879 - Charges made by Merchant Acquirer,03/07/2013,1053541-3,206.46,2100202 - Capita Business Services Ltd,CAPITA JUNE 2013
Tendring DC,http://statistics.data.gov.uk/id/local-authority-district/22UN,Corporate Services,9900 - General Fund Balance Sheet,B879 - Charges made by Merchant Acquirer,03/07/2013,1053541-4,345.64,2100202 - Capita Business Services Ltd,CAPITA JUNE 2013
Tendring DC,http://statistics.data.gov.uk/id/local-authority-district/22UN,Corporate Services,9900 - General Fund Balance Sheet,B879 - Charges made by Merchant Acquirer,03/07/2013,1053541-5,315.72,2100202 - Capita Business Services Ltd,CAPITA JUNE 2013
Tendring DC,http://statistics.data.gov.uk/id/local-authority-district/22UN,Corporate Services,9900 - General Fund Balance Sheet,B879 - Charges made by Merchant Acquirer,03/07/2013,1053541-6,256.1,2100202 - Capita Business Services Ltd,CAPITA JUNE 2013
Tendring DC,http://statistics.data.gov.uk/id/local-authority-district/22UN,Corporate Services,9900 - General Fund Balance Sheet,B879 - Charges made by Merchant Acquirer,03/07/2013,1053541-7,331.56,2100202 - Capita Business Services Ltd,CAPITA JUNE 2013
Tendring DC,http://statistics.data.gov.uk/id/local-authority-district/22UN,Corporate Services,9900 - General Fund Balance Sheet,B879 - Charges made by Merchant Acquirer,03/07/2013,1053541-8,254.76,2100202 - Capita Business Services Ltd,CAPITA JUNE 2013
Tendring DC,http://statistics.data.gov.uk/id/local-authority-district/22UN,Corporate Services,9900 - General Fund Balance Sheet,B879 - Charges made by Merchant Acquirer,03/07/2013,1053541-9,0.25,2100202 - Capita Business Services Ltd,CAPITA JUNE 2013
Tendring DC,http://statistics.data.gov.uk/id/local-authority-district/22UN,Corporate Services,7025 - CDRP Support,4900 - Grants,30/07/2013,1053887-1,600,2113221 - Chameleons Web Theatre Company,CHAMELEONS WEB THEATRE GROUP
Tendring DC,http://statistics.data.gov.uk/id/local-authority-district/22UN,Corporate Services,1200 - Exchequer Service Unit,4753 - Computer - Application Software,30/07/2013,1053897-1,1786.32,2104014 - Cheque Write (UK) Ltd,PRINTER SUPPORT 13/14
Tendring DC,http://statistics.data.gov.uk/id/local-authority-district/22UN,Corporate Services,1200 - Exchequer Service Unit,4753 - Computer - Application Software,09/07/2013,2109641-1,369,REDACTED PERSONAL DATA,REDACTED PERSONAL DATA
Tendring DC,http://statistics.data.gov.uk/id/local-authority-district/22UN,Corporate Services,1815 - Personnel and Human Resources Issues,1708 - Training - New Programme Development Courses,09/07/2013,2109554-1,18.5,REDACTED PERSONAL DATA,REDACTED PERSONAL DATA
Tendring DC,http://statistics.data.gov.uk/id/local-authority-district/22UN,Corporate Services,6160 - Princes Theatre,4000 - Furniture,01/07/2013,1053539-1,89.48,2100269 - Co operative Bank plc,KLN VISA JLY 13
Tendring DC,http://statistics.data.gov.uk/id/local-authority-district/22UN,Corporate Services,6620 - Corporate Management - General,5190 - Bank Commission Charges,01/07/2013,1053539-2,2,2100269 - Co operative Bank plc,KLN VISA JLY 13
Tendring DC,http://statistics.data.gov.uk/id/local-authority-district/22UN,Corporate Services,6640 - Treasury Management,5192 - Brokerage,01/07/2013,1053540-1,77,REDACTED PERSONAL DATA,REDACTED PERSONAL DATA
Tendring DC,http://statistics.data.gov.uk/id/local-authority-district/22UN,Corporate Services,6620 - Corporate Management - General,5190 - Bank Commission Charges,01/07/2013,1053540-2,259,REDACTED PERSONAL DATA,REDACTED PERSONAL DATA
Tendring DC,http://statistics.data.gov.uk/id/local-authority-district/22UN,Corporate Services,"1580 - Benefits, Revenues and Customer Contact SU",5186 - Paypoint/post office charges,01/07/2013,1053540-3,1190.23,REDACTED PERSONAL DATA,REDACTED PERSONAL DATA
Tendring DC,http://statistics.data.gov.uk/id/local-authority-district/22UN,Corporate Services,"1580 - Benefits, Revenues and Customer Contact SU",5186 - Paypoint/post office charges,01/07/2013,1053540-4,2679.81,REDACTED PERSONAL DATA,REDACTED PERSONAL DATA
Tendring DC,http://statistics.data.gov.uk/id/local-authority-district/22UN,Corporate Services,"1580 - Benefits, Revenues and Customer Contact SU",5190 - Bank Commission Charges,12/07/2013,2109681-1,1974.79,2100269 - Co operative Bank plc,Quarterly Commission and Interest
Tendring DC,http://statistics.data.gov.uk/id/local-authority-district/22UN,Corporate Services,6740 - Careline,5190 - Bank Commission Charges,12/07/2013,2109681-2,154.8,2100269 - Co operative Bank plc,Quarterly Commission and Interest
Tendring DC,http://statistics.data.gov.uk/id/local-authority-district/22UN,Corporate Services,6620 - Corporate Management - General,5190 - Bank Commission Charges,12/07/2013,2109681-3,3803.07,2100269 - Co operative Bank plc,Quarterly Commission and Interest
Tendring DC,http://statistics.data.gov.uk/id/local-authority-district/22UN,Corporate Services,8901 - Interest Payable and similar charges,7570 - Interest Payments,12/07/2013,2109681-4,57.03,2100269 - Co operative Bank plc,Quarterly Commission and Interest
Tendring DC,http://statistics.data.gov.uk/id/local-authority-district/22UN,Corporate Services,5260 - HRA - Rent Collection And Accounting,5190 - Bank Commission Charges,12/07/2013,2109681-5,96.77,2100269 - Co operative Bank plc,Quarterly Commission and Interest
Tendring DC,http://statistics.data.gov.uk/id/local-authority-district/22UN,Corporate Services,"1580 - Benefits, Revenues and Customer Contact SU",5190 - Bank Commission Charges,12/07/2013,2109681-6,850.75,2100269 - Co operative Bank plc,Quarterly Commission and Interest
Tendring DC,http://statistics.data.gov.uk/id/local-authority-district/22UN,Corporate Services,5880 - Management Of Sport & Leisure Facilities,5190 - Bank Commission Charges,12/07/2013,2109681-7,189.26,2100269 - Co operative Bank plc,Quarterly Commission and Interest
Tendring DC,http://statistics.data.gov.uk/id/local-authority-district/22UN,Corporate Services,6640 - Treasury Management,5192 - Brokerage,12/07/2013,2109681-8,100,2100269 - Co operative Bank plc,Quarterly Commission and Interest
Tendring DC,http://statistics.data.gov.uk/id/local-authority-district/22UN,Corporate Services,1320 - Print Unit Service Unit,4400 - Maintenance Under Service Agreements,02/07/2013,1053347-1,60,2100353 - Consensus Guillotine Engineering Ltd,GUILOTINE BLADE S/M
Tendring DC,http://statistics.data.gov.uk/id/local-authority-district/22UN,Corporate Services,1320 - Print Unit Service Unit,4400 - Maintenance Under Service Agreements,02/07/2013,2109422-1,195,2100353 - Consensus Guillotine Engineering Ltd,Guillotine Safety Check
Tendring DC,http://statistics.data.gov.uk/id/local-authority-district/22UN,Corporate Services,6460 - Career Track,4688 - Career Track Exam Fees,30/07/2013,1053794-1,22,REDACTED PERSONAL DATA,REDACTED PERSONAL DATA
Tendring DC,http://statistics.data.gov.uk/id/local-authority-district/22UN,Corporate Services,6460 - Career Track,4688 - Career Track Exam Fees,09/07/2013,2109553-1,22,REDACTED PERSONAL DATA,REDACTED PERSONAL DATA
Tendring DC,http://statistics.data.gov.uk/id/local-authority-district/22UN,Corporate Services,9890 - Collection Fund - NNDR,R125 - NNDR - Payments to DCLG,09/07/2013,2109644-1,-1270299,2100432 - DCLG,NNDR and RSG
Tendring DC,http://statistics.data.gov.uk/id/local-authority-district/22UN,Corporate Services,8984 - Business Rates Tariff and Levy,6990 - Business Rate Tariff and Levy,09/07/2013,2109644-2,-534552,2100432 - DCLG,NNDR and RSG
Tendring DC,http://statistics.data.gov.uk/id/local-authority-district/22UN,Corporate Services,9890 - Collection Fund - NNDR,R135 - NNDR - Transitional Relief Settlement,09/07/2013,2109644-3,12499,2100432 - DCLG,NNDR and RSG
Tendring DC,http://statistics.data.gov.uk/id/local-authority-district/22UN,Corporate Services,1760 - IT Direct Service Costs,4751 - Hardware & Service Maintenance,16/07/2013,2109883-1,1372.8,2102545 - Dell Corporation Ltd,
Tendring DC,http://statistics.data.gov.uk/id/local-authority-district/22UN,Corporate Services,1090 - Chief Executive and Support Service Unit,4400 - Maintenance Under Service Agreements,16/07/2013,2109869-1,15.44,2102826 - Eden Springs UK Ltd,
Tendring DC,http://statistics.data.gov.uk/id/local-authority-district/22UN,Corporate Services,9880 - Collection Fund - Council Tax,R100 - Precept - ECC,15/07/2013,1053548-1,4616471,2100409 - Essex County Council,PRECEPT
Tendring DC,http://statistics.data.gov.uk/id/local-authority-district/22UN,Corporate Services,9880 - Collection Fund - Council Tax,R110 - Council Tax Balance - ECC,15/07/2013,1053548-2,92582,2100409 - Essex County Council,PRECEPT
Tendring DC,http://statistics.data.gov.uk/id/local-authority-district/22UN,Corporate Services,9890 - Collection Fund - NNDR,R127 - NNDR - Essex County Retention,15/07/2013,1053548-3,217766,2100409 - Essex County Council,PRECEPT
Tendring DC,http://statistics.data.gov.uk/id/local-authority-district/22UN,Corporate Services,6683 - Second Homes Discount Scheme,8109 - Second Homes Discount Scheme - ECC Contribution,15/07/2013,1053548-4,-37770,2100409 - Essex County Council,PRECEPT
Tendring DC,http://statistics.data.gov.uk/id/local-authority-district/22UN,Corporate Services,8971 - MIRS - Contributions Payable to the Pension Scheme,1816 - Superannuation Deficiency Contribution,09/07/2013,7009414-3,137750,2100419 - Essex County Council,Pension 00013
Tendring DC,http://statistics.data.gov.uk/id/local-authority-district/22UN,Corporate Services,8971 - MIRS - Contributions Payable to the Pension Scheme,1810 - Superannuation - Financial Strain/Added Years,09/07/2013,7009414-4,17319.33,2100419 - Essex County Council,Pension 00013
Tendring DC,http://statistics.data.gov.uk/id/local-authority-district/22UN,Corporate Services,8971 - MIRS - Contributions Payable to the Pension Scheme,1822 - Superannuation - Port Health Pensions etc.,09/07/2013,7009415-2,800.05,2100419 - Essex County Council,Port Health Authority
Tendring DC,http://statistics.data.gov.uk/id/local-authority-district/22UN,Corporate Services,9880 - Collection Fund - Council Tax,R101 - Precept - Essex Fire,15/07/2013,1053550-1,282150,2100469 - Essex Fire Authority,PRECEPT
Tendring DC,http://statistics.data.gov.uk/id/local-authority-district/22UN,Corporate Services,9880 - Collection Fund - Council Tax,R111 - Council Tax Balance - Essex Fire,15/07/2013,1053550-2,5658,2100469 - Essex Fire Authority,PRECEPT
Tendring DC,http://statistics.data.gov.uk/id/local-authority-district/22UN,Corporate Services,9890 - Collection Fund - NNDR,R128 - NNDR - Fire Retention,15/07/2013,1053550-3,24196,2100469 - Essex Fire Authority,PRECEPT
Tendring DC,http://statistics.data.gov.uk/id/local-authority-district/22UN,Corporate Services,6420 - Cost Of Council Tax Collection,8124 - Contribution - Collection Investment/Hardship Admin.,15/07/2013,1053550-4,-2106,2100469 - Essex Fire Authority,PRECEPT
Tendring DC,http://statistics.data.gov.uk/id/local-authority-district/22UN,Corporate Services,9880 - Collection Fund - Council Tax,R102 - Precept - Essex Police,15/07/2013,1053549-1,601001,2100500 - Essex Police Authority,PRECEPT
Tendring DC,http://statistics.data.gov.uk/id/local-authority-district/22UN,Corporate Services,9880 - Collection Fund - Council Tax,R112 - Council Tax Balance - Essex Police,15/07/2013,1053549-2,11647,2100500 - Essex Police Authority,PRECEPT
Tendring DC,http://statistics.data.gov.uk/id/local-authority-district/22UN,Corporate Services,1660 - Other Apportionable Overheads,4609 - Child Care Vouchers Management Fee,09/07/2013,2109642-2,71.18,REDACTED PERSONAL DATA,REDACTED PERSONAL DATA
Tendring DC,http://statistics.data.gov.uk/id/local-authority-district/22UN,Corporate Services,1815 - Personnel and Human Resources Issues,1610 - Counselling,09/07/2013,1053430-1,560,2100517 - Geraldine Craig,
Tendring DC,http://statistics.data.gov.uk/id/local-authority-district/22UN,Corporate Services,1180 - Benefit Fraud Investigation Service Unit,4459 - External Legal Advice,30/07/2013,1053863-1,2677.9,2100672 - Harris Cuffaro & Nichols Solicitors,SOLICITOR COSTS
Tendring DC,http://statistics.data.gov.uk/id/local-authority-district/22UN,Corporate Services,1180 - Benefit Fraud Investigation Service Unit,4459 - External Legal Advice,30/07/2013,1053863-2,11.5,2100672 - Harris Cuffaro & Nichols Solicitors,SOLICITOR COSTS
Tendring DC,http://statistics.data.gov.uk/id/local-authority-district/22UN,Corporate Services,1180 - Benefit Fraud Investigation Service Unit,4459 - External Legal Advice,02/07/2013,2109480-1,1274,2100672 - Harris Cuffaro & Nichols Solicitors,Solicitor Fees
Tendring DC,http://statistics.data.gov.uk/id/local-authority-district/22UN,Corporate Services,6980 - Essex Family Needs Project,5500 - Miscellaneous Expenses,23/07/2013,2109989-1,12,2100604 - Harwich Taxis,Harwich Taxis
Tendring DC,http://statistics.data.gov.uk/id/local-authority-district/22UN,Corporate Services,1930 - Asset Management Service Unit,1350 - Agency Staff,16/07/2013,2109929-1,1789.75,2112289 - Hays Specialist Recruitment Ltd,Asset Surveyor
Tendring DC,http://statistics.data.gov.uk/id/local-authority-district/22UN,Corporate Services,6560 - Other Democratic Costs,4670 - Hire of Premises,02/07/2013,1053359-1,270,2112510 - High House Enterprises Ltd,SE LEP MEETING 22/5/13
Tendring DC,http://statistics.data.gov.uk/id/local-authority-district/22UN,Corporate Services,1300 - Legal Services Service Unit,4469 - Other Non - Legal Professional Services,23/07/2013,1053700-1,465,2100661 - HMCTS,
Tendring DC,http://statistics.data.gov.uk/id/local-authority-district/22UN,Corporate Services,9900 - General Fund Balance Sheet,B494 - Commissioners Of I.R. - Car Leasing NI,02/07/2013,1053363-1,12.83,2104845 - HMRC,CLASS 1A 2012/13
Tendring DC,http://statistics.data.gov.uk/id/local-authority-district/22UN,Corporate Services,7040 - Civic Ceremonial Expenses,4300 - Printing & Stationery,09/07/2013,1053473-1,157.5,2106604 - House of Logo's Ltd,HOUSE OF LOGOS-PENS
Tendring DC,http://statistics.data.gov.uk/id/local-authority-district/22UN,Corporate Services,1100 - Head of Corporate Services and Admin Service Unit,4300 - Printing & Stationery,02/07/2013,2109436-1,9.29,2100782 - Insight Direct (uk) Limited,Mouse
Tendring DC,http://statistics.data.gov.uk/id/local-authority-district/22UN,Corporate Services,1760 - IT Direct Service Costs,4751 - Hardware & Service Maintenance,09/07/2013,2109590-1,24.62,2100782 - Insight Direct (uk) Limited,
Tendring DC,http://statistics.data.gov.uk/id/local-authority-district/22UN,Corporate Services,1760 - IT Direct Service Costs,4751 - Hardware & Service Maintenance,16/07/2013,2109884-1,73.97,2100782 - Insight Direct (uk) Limited,
Tendring DC,http://statistics.data.gov.uk/id/local-authority-district/22UN,Corporate Services,1210 - Facilities Management Service Unit,3302 - Car Allowances - Officers,09/07/2013,1053493-1,50,REDACTED PERSONAL DATA,REDACTED PERSONAL DATA
Tendring DC,http://statistics.data.gov.uk/id/local-authority-district/22UN,Corporate Services,1210 - Facilities Management Service Unit,3302 - Car Allowances - Officers,30/07/2013,1053715-1,50,REDACTED PERSONAL DATA,REDACTED PERSONAL DATA
Tendring DC,http://statistics.data.gov.uk/id/local-authority-district/22UN,Corporate Services,6640 - Treasury Management,5192 - Brokerage,12/07/2013,2109678-2,92.5,2107040 - King & Shaxson Limited,Fees re Treasury Management
Tendring DC,http://statistics.data.gov.uk/id/local-authority-district/22UN,Corporate Services,8915 - Interest & Investment Income,9600 - External Investment Interest Receivable,12/07/2013,2109678-3,-759.45,2107040 - King & Shaxson Limited,Fees re Treasury Management
Tendring DC,http://statistics.data.gov.uk/id/local-authority-district/22UN,Corporate Services,1320 - Print Unit Service Unit,4080 - Materials & Consumables,23/07/2013,1053634-1,168.35,2100864 - Leston Stationery Ltd,PAPER & CARD
Tendring DC,http://statistics.data.gov.uk/id/local-authority-district/22UN,Corporate Services,1320 - Print Unit Service Unit,4080 - Materials & Consumables,30/07/2013,1053859-1,179.8,2100864 - Leston Stationery Ltd,PAPER
Tendring DC,http://statistics.data.gov.uk/id/local-authority-district/22UN,Corporate Services,1320 - Print Unit Service Unit,4080 - Materials & Consumables,30/07/2013,1053860-1,34.12,2100864 - Leston Stationery Ltd,CARD
Tendring DC,http://statistics.data.gov.uk/id/local-authority-district/22UN,Corporate Services,1320 - Print Unit Service Unit,4080 - Materials & Consumables,09/07/2013,2109589-1,22,2100864 - Leston Stationery Ltd,Labels
Tendring DC,http://statistics.data.gov.uk/id/local-authority-district/22UN,Corporate Services,1815 - Personnel and Human Resources Issues,1708 - Training - New Programme Development Courses,16/07/2013,2109867-1,245,2113179 - Management Learning Resources Ltd,MLR - Lunch & Learn
Tendring DC,http://statistics.data.gov.uk/id/local-authority-district/22UN,Corporate Services,1815 - Personnel and Human Resources Issues,1708 - Training - New Programme Development Courses,16/07/2013,2109867-2,25,2113179 - Management Learning Resources Ltd,MLR - Lunch & Learn
Tendring DC,http://statistics.data.gov.uk/id/local-authority-district/22UN,Corporate Services,1815 - Personnel and Human Resources Issues,1708 - Training - New Programme Development Courses,16/07/2013,2109867-3,95,2113179 - Management Learning Resources Ltd,MLR - Lunch & Learn
Tendring DC,http://statistics.data.gov.uk/id/local-authority-district/22UN,Corporate Services,1300 - Legal Services Service Unit,4460 - Legal & Professional Expenses,02/07/2013,1053309-1,402.5,2113100 - Merrill Legal Solutions,
Tendring DC,http://statistics.data.gov.uk/id/local-authority-district/22UN,Corporate Services,1300 - Legal Services Service Unit,4503 - Counsels Fees,16/07/2013,2109865-1,4930,2110726 - Mrs Harriet Townsend,TDC v Kinsley
Tendring DC,http://statistics.data.gov.uk/id/local-authority-district/22UN,Corporate Services,7100 - Community Health/Safety,1700 - Training - Courses,23/07/2013,2109987-1,299,2111906 - NCSN Trading Ltd,NCSN - NM - Conf 2013
Tendring DC,http://statistics.data.gov.uk/id/local-authority-district/22UN,Corporate Services,8025 - Car Parks - Off St,4469 - Other Non - Legal Professional Services,23/07/2013,2110097-1,3778,REDACTED PERSONAL DATA,REDACTED PERSONAL DATA
Tendring DC,http://statistics.data.gov.uk/id/local-authority-district/22UN,Corporate Services,6460 - Career Track,4688 - Career Track Exam Fees,30/07/2013,1053795-1,78.4,REDACTED PERSONAL DATA,REDACTED PERSONAL DATA
Tendring DC,http://statistics.data.gov.uk/id/local-authority-district/22UN,Corporate Services,6460 - Career Track,4688 - Career Track Exam Fees,30/07/2013,1053796-1,78.4,REDACTED PERSONAL DATA,REDACTED PERSONAL DATA
Tendring DC,http://statistics.data.gov.uk/id/local-authority-district/22UN,Corporate Services,6460 - Career Track,4688 - Career Track Exam Fees,16/07/2013,2109868-1,78.4,2101071 - OCR,OCR Registrations
Tendring DC,http://statistics.data.gov.uk/id/local-authority-district/22UN,Corporate Services,1320 - Print Unit Service Unit,4302 - External Print Unit Expenses,23/07/2013,1053635-1,20,2111844 - Optimumprint,JOB 217
Tendring DC,http://statistics.data.gov.uk/id/local-authority-district/22UN,Corporate Services,1320 - Print Unit Service Unit,4302 - External Print Unit Expenses,23/07/2013,1053636-1,325,2111844 - Optimumprint,JOB 228
Tendring DC,http://statistics.data.gov.uk/id/local-authority-district/22UN,Corporate Services,1320 - Print Unit Service Unit,4302 - External Print Unit Expenses,30/07/2013,1053861-1,1250,2111844 - Optimumprint,JOB 206
Tendring DC,http://statistics.data.gov.uk/id/local-authority-district/22UN,Corporate Services,1320 - Print Unit Service Unit,4302 - External Print Unit Expenses,02/07/2013,2109419-1,521,2111844 - Optimumprint,Job 165
Tendring DC,http://statistics.data.gov.uk/id/local-authority-district/22UN,Corporate Services,1320 - Print Unit Service Unit,4302 - External Print Unit Expenses,02/07/2013,2109420-1,20,2111844 - Optimumprint,Job 165
Tendring DC,http://statistics.data.gov.uk/id/local-authority-district/22UN,Corporate Services,1320 - Print Unit Service Unit,4302 - External Print Unit Expenses,02/07/2013,2109421-1,30,2111844 - Optimumprint,Job 177
Tendring DC,http://statistics.data.gov.uk/id/local-authority-district/22UN,Corporate Services,6460 - Career Track,4688 - Career Track Exam Fees,30/07/2013,1053790-1,29,REDACTED PERSONAL DATA,REDACTED PERSONAL DATA
Tendring DC,http://statistics.data.gov.uk/id/local-authority-district/22UN,Corporate Services,6460 - Career Track,4688 - Career Track Exam Fees,30/07/2013,1053791-1,85,2100425 - Pearson,PEARSON REGISTRATION
Tendring DC,http://statistics.data.gov.uk/id/local-authority-district/22UN,Corporate Services,6460 - Career Track,4688 - Career Track Exam Fees,30/07/2013,1053792-1,58,REDACTED PERSONAL DATA,REDACTED PERSONAL DATA
Tendring DC,http://statistics.data.gov.uk/id/local-authority-district/22UN,Corporate Services,6460 - Career Track,4688 - Career Track Exam Fees,30/07/2013,1053793-1,42.5,REDACTED PERSONAL DATA,REDACTED PERSONAL DATA
Tendring DC,http://statistics.data.gov.uk/id/local-authority-district/22UN,Corporate Services,6460 - Career Track,4688 - Career Track Exam Fees,09/07/2013,2109551-1,14.5,2100425 - Pearson,EDI FS ICT L2
Tendring DC,http://statistics.data.gov.uk/id/local-authority-district/22UN,Corporate Services,6460 - Career Track,4688 - Career Track Exam Fees,09/07/2013,2109552-1,14.5,REDACTED PERSONAL DATA,REDACTED PERSONAL DATA
Tendring DC,http://statistics.data.gov.uk/id/local-authority-district/22UN,Corporate Services,6460 - Career Track,4753 - Computer - Application Software,09/07/2013,2109555-1,1830,REDACTED PERSONAL DATA,REDACTED PERSONAL DATA
Tendring DC,http://statistics.data.gov.uk/id/local-authority-district/22UN,Corporate Services,1661 - Other Apportionable Overheads - Corporate Support,4700 - Postage,02/07/2013,1053236-1,5050,2104077 - Pitney Bowes Ltd,RE-CREDIT FRANKING MACHINE CLACTON PBP A/C 10113561
Tendring DC,http://statistics.data.gov.uk/id/local-authority-district/22UN,Corporate Services,1661 - Other Apportionable Overheads - Corporate Support,4700 - Postage,23/07/2013,2110062-1,249.75,2104077 - Pitney Bowes Ltd,Franking Consumables
Tendring DC,http://statistics.data.gov.uk/id/local-authority-district/22UN,Corporate Services,9900 - General Fund Balance Sheet,B146 - Car Loans - Principal - Essential Users,23/07/2013,1053694-1,10500,REDACTED PERSONAL DATA,REDACTED PERSONAL DATA
Tendring DC,http://statistics.data.gov.uk/id/local-authority-district/22UN,Corporate Services,7220 - Election Expenses,4486 - Election Expenses,30/07/2013,1053816-1,839.75,2103246 - Print.uk.com,WEST WARD HARWICH BY ELECTION
Tendring DC,http://statistics.data.gov.uk/id/local-authority-district/22UN,Corporate Services,7220 - Election Expenses,4486 - Election Expenses,30/07/2013,1053817-1,836.1,2103246 - Print.uk.com,WEST CENTRAL HARWICH BY ELECTION
Tendring DC,http://statistics.data.gov.uk/id/local-authority-district/22UN,Corporate Services,7220 - Election Expenses,4486 - Election Expenses,30/07/2013,1053818-1,279.62,2103246 - Print.uk.com,WEST WARD HARWICH BY ELECTION
Tendring DC,http://statistics.data.gov.uk/id/local-authority-district/22UN,Corporate Services,7220 - Election Expenses,4486 - Election Expenses,30/07/2013,1053819-1,252.77,2103246 - Print.uk.com,WEST CENTRAL HARWICH BY ELECTION
Tendring DC,http://statistics.data.gov.uk/id/local-authority-district/22UN,Corporate Services,7220 - Election Expenses,4486 - Election Expenses,30/07/2013,1053820-1,49.35,2103246 - Print.uk.com,LT BROMLEY BY ELECTION
Tendring DC,http://statistics.data.gov.uk/id/local-authority-district/22UN,Corporate Services,7200 - LSP/Community Strategy,4486 - Election Expenses,23/07/2013,2110063-1,194.8,2103246 - Print.uk.com,Lt Bromley by Election
Tendring DC,http://statistics.data.gov.uk/id/local-authority-district/22UN,Corporate Services,7220 - Election Expenses,4486 - Election Expenses,23/07/2013,2110064-1,426.4,2103246 - Print.uk.com,Lt Bromley by Election
Tendring DC,http://statistics.data.gov.uk/id/local-authority-district/22UN,Corporate Services,7220 - Election Expenses,4486 - Election Expenses,23/07/2013,2110065-1,935.76,2103246 - Print.uk.com,Parish of Harwich - West Central
Tendring DC,http://statistics.data.gov.uk/id/local-authority-district/22UN,Corporate Services,7220 - Election Expenses,4486 - Election Expenses,23/07/2013,2110066-1,252.2,2103246 - Print.uk.com,Parish of Harwich - West Central
Tendring DC,http://statistics.data.gov.uk/id/local-authority-district/22UN,Corporate Services,7220 - Election Expenses,4486 - Election Expenses,23/07/2013,2110067-1,251.9,2103246 - Print.uk.com,Harwich West Road
Tendring DC,http://statistics.data.gov.uk/id/local-authority-district/22UN,Corporate Services,7220 - Election Expenses,4486 - Election Expenses,23/07/2013,2110068-1,932.16,2103246 - Print.uk.com,Harwicj West Ward
Tendring DC,http://statistics.data.gov.uk/id/local-authority-district/22UN,Corporate Services,"1580 - Benefits, Revenues and Customer Contact SU",4718 - Fixed Communication Lines,16/07/2013,2109885-1,16.74,2106860 - ProcessFlows UK Ltd,Process Flows May 13
Tendring DC,http://statistics.data.gov.uk/id/local-authority-district/22UN,Corporate Services,"1580 - Benefits, Revenues and Customer Contact SU",4718 - Fixed Communication Lines,16/07/2013,2109886-1,14.04,2106860 - ProcessFlows UK Ltd,Process Flows Jun 13
Tendring DC,http://statistics.data.gov.uk/id/local-authority-district/22UN,Corporate Services,8901 - Interest Payable and similar charges,7570 - Interest Payments,15/07/2013,1053546-2,5779.85,2101162 - Public Works Loan Board,PRINCIPAL AND INTEREST PAYMENTS
Tendring DC,http://statistics.data.gov.uk/id/local-authority-district/22UN,Corporate Services,9930 - Loans Fund Balance Sheet,B551 - Loans Maturing Within One Year - HRA,15/07/2013,1053546-3,166666.67,2101162 - Public Works Loan Board,PRINCIPAL AND INTEREST PAYMENTS
Tendring DC,http://statistics.data.gov.uk/id/local-authority-district/22UN,Corporate Services,5760 - HRA - Capital & Interest Charges,9831 - HRA Interest (formerly Item 8),15/07/2013,1053546-4,147766.67,2101162 - Public Works Loan Board,PRINCIPAL AND INTEREST PAYMENTS
Tendring DC,http://statistics.data.gov.uk/id/local-authority-district/22UN,Corporate Services,9900 - General Fund Balance Sheet,B886 - Rail Warrants Allocation Holding Account,19/07/2013,1053922-1,1587.1,2101174 - R S P Ltd,RAIL WARRANTS
Tendring DC,http://statistics.data.gov.uk/id/local-authority-district/22UN,Corporate Services,6460 - Career Track,1700 - Training - Courses,02/07/2013,1053314-1,1500,REDACTED PERSONAL DATA,REDACTED PERSONAL DATA
Tendring DC,http://statistics.data.gov.uk/id/local-authority-district/22UN,Corporate Services,7025 - CDRP Support,4900 - Grants,09/07/2013,2109586-1,520,2113168 - Remote Medic UK Ltd,Workshop - Alcohol Awareness Event
Tendring DC,http://statistics.data.gov.uk/id/local-authority-district/22UN,Corporate Services,1090 - Chief Executive and Support Service Unit,4400 - Maintenance Under Service Agreements,30/07/2013,1053894-1,275.52,2101090 - Ricoh UK Ltd,PHOTOCOPIER RENT & COPY CHARGES
Tendring DC,http://statistics.data.gov.uk/id/local-authority-district/22UN,Corporate Services,7240 - Electoral Registration Expenses,4700 - Postage,30/07/2013,1053828-1,53.96,2101139 - Royal Mail,ELECTORAL POSTAGE
Tendring DC,http://statistics.data.gov.uk/id/local-authority-district/22UN,Corporate Services,7240 - Electoral Registration Expenses,4700 - Postage,23/07/2013,2110069-1,10.27,2101139 - Royal Mail,Electoral Postage
Tendring DC,http://statistics.data.gov.uk/id/local-authority-district/22UN,Corporate Services,1815 - Personnel and Human Resources Issues,1600 - Medical Expenses,02/07/2013,1053356-1,580,2110675 - RPS Consultants Ltd,OCCUPATIONAL HEALTH
Tendring DC,http://statistics.data.gov.uk/id/local-authority-district/22UN,Corporate Services,1815 - Personnel and Human Resources Issues,1600 - Medical Expenses,02/07/2013,1053357-1,773.33,2110675 - RPS Consultants Ltd,OCCUPATIONAL HEALTH
Tendring DC,http://statistics.data.gov.uk/id/local-authority-district/22UN,Corporate Services,7220 - Election Expenses,4486 - Election Expenses,30/07/2013,1053821-1,14.35,2101284 - Shaw & Sons Ltd,COUNTING SHEETS
Tendring DC,http://statistics.data.gov.uk/id/local-authority-district/22UN,Corporate Services,1330 - Human Resources Service Unit,1700 - Training - Courses,23/07/2013,1053647-1,125,2101898 - Southend-On-Sea Borough Council,SOLUTION FOCUSED THINKING
Tendring DC,http://statistics.data.gov.uk/id/local-authority-district/22UN,Corporate Services,6980 - Essex Family Needs Project,5500 - Miscellaneous Expenses,09/07/2013,1053445-1,31.5,2107338 - Swan Taxis,SWAN TAXIS
Tendring DC,http://statistics.data.gov.uk/id/local-authority-district/22UN,Corporate Services,7040 - Civic Ceremonial Expenses,4080 - Materials & Consumables,23/07/2013,2109986-1,630.28,2112989 - Thomas Fattorini Ltd,Repair to Civic Hall
Tendring DC,http://statistics.data.gov.uk/id/local-authority-district/22UN,Corporate Services,1140 - Audit Services Service Unit,4500 - Consultancy Fees,02/07/2013,1053346-1,2961,2111185 - TIAA Ltd,COMPUTER AUDIT-DISASTER RECOVERY
Tendring DC,http://statistics.data.gov.uk/id/local-authority-district/22UN,Corporate Services,1140 - Audit Services Service Unit,4500 - Consultancy Fees,23/07/2013,2109988-1,658,2111185 - TIAA Ltd,TDC13 Follow Up Audit
Tendring DC,http://statistics.data.gov.uk/id/local-authority-district/22UN,Corporate Services,1320 - Print Unit Service Unit,4350 - Photocopier Hire,02/07/2013,2109423-1,830.37,2101517 - Xerox (UK) Ltd,4127 Copies
Tendring DC,http://statistics.data.gov.uk/id/local-authority-district/22UN,Corporate Services,1320 - Print Unit Service Unit,4350 - Photocopier Hire,09/07/2013,2109588-1,2173.92,2101517 - Xerox (UK) Ltd,252 Copies
Tendring DC,http://statistics.data.gov.uk/id/local-authority-district/22UN,Corporate Services,1320 - Print Unit Service Unit,4350 - Photocopier Hire,09/07/2013,1053446-1,1964.1,2101527 - Xerox Finance Ltd,252 RENTAL
Tendring DC,http://statistics.data.gov.uk/id/local-authority-district/22UN,Corporate Services,6580 - Member Support Cost,4300 - Printing & Stationery,02/07/2013,2109437-1,114.41,2107546 - XMA Limited,ink Cartridges Members Office
Tendring DC,http://statistics.data.gov.uk/id/local-authority-district/22UN,Corporate Services,5240 - HRA - Managing Tenancies,4312 - Tenancy Stationery,09/07/2013,2109487-1,2.11,REDACTED COMMERCIAL CONFIDENTIALITY,REDACTED COMMERCIAL CONFIDENTIALITY
Tendring DC,http://statistics.data.gov.uk/id/local-authority-district/22UN,Corporate Services,6580 - Member Support Cost,4300 - Printing & Stationery,16/07/2013,2109757-1,34.76,2107546 - XMA Limited,Toner Cartridge Member Office
Tendring DC,http://statistics.data.gov.uk/id/local-authority-district/22UN,Corporate Services,1320 - Print Unit Service Unit,4302 - External Print Unit Expenses,16/07/2013,2109959-1,795,2101635 - Xpressions.com,Diary Artwork & Setting
Tendring DC,http://statistics.data.gov.uk/id/local-authority-district/22UN,Corporate Services,1700 - Insurance Recharge Account,3440 - Marine,30/07/2013,1053896-1,2279.3,2107672 - Zurich Municipal Insurance,MARINE INSURANCE 13/14
Tendring DC,http://statistics.data.gov.uk/id/local-authority-district/22UN,Life Opportunities,1880 - Office Accommodation Expenses,2100 - Building Repairs,30/07/2013,1053731-1,220,2100061 - A R & J Pardoe,
Tendring DC,http://statistics.data.gov.uk/id/local-authority-district/22UN,Life Opportunities,1880 - Office Accommodation Expenses,2100 - Building Repairs,30/07/2013,1053731-2,80,2100061 - A R & J Pardoe,
Tendring DC,http://statistics.data.gov.uk/id/local-authority-district/22UN,Life Opportunities,1880 - Office Accommodation Expenses,2100 - Building Repairs,30/07/2013,1053732-1,245,2100061 - A R & J Pardoe,
Tendring DC,http://statistics.data.gov.uk/id/local-authority-district/22UN,Life Opportunities,1880 - Office Accommodation Expenses,2100 - Building Repairs,30/07/2013,1053732-2,80,2100061 - A R & J Pardoe,
Tendring DC,http://statistics.data.gov.uk/id/local-authority-district/22UN,Life Opportunities,5480 - HRA - Repair & Maintenance,2073 - Smoke Alarm Service/Testing,30/07/2013,1053901-1,202.24,2111360 - Aaron Services Ltd,GAS SERVICE & REPAIR - NORTH AREA 13/14
Tendring DC,http://statistics.data.gov.uk/id/local-authority-district/22UN,Life Opportunities,5480 - HRA - Repair & Maintenance,2075 - Gas Service Contract Servicing/Testing (Domestic I,30/07/2013,1053901-2,3909.79,2111360 - Aaron Services Ltd,GAS SERVICE & REPAIR - NORTH AREA 13/14
Tendring DC,http://statistics.data.gov.uk/id/local-authority-district/22UN,Life Opportunities,5480 - HRA - Repair & Maintenance,2076 - Gas Service Contract Other Refurbishment/Repairs (,30/07/2013,1053901-3,11479.82,2111360 - Aaron Services Ltd,GAS SERVICE & REPAIR - NORTH AREA 13/14
Tendring DC,http://statistics.data.gov.uk/id/local-authority-district/22UN,Life Opportunities,7840 - Concessionary Rail Fares,4602 - Hired Services - Purchase of Railcards,02/07/2013,1053311-1,1500,2112213 - Abellio Greater Anglia Ltd,PAYMENT FOR RAILCARDS INCREASED PRICE
Tendring DC,http://statistics.data.gov.uk/id/local-authority-district/22UN,Life Opportunities,5480 - HRA - Repair & Maintenance,2018 - Other Responsive Repairs,09/07/2013,1053413-1,252,REDACTED PERSONAL DATA,REDACTED PERSONAL DATA
Tendring DC,http://statistics.data.gov.uk/id/local-authority-district/22UN,Life Opportunities,5480 - HRA - Repair & Maintenance,2017 - Mechanical Equipment /Extract Fans,30/07/2013,1053743-1,302.82,REDACTED PERSONAL DATA,REDACTED PERSONAL DATA
Tendring DC,http://statistics.data.gov.uk/id/local-authority-district/22UN,Life Opportunities,5480 - HRA - Repair & Maintenance,2017 - Mechanical Equipment /Extract Fans,30/07/2013,1053744-1,390.37,REDACTED PERSONAL DATA,REDACTED PERSONAL DATA
Tendring DC,http://statistics.data.gov.uk/id/local-authority-district/22UN,Life Opportunities,8540 - Leisure Centre Clacton,2100 - Building Repairs,16/07/2013,2109827-1,189,REDACTED PERSONAL DATA,REDACTED PERSONAL DATA
Tendring DC,http://statistics.data.gov.uk/id/local-authority-district/22UN,Life Opportunities,1880 - Office Accommodation Expenses,2100 - Building Repairs,09/07/2013,2109536-1,62,2101609 - Adcock Refrigeration & Air Conditioning Ltd,Adcock
Tendring DC,http://statistics.data.gov.uk/id/local-authority-district/22UN,Life Opportunities,1880 - Office Accommodation Expenses,2100 - Building Repairs,09/07/2013,2109537-1,96,2101609 - Adcock Refrigeration & Air Conditioning Ltd,Adcock
Tendring DC,http://statistics.data.gov.uk/id/local-authority-district/22UN,Life Opportunities,1880 - Office Accommodation Expenses,2100 - Building Repairs,16/07/2013,2109932-1,1895,2101609 - Adcock Refrigeration & Air Conditioning Ltd,Adcock
Tendring DC,http://statistics.data.gov.uk/id/local-authority-district/22UN,Life Opportunities,5800 - Brightlingsea Sports Centre,2100 - Building Repairs,02/07/2013,7700434-1,762.33,2105668 - ADT Fire and Security plc,ADT FIRE & SECURITY PLC
Tendring DC,http://statistics.data.gov.uk/id/local-authority-district/22UN,Life Opportunities,8540 - Leisure Centre Clacton,2510 - Water Services - Unmetered,02/07/2013,1053270-1,1167.91,2112518 - Affinity Water Ltd (East Region),MAY WATER
Tendring DC,http://statistics.data.gov.uk/id/local-authority-district/22UN,Life Opportunities,8520 - Frinton & Walton Swimming Pool,2510 - Water Services - Unmetered,23/07/2013,1053615-1,1239.43,2112518 - Affinity Water Ltd (East Region),FRINTON POOL
Tendring DC,http://statistics.data.gov.uk/id/local-authority-district/22UN,Life Opportunities,8510 - Dovercourt Swimming Pool & All Weather Facilities,2510 - Water Services - Unmetered,30/07/2013,1053854-1,911.41,2112518 - Affinity Water Ltd (East Region),DOVERCOURT POOL
Tendring DC,http://statistics.data.gov.uk/id/local-authority-district/22UN,Life Opportunities,8540 - Leisure Centre Clacton,4400 - Maintenance Under Service Agreements,02/07/2013,1053337-1,540,2108105 - AFI Uplift Ltd,SERVICE SCISSOR LIFT
Tendring DC,http://statistics.data.gov.uk/id/local-authority-district/22UN,Life Opportunities,5480 - HRA - Repair & Maintenance,2017 - Mechanical Equipment /Extract Fans,09/07/2013,1053453-1,631,REDACTED PERSONAL DATA,REDACTED PERSONAL DATA
Tendring DC,http://statistics.data.gov.uk/id/local-authority-district/22UN,Life Opportunities,5480 - HRA - Repair & Maintenance,2017 - Mechanical Equipment /Extract Fans,09/07/2013,1053454-1,765.85,REDACTED PERSONAL DATA,REDACTED PERSONAL DATA
Tendring DC,http://statistics.data.gov.uk/id/local-authority-district/22UN,Life Opportunities,5480 - HRA - Repair & Maintenance,2017 - Mechanical Equipment /Extract Fans,09/07/2013,1053455-1,711,REDACTED PERSONAL DATA,REDACTED PERSONAL DATA
Tendring DC,http://statistics.data.gov.uk/id/local-authority-district/22UN,Life Opportunities,5480 - HRA - Repair & Maintenance,2091 - External Works,09/07/2013,2109489-1,1069.3,REDACTED PERSONAL DATA,REDACTED PERSONAL DATA
Tendring DC,http://statistics.data.gov.uk/id/local-authority-district/22UN,Life Opportunities,5480 - HRA - Repair & Maintenance,2091 - External Works,09/07/2013,2109490-1,1344.8,REDACTED PERSONAL DATA,REDACTED PERSONAL DATA
Tendring DC,http://statistics.data.gov.uk/id/local-authority-district/22UN,Life Opportunities,5480 - HRA - Repair & Maintenance,2091 - External Works,09/07/2013,2109491-1,1064.4,REDACTED PERSONAL DATA,REDACTED PERSONAL DATA
Tendring DC,http://statistics.data.gov.uk/id/local-authority-district/22UN,Life Opportunities,5480 - HRA - Repair & Maintenance,2017 - Mechanical Equipment /Extract Fans,02/07/2013,7700422-1,665.5,REDACTED PERSONAL DATA,REDACTED PERSONAL DATA
Tendring DC,http://statistics.data.gov.uk/id/local-authority-district/22UN,Life Opportunities,6740 - Careline,5160 - Advertising,30/07/2013,7009441-1,285,REDACTED COMMERCIAL CONFIDENTIALITY,REDACTED COMMERCIAL CONFIDENTIALITY
Tendring DC,http://statistics.data.gov.uk/id/local-authority-district/22UN,Life Opportunities,6740 - Careline,3060 - Running Costs - Diesel,30/07/2013,1053787-1,442.04,2101825 - Allstar Business Solutions Ltd,FUEL CARDS-JUNE 13
Tendring DC,http://statistics.data.gov.uk/id/local-authority-district/22UN,Life Opportunities,"1580 - Benefits, Revenues and Customer Contact SU",4469 - Other Non - Legal Professional Services,23/07/2013,2110014-1,23.6,2111631 - Anglia Courier Express (East Anglia) Ltd,Anglia Courier Express
Tendring DC,http://statistics.data.gov.uk/id/local-authority-district/22UN,Life Opportunities,8540 - Leisure Centre Clacton,2100 - Building Repairs,09/07/2013,2109504-1,655,2100096 - Anglia Welding (Fabrications) Co,Welding Goals
Tendring DC,http://statistics.data.gov.uk/id/local-authority-district/22UN,Life Opportunities,8510 - Dovercourt Swimming Pool & All Weather Facilities,2520 - Sewerage & Environmental Charges,30/07/2013,7009448-1,1916.12,2112315 - Anglian Water Business,DOVERCOURT POOL
Tendring DC,http://statistics.data.gov.uk/id/local-authority-district/22UN,Life Opportunities,8520 - Frinton & Walton Swimming Pool,2520 - Sewerage & Environmental Charges,30/07/2013,7009449-1,2093.1,2112315 - Anglian Water Business,FRINTONPOOL
Tendring DC,http://statistics.data.gov.uk/id/local-authority-district/22UN,Life Opportunities,5240 - HRA - Managing Tenancies,5242 - Tenant Relations,09/07/2013,1053382-1,10,REDACTED PERSONAL DATA,REDACTED PERSONAL DATA
Tendring DC,http://statistics.data.gov.uk/id/local-authority-district/22UN,Life Opportunities,5240 - HRA - Managing Tenancies,5242 - Tenant Relations,23/07/2013,1053561-1,10,REDACTED PERSONAL DATA,REDACTED PERSONAL DATA
Tendring DC,http://statistics.data.gov.uk/id/local-authority-district/22UN,Life Opportunities,5240 - HRA - Managing Tenancies,5242 - Tenant Relations,30/07/2013,1053710-1,10,REDACTED PERSONAL DATA,REDACTED PERSONAL DATA
Tendring DC,http://statistics.data.gov.uk/id/local-authority-district/22UN,Life Opportunities,5240 - HRA - Managing Tenancies,5242 - Tenant Relations,16/07/2013,2109837-1,10,REDACTED PERSONAL DATA,REDACTED PERSONAL DATA
Tendring DC,http://statistics.data.gov.uk/id/local-authority-district/22UN,Life Opportunities,5240 - HRA - Managing Tenancies,6625 - Tenants Compensation Scheme,02/07/2013,1053330-1,475,REDACTED COMMERCIAL CONFIDENTIALITY,REDACTED COMMERCIAL CONFIDENTIALITY
Tendring DC,http://statistics.data.gov.uk/id/local-authority-district/22UN,Life Opportunities,6160 - Princes Theatre,4000 - Furniture,09/07/2013,1053436-1,23.96,2100048 - Argos Business Solutions,SET 10 WOODEN COAT HANGERS
Tendring DC,http://statistics.data.gov.uk/id/local-authority-district/22UN,Life Opportunities,5360 - HRA - Sheltered Units,4040 - Equipment & Tools,09/07/2013,1053439-1,3.96,REDACTED COMMERCIAL CONFIDENTIALITY,REDACTED COMMERCIAL CONFIDENTIALITY
Tendring DC,http://statistics.data.gov.uk/id/local-authority-district/22UN,Life Opportunities,5360 - HRA - Sheltered Units,4040 - Equipment & Tools,09/07/2013,1053499-1,11.28,REDACTED COMMERCIAL CONFIDENTIALITY,REDACTED COMMERCIAL CONFIDENTIALITY
Tendring DC,http://statistics.data.gov.uk/id/local-authority-district/22UN,Life Opportunities,5360 - HRA - Sheltered Units,4040 - Equipment & Tools,30/07/2013,1053775-1,46.28,REDACTED COMMERCIAL CONFIDENTIALITY,REDACTED COMMERCIAL CONFIDENTIALITY
Tendring DC,http://statistics.data.gov.uk/id/local-authority-district/22UN,Life Opportunities,5360 - HRA - Sheltered Units,4040 - Equipment & Tools,30/07/2013,1053776-1,16.07,REDACTED COMMERCIAL CONFIDENTIALITY,REDACTED COMMERCIAL CONFIDENTIALITY
Tendring DC,http://statistics.data.gov.uk/id/local-authority-district/22UN,Life Opportunities,5240 - HRA - Managing Tenancies,4312 - Tenancy Stationery,16/07/2013,2109656-1,55.28,REDACTED COMMERCIAL CONFIDENTIALITY,REDACTED COMMERCIAL CONFIDENTIALITY
Tendring DC,http://statistics.data.gov.uk/id/local-authority-district/22UN,Life Opportunities,5240 - HRA - Managing Tenancies,4312 - Tenancy Stationery,16/07/2013,2109657-1,3.96,REDACTED COMMERCIAL CONFIDENTIALITY,REDACTED COMMERCIAL CONFIDENTIALITY
Tendring DC,http://statistics.data.gov.uk/id/local-authority-district/22UN,Life Opportunities,5480 - HRA - Repair & Maintenance,4040 - Equipment & Tools,16/07/2013,2109658-1,59.24,REDACTED COMMERCIAL CONFIDENTIALITY,REDACTED COMMERCIAL CONFIDENTIALITY
Tendring DC,http://statistics.data.gov.uk/id/local-authority-district/22UN,Life Opportunities,H860 - Disabled Adaptations,C200 - Main Contractor,23/07/2013,1053521-1,1180,REDACTED PERSONAL DATA,REDACTED PERSONAL DATA
Tendring DC,http://statistics.data.gov.uk/id/local-authority-district/22UN,Life Opportunities,H860 - Disabled Adaptations,C200 - Main Contractor,23/07/2013,1053521-2,4380,REDACTED PERSONAL DATA,REDACTED PERSONAL DATA
Tendring DC,http://statistics.data.gov.uk/id/local-authority-district/22UN,Life Opportunities,H860 - Disabled Adaptations,C200 - Main Contractor,16/07/2013,2109684-1,1200,REDACTED PERSONAL DATA,REDACTED PERSONAL DATA
Tendring DC,http://statistics.data.gov.uk/id/local-authority-district/22UN,Life Opportunities,H860 - Disabled Adaptations,C200 - Main Contractor,16/07/2013,2109684-2,4874,REDACTED PERSONAL DATA,REDACTED PERSONAL DATA
Tendring DC,http://statistics.data.gov.uk/id/local-authority-district/22UN,Life Opportunities,8520 - Frinton & Walton Swimming Pool,5300 - Resaleable Items,23/07/2013,1053621-1,8.55,2100088 - ASA Merchandising Ltd,FRINTON WALTON POOL
Tendring DC,http://statistics.data.gov.uk/id/local-authority-district/22UN,Life Opportunities,8540 - Leisure Centre Clacton,5300 - Resaleable Items,16/07/2013,2109808-1,662.8,2100088 - ASA Merchandising Ltd,Swim Awards
Tendring DC,http://statistics.data.gov.uk/id/local-authority-district/22UN,Life Opportunities,8520 - Frinton & Walton Swimming Pool,5300 - Resaleable Items,16/07/2013,2109811-1,221.55,2100088 - ASA Merchandising Ltd,Frinton & Walton Pool
Tendring DC,http://statistics.data.gov.uk/id/local-authority-district/22UN,Life Opportunities,5860 - Manningtree Sports Centre,4597 - Hired Services - Payments to Contractors,16/07/2013,2109856-1,240,2110101 - ASM Ltd,Football Coach x 16 hrs
Tendring DC,http://statistics.data.gov.uk/id/local-authority-district/22UN,Life Opportunities,8520 - Frinton & Walton Swimming Pool,5311 - General Provisions - Vending,02/07/2013,2109450-1,195,2112129 - Autobar Vending Services Ltd,Frinton & Walton Pool
Tendring DC,http://statistics.data.gov.uk/id/local-authority-district/22UN,Life Opportunities,8520 - Frinton & Walton Swimming Pool,4400 - Maintenance Under Service Agreements,16/07/2013,2109664-1,81.07,2112129 - Autobar Vending Services Ltd,Frinton & Walton Pool
Tendring DC,http://statistics.data.gov.uk/id/local-authority-district/22UN,Life Opportunities,8510 - Dovercourt Swimming Pool & All Weather Facilities,4300 - Printing & Stationery,23/07/2013,1053619-1,165,2100069 - Autoprint,DOVERCOURT POOL
Tendring DC,http://statistics.data.gov.uk/id/local-authority-district/22UN,Life Opportunities,1880 - Office Accommodation Expenses,4080 - Materials & Consumables,09/07/2013,2109529-1,6.63,2100099 - B & Q Trade Account,B & Q
Tendring DC,http://statistics.data.gov.uk/id/local-authority-district/22UN,Life Opportunities,1880 - Office Accommodation Expenses,4080 - Materials & Consumables,16/07/2013,2109941-1,9.98,2100099 - B & Q Trade Account,BQ
Tendring DC,http://statistics.data.gov.uk/id/local-authority-district/22UN,Life Opportunities,8540 - Leisure Centre Clacton,9275 - Lifestyles Plus - DD,02/07/2013,1053235-1,11.67,REDACTED PERSONAL DATA,REDACTED PERSONAL DATA
Tendring DC,http://statistics.data.gov.uk/id/local-authority-district/22UN,Life Opportunities,1880 - Office Accommodation Expenses,4080 - Materials & Consumables,02/07/2013,7700452-1,35.08,2109063 - B&Q,B&Q
Tendring DC,http://statistics.data.gov.uk/id/local-authority-district/22UN,Life Opportunities,5240 - HRA - Managing Tenancies,4312 - Tenancy Stationery,09/07/2013,1053432-1,78.72,REDACTED COMMERCIAL CONFIDENTIALITY,REDACTED COMMERCIAL CONFIDENTIALITY
Tendring DC,http://statistics.data.gov.uk/id/local-authority-district/22UN,Life Opportunities,1050 - Leisure Service Unit,4300 - Printing & Stationery,09/07/2013,1053432-2,2.44,REDACTED COMMERCIAL CONFIDENTIALITY,REDACTED COMMERCIAL CONFIDENTIALITY
Tendring DC,http://statistics.data.gov.uk/id/local-authority-district/22UN,Life Opportunities,5240 - HRA - Managing Tenancies,5248 - Estate Management Expenses,09/07/2013,1053432-3,128.71,REDACTED COMMERCIAL CONFIDENTIALITY,REDACTED COMMERCIAL CONFIDENTIALITY
Tendring DC,http://statistics.data.gov.uk/id/local-authority-district/22UN,Life Opportunities,6160 - Princes Theatre,4080 - Materials & Consumables,09/07/2013,1053432-4,21.4,REDACTED COMMERCIAL CONFIDENTIALITY,REDACTED COMMERCIAL CONFIDENTIALITY
Tendring DC,http://statistics.data.gov.uk/id/local-authority-district/22UN,Life Opportunities,8540 - Leisure Centre Clacton,4300 - Printing & Stationery,09/07/2013,1053434-1,8.8,2100111 - Banner Business Supplies Ltd,STATIONERY
Tendring DC,http://statistics.data.gov.uk/id/local-authority-district/22UN,Life Opportunities,1565 - Careline / CCTV Service Unit,4300 - Printing & Stationery,23/07/2013,1053519-1,-5.56,2100111 - Banner Business Supplies Ltd,BANNER-GRIDDING TAPE
Tendring DC,http://statistics.data.gov.uk/id/local-authority-district/22UN,Life Opportunities,1565 - Careline / CCTV Service Unit,4300 - Printing & Stationery,30/07/2013,1053781-1,78.63,2100111 - Banner Business Supplies Ltd,BANNER-JULY 2013
Tendring DC,http://statistics.data.gov.uk/id/local-authority-district/22UN,Life Opportunities,5240 - HRA - Managing Tenancies,4312 - Tenancy Stationery,30/07/2013,1053784-1,52.57,REDACTED COMMERCIAL CONFIDENTIALITY,REDACTED COMMERCIAL CONFIDENTIALITY
Tendring DC,http://statistics.data.gov.uk/id/local-authority-district/22UN,Life Opportunities,6160 - Princes Theatre,4040 - Equipment & Tools,30/07/2013,1053784-2,4.29,REDACTED COMMERCIAL CONFIDENTIALITY,REDACTED COMMERCIAL CONFIDENTIALITY
Tendring DC,http://statistics.data.gov.uk/id/local-authority-district/22UN,Life Opportunities,5220 - HRA - Policy & Management,5253 - HRA Health & Safety Expenses,30/07/2013,1053784-3,11.66,REDACTED COMMERCIAL CONFIDENTIALITY,REDACTED COMMERCIAL CONFIDENTIALITY
Tendring DC,http://statistics.data.gov.uk/id/local-authority-district/22UN,Life Opportunities,5240 - HRA - Managing Tenancies,4312 - Tenancy Stationery,02/07/2013,2109442-1,2.05,2100111 - Banner Business Supplies Ltd,Copier Labels
Tendring DC,http://statistics.data.gov.uk/id/local-authority-district/22UN,Life Opportunities,8540 - Leisure Centre Clacton,4300 - Printing & Stationery,02/07/2013,2109447-1,112.78,2100111 - Banner Business Supplies Ltd,Stationery
Tendring DC,http://statistics.data.gov.uk/id/local-authority-district/22UN,Life Opportunities,1210 - Facilities Management Service Unit,4300 - Printing & Stationery,02/07/2013,2109448-1,18.7,2100111 - Banner Business Supplies Ltd,Banner
Tendring DC,http://statistics.data.gov.uk/id/local-authority-district/22UN,Life Opportunities,1210 - Facilities Management Service Unit,4300 - Printing & Stationery,02/07/2013,2109449-1,32.27,2100111 - Banner Business Supplies Ltd,Banner
Tendring DC,http://statistics.data.gov.uk/id/local-authority-district/22UN,Life Opportunities,5240 - HRA - Managing Tenancies,4312 - Tenancy Stationery,02/07/2013,2109472-1,94.38,REDACTED PERSONAL DATA,REDACTED PERSONAL DATA
Tendring DC,http://statistics.data.gov.uk/id/local-authority-district/22UN,Life Opportunities,1210 - Facilities Management Service Unit,4300 - Printing & Stationery,16/07/2013,2109666-1,30.5,2100111 - Banner Business Supplies Ltd,Banner
Tendring DC,http://statistics.data.gov.uk/id/local-authority-district/22UN,Life Opportunities,1210 - Facilities Management Service Unit,4300 - Printing & Stationery,16/07/2013,2109667-1,18,2100111 - Banner Business Supplies Ltd,Banner
Tendring DC,http://statistics.data.gov.uk/id/local-authority-district/22UN,Life Opportunities,1565 - Careline / CCTV Service Unit,4300 - Printing & Stationery,16/07/2013,2109668-1,82.98,2100111 - Banner Business Supplies Ltd,Banner June 13
Tendring DC,http://statistics.data.gov.uk/id/local-authority-district/22UN,Life Opportunities,5240 - HRA - Managing Tenancies,4312 - Tenancy Stationery,16/07/2013,2109669-1,119.53,REDACTED COMMERCIAL CONFIDENTIALITY,REDACTED COMMERCIAL CONFIDENTIALITY
Tendring DC,http://statistics.data.gov.uk/id/local-authority-district/22UN,Life Opportunities,6160 - Princes Theatre,4040 - Equipment & Tools,16/07/2013,2109669-2,6.24,REDACTED COMMERCIAL CONFIDENTIALITY,REDACTED COMMERCIAL CONFIDENTIALITY
Tendring DC,http://statistics.data.gov.uk/id/local-authority-district/22UN,Life Opportunities,6160 - Princes Theatre,4300 - Printing & Stationery,16/07/2013,2109669-3,21.4,REDACTED COMMERCIAL CONFIDENTIALITY,REDACTED COMMERCIAL CONFIDENTIALITY
Tendring DC,http://statistics.data.gov.uk/id/local-authority-district/22UN,Life Opportunities,"1580 - Benefits, Revenues and Customer Contact SU",4300 - Printing & Stationery,16/07/2013,2109670-1,175.52,2100111 - Banner Business Supplies Ltd,Loop Paper
Tendring DC,http://statistics.data.gov.uk/id/local-authority-district/22UN,Life Opportunities,"1580 - Benefits, Revenues and Customer Contact SU",4300 - Printing & Stationery,23/07/2013,2110116-1,29.99,2100111 - Banner Business Supplies Ltd,Banner Stationery
Tendring DC,http://statistics.data.gov.uk/id/local-authority-district/22UN,Life Opportunities,5860 - Manningtree Sports Centre,4300 - Printing & Stationery,23/07/2013,2110117-1,72.63,2100111 - Banner Business Supplies Ltd,Stationery Supplies
Tendring DC,http://statistics.data.gov.uk/id/local-authority-district/22UN,Life Opportunities,5240 - HRA - Managing Tenancies,4312 - Tenancy Stationery,23/07/2013,2110118-1,99.32,2100111 - Banner Business Supplies Ltd,Banner Order 8/7/13
Tendring DC,http://statistics.data.gov.uk/id/local-authority-district/22UN,Life Opportunities,1565 - Careline / CCTV Service Unit,4300 - Printing & Stationery,23/07/2013,2110119-1,5.56,2100111 - Banner Business Supplies Ltd,Banner - Gridding Tape
Tendring DC,http://statistics.data.gov.uk/id/local-authority-district/22UN,Life Opportunities,5960 - Recreation Grounds,2304 - Energy Costs - Electricity,10/07/2013,2110125-1,90.18,2100111 - Banner Business Supplies Ltd,BG June 2013
Tendring DC,http://statistics.data.gov.uk/id/local-authority-district/22UN,Life Opportunities,6080 - Shops & Kiosks,2304 - Energy Costs - Electricity,10/07/2013,2110125-2,63.48,2100111 - Banner Business Supplies Ltd,BG June 2013
Tendring DC,http://statistics.data.gov.uk/id/local-authority-district/22UN,Life Opportunities,6000 - Beach Hut Sites,2304 - Energy Costs - Electricity,10/07/2013,2110125-3,37.38,2100111 - Banner Business Supplies Ltd,BG June 2013
Tendring DC,http://statistics.data.gov.uk/id/local-authority-district/22UN,Life Opportunities,6080 - Shops & Kiosks,2304 - Energy Costs - Electricity,10/07/2013,2110125-4,477.55,2100111 - Banner Business Supplies Ltd,BG June 2013
Tendring DC,http://statistics.data.gov.uk/id/local-authority-district/22UN,Life Opportunities,5820 - Harwich Sports Centre,2304 - Energy Costs - Electricity,10/07/2013,2110125-5,358.78,2100111 - Banner Business Supplies Ltd,BG June 2013
Tendring DC,http://statistics.data.gov.uk/id/local-authority-district/22UN,Life Opportunities,5860 - Manningtree Sports Centre,2304 - Energy Costs - Electricity,10/07/2013,2110125-6,798.3,2100111 - Banner Business Supplies Ltd,BG June 2013
Tendring DC,http://statistics.data.gov.uk/id/local-authority-district/22UN,Life Opportunities,6080 - Shops & Kiosks,2304 - Energy Costs - Electricity,10/07/2013,2110125-7,-46.91,2100111 - Banner Business Supplies Ltd,BG June 2013
Tendring DC,http://statistics.data.gov.uk/id/local-authority-district/22UN,Life Opportunities,6000 - Beach Hut Sites,2304 - Energy Costs - Electricity,10/07/2013,2110125-8,-20.38,2100111 - Banner Business Supplies Ltd,BG June 2013
Tendring DC,http://statistics.data.gov.uk/id/local-authority-district/22UN,Life Opportunities,8540 - Leisure Centre Clacton,5196 - Credit Card Charges,12/07/2013,2109672-1,36.3,2100141 - Barclaycard Merchant Services,Credit Card June
Tendring DC,http://statistics.data.gov.uk/id/local-authority-district/22UN,Life Opportunities,8540 - Leisure Centre Clacton,5196 - Credit Card Charges,12/07/2013,2109672-2,313.68,2100141 - Barclaycard Merchant Services,Credit Card June
Tendring DC,http://statistics.data.gov.uk/id/local-authority-district/22UN,Life Opportunities,5820 - Harwich Sports Centre,5196 - Credit Card Charges,12/07/2013,2109673-1,19.35,2100141 - Barclaycard Merchant Services,Barclaycard PDQ
Tendring DC,http://statistics.data.gov.uk/id/local-authority-district/22UN,Life Opportunities,5820 - Harwich Sports Centre,5196 - Credit Card Charges,12/07/2013,2109673-2,21.71,2100141 - Barclaycard Merchant Services,Barclaycard PDQ
Tendring DC,http://statistics.data.gov.uk/id/local-authority-district/22UN,Life Opportunities,5860 - Manningtree Sports Centre,4400 - Maintenance Under Service Agreements,30/07/2013,1053841-1,25.2,2105048 - Berendsen UK Ltd,BALANCE OF CONTRACT CHARGE
Tendring DC,http://statistics.data.gov.uk/id/local-authority-district/22UN,Life Opportunities,8540 - Leisure Centre Clacton,2300 - Energy Costs - Fuel Oil,09/07/2013,2109507-1,1352,2112681 - BIRLEM Ltd,2000lt Gas Oil
Tendring DC,http://statistics.data.gov.uk/id/local-authority-district/22UN,Life Opportunities,8540 - Leisure Centre Clacton,2300 - Energy Costs - Fuel Oil,16/07/2013,2109818-1,1112.96,2112681 - BIRLEM Ltd,1504 Lt Gas Oil
Tendring DC,http://statistics.data.gov.uk/id/local-authority-district/22UN,Life Opportunities,8540 - Leisure Centre Clacton,2300 - Energy Costs - Fuel Oil,16/07/2013,2109824-1,1360,2112681 - BIRLEM Ltd,2000 LT Gas Oil
Tendring DC,http://statistics.data.gov.uk/id/local-authority-district/22UN,Life Opportunities,8540 - Leisure Centre Clacton,2300 - Energy Costs - Fuel Oil,02/07/2013,7700441-1,1700,2112681 - BIRLEM Ltd,GAS OIL
Tendring DC,http://statistics.data.gov.uk/id/local-authority-district/22UN,Life Opportunities,6160 - Princes Theatre,4622 - Hired Services - Artistes and Production Companies,30/07/2013,7009463-1,2774.32,REDACTED COMMERCIAL CONFIDENTIALITY,REDACTED COMMERCIAL CONFIDENTIALITY
Tendring DC,http://statistics.data.gov.uk/id/local-authority-district/22UN,Life Opportunities,H805 - Major Refurbishment of Heating,C200 - Main Contractor,16/07/2013,1053501-1,25326.66,2100155 - Blue Flame (Colchester) Ltd,HEATING REFURBISHMENT & UPGRADE CONTRACT
Tendring DC,http://statistics.data.gov.uk/id/local-authority-district/22UN,Life Opportunities,9900 - General Fund Balance Sheet,B382 - Rechargeable Works - Other,30/07/2013,1053742-1,3630,REDACTED COMMERCIAL CONFIDENTIALITY,REDACTED COMMERCIAL CONFIDENTIALITY
Tendring DC,http://statistics.data.gov.uk/id/local-authority-district/22UN,Life Opportunities,8540 - Leisure Centre Clacton,2700 - Cleaning Materials,09/07/2013,1053461-1,1045,2102036 - Bonasystems Europe Ltd,BONAMAIN/BONACLEAN
Tendring DC,http://statistics.data.gov.uk/id/local-authority-district/22UN,Life Opportunities,6160 - Princes Theatre,4300 - Printing & Stationery,09/07/2013,2109484-1,650.6,2111425 - BPS Ltd,Reprint of Tickets
Tendring DC,http://statistics.data.gov.uk/id/local-authority-district/22UN,Life Opportunities,"1580 - Benefits, Revenues and Customer Contact SU",1700 - Training - Courses,16/07/2013,2109872-1,171,2102533 - Braintree District Council,CTS Appeals Training 12 July 13
Tendring DC,http://statistics.data.gov.uk/id/local-authority-district/22UN,Life Opportunities,5240 - HRA - Managing Tenancies,5242 - Tenant Relations,09/07/2013,1053387-1,10,REDACTED PERSONAL DATA,REDACTED PERSONAL DATA
Tendring DC,http://statistics.data.gov.uk/id/local-authority-district/22UN,Life Opportunities,5480 - HRA - Repair & Maintenance,2008 - Responsive Maintenance - Floor Wall And Ceiling Fi,23/07/2013,1053601-1,537.5,REDACTED PERSONAL DATA,REDACTED PERSONAL DATA
Tendring DC,http://statistics.data.gov.uk/id/local-authority-district/22UN,Life Opportunities,5240 - HRA - Managing Tenancies,5248 - Estate Management Expenses,30/07/2013,7009442-1,77.4,REDACTED COMMERCIAL CONFIDENTIALITY,REDACTED COMMERCIAL CONFIDENTIALITY
Tendring DC,http://statistics.data.gov.uk/id/local-authority-district/22UN,Life Opportunities,5960 - Recreation Grounds,2304 - Energy Costs - Electricity,23/07/2013,1053699-1,90.18,2100197 - British Gas Trading Ltd,BG JUNE 2013
Tendring DC,http://statistics.data.gov.uk/id/local-authority-district/22UN,Life Opportunities,6080 - Shops & Kiosks,2304 - Energy Costs - Electricity,23/07/2013,1053699-2,63.48,2100197 - British Gas Trading Ltd,BG JUNE 2013
Tendring DC,http://statistics.data.gov.uk/id/local-authority-district/22UN,Life Opportunities,6000 - Beach Hut Sites,2304 - Energy Costs - Electricity,23/07/2013,1053699-3,37.38,2100197 - British Gas Trading Ltd,BG JUNE 2013
Tendring DC,http://statistics.data.gov.uk/id/local-authority-district/22UN,Life Opportunities,6080 - Shops & Kiosks,2304 - Energy Costs - Electricity,23/07/2013,1053699-4,477.55,2100197 - British Gas Trading Ltd,BG JUNE 2013
Tendring DC,http://statistics.data.gov.uk/id/local-authority-district/22UN,Life Opportunities,5820 - Harwich Sports Centre,2304 - Energy Costs - Electricity,23/07/2013,1053699-5,358.78,2100197 - British Gas Trading Ltd,BG JUNE 2013
Tendring DC,http://statistics.data.gov.uk/id/local-authority-district/22UN,Life Opportunities,5860 - Manningtree Sports Centre,2304 - Energy Costs - Electricity,23/07/2013,1053699-6,798.3,2100197 - British Gas Trading Ltd,BG JUNE 2013
Tendring DC,http://statistics.data.gov.uk/id/local-authority-district/22UN,Life Opportunities,6080 - Shops & Kiosks,2304 - Energy Costs - Electricity,23/07/2013,1053699-7,-46.91,2100197 - British Gas Trading Ltd,BG JUNE 2013
Tendring DC,http://statistics.data.gov.uk/id/local-authority-district/22UN,Life Opportunities,6000 - Beach Hut Sites,2304 - Energy Costs - Electricity,23/07/2013,1053699-8,-20.38,2100197 - British Gas Trading Ltd,BG JUNE 2013
Tendring DC,http://statistics.data.gov.uk/id/local-authority-district/22UN,Life Opportunities,8520 - Frinton & Walton Swimming Pool,2304 - Energy Costs - Electricity,30/07/2013,1053856-1,171.32,2100197 - British Gas Trading Ltd,WALTON POOL
Tendring DC,http://statistics.data.gov.uk/id/local-authority-district/22UN,Life Opportunities,H805 - Major Refurbishment of Heating,C200 - Main Contractor,09/07/2013,2109496-1,89.33,REDACTED PERSONAL DATA,REDACTED PERSONAL DATA
Tendring DC,http://statistics.data.gov.uk/id/local-authority-district/22UN,Life Opportunities,5440 - HRA - Communal Electricity,2304 - Energy Costs - Electricity,23/07/2013,2110126-1,789.23,2100197 - British Gas Trading Ltd,Jun-13
Tendring DC,http://statistics.data.gov.uk/id/local-authority-district/22UN,Life Opportunities,5440 - HRA - Communal Electricity,2304 - Energy Costs - Electricity,23/07/2013,2110126-2,-102.49,2100197 - British Gas Trading Ltd,Jun-13
Tendring DC,http://statistics.data.gov.uk/id/local-authority-district/22UN,Life Opportunities,5340 - HRA - Communal Central Heating,2304 - Energy Costs - Electricity,23/07/2013,2110126-3,996.73,2100197 - British Gas Trading Ltd,Jun-13
Tendring DC,http://statistics.data.gov.uk/id/local-authority-district/22UN,Life Opportunities,5360 - HRA - Sheltered Units,2304 - Energy Costs - Electricity,23/07/2013,2110126-4,264.63,2100197 - British Gas Trading Ltd,Jun-13
Tendring DC,http://statistics.data.gov.uk/id/local-authority-district/22UN,Life Opportunities,5440 - HRA - Communal Electricity,2304 - Energy Costs - Electricity,23/07/2013,2110126-5,9341.03,2100197 - British Gas Trading Ltd,Jun-13
Tendring DC,http://statistics.data.gov.uk/id/local-authority-district/22UN,Life Opportunities,5440 - HRA - Communal Electricity,2304 - Energy Costs - Electricity,23/07/2013,2110126-6,-3277.16,2100197 - British Gas Trading Ltd,Jun-13
Tendring DC,http://statistics.data.gov.uk/id/local-authority-district/22UN,Life Opportunities,6740 - Careline,2304 - Energy Costs - Electricity,23/07/2013,2110127-1,51.2,2100197 - British Gas Trading Ltd,Britishg Gas Electric
Tendring DC,http://statistics.data.gov.uk/id/local-authority-district/22UN,Life Opportunities,6740 - Careline,2304 - Energy Costs - Electricity,23/07/2013,2110129-1,196.35,2100197 - British Gas Trading Ltd,Britishg Gas Electric
Tendring DC,http://statistics.data.gov.uk/id/local-authority-district/22UN,Life Opportunities,6740 - Careline,2304 - Energy Costs - Electricity,23/07/2013,2110129-2,-72.52,2100197 - British Gas Trading Ltd,Britishg Gas Electric
Tendring DC,http://statistics.data.gov.uk/id/local-authority-district/22UN,Life Opportunities,6740 - Careline,2304 - Energy Costs - Electricity,23/07/2013,2110130-1,114.7,2100197 - British Gas Trading Ltd,British Gas Electric
Tendring DC,http://statistics.data.gov.uk/id/local-authority-district/22UN,Life Opportunities,H805 - Major Refurbishment of Heating,C200 - Main Contractor,02/07/2013,7700443-1,622.33,2100138 - British Gas Trading Ltd,29A VICTORIA PLACE
Tendring DC,http://statistics.data.gov.uk/id/local-authority-district/22UN,Life Opportunities,H805 - Major Refurbishment of Heating,C200 - Main Contractor,02/07/2013,7700444-1,622.33,REDACTED PERSONAL DATA,REDACTED PERSONAL DATA
Tendring DC,http://statistics.data.gov.uk/id/local-authority-district/22UN,Life Opportunities,5240 - HRA - Managing Tenancies,5249 - Housing ASB Expenses,02/07/2013,1053328-1,94.81,REDACTED COMMERCIAL CONFIDENTIALITY,REDACTED COMMERCIAL CONFIDENTIALITY
Tendring DC,http://statistics.data.gov.uk/id/local-authority-district/22UN,Life Opportunities,1920 - Mill Lane Depot,4710 - Telephones - Charges,02/07/2013,1053340-1,37.91,2100168 - British Telecommunications plc,BT BILL LO JUNE 13
Tendring DC,http://statistics.data.gov.uk/id/local-authority-district/22UN,Life Opportunities,5820 - Harwich Sports Centre,4710 - Telephones - Charges,02/07/2013,1053340-10,356.98,2100168 - British Telecommunications plc,BT BILL LO JUNE 13
Tendring DC,http://statistics.data.gov.uk/id/local-authority-district/22UN,Life Opportunities,8520 - Frinton & Walton Swimming Pool,4710 - Telephones - Charges,02/07/2013,1053340-11,274.94,2100168 - British Telecommunications plc,BT BILL LO JUNE 13
Tendring DC,http://statistics.data.gov.uk/id/local-authority-district/22UN,Life Opportunities,7600 - Tourist Information Centres,4710 - Telephones - Charges,02/07/2013,1053340-12,142.26,2100168 - British Telecommunications plc,BT BILL LO JUNE 13
Tendring DC,http://statistics.data.gov.uk/id/local-authority-district/22UN,Life Opportunities,6160 - Princes Theatre,4710 - Telephones - Charges,02/07/2013,1053340-13,253.56,2100168 - British Telecommunications plc,BT BILL LO JUNE 13
Tendring DC,http://statistics.data.gov.uk/id/local-authority-district/22UN,Life Opportunities,6060 - First Aid Posts,4710 - Telephones - Charges,02/07/2013,1053340-14,81.26,2100168 - British Telecommunications plc,BT BILL LO JUNE 13
Tendring DC,http://statistics.data.gov.uk/id/local-authority-district/22UN,Life Opportunities,6040 - Miscellaneous Seafront Activities,4710 - Telephones - Charges,02/07/2013,1053340-15,245.91,2100168 - British Telecommunications plc,BT BILL LO JUNE 13
Tendring DC,http://statistics.data.gov.uk/id/local-authority-district/22UN,Life Opportunities,1915 - Low Road Depot,4710 - Telephones - Charges,02/07/2013,1053340-2,36.49,2100168 - British Telecommunications plc,BT BILL LO JUNE 13
Tendring DC,http://statistics.data.gov.uk/id/local-authority-district/22UN,Life Opportunities,8125 - Horticultural Services,4710 - Telephones - Charges,02/07/2013,1053340-3,48.09,2100168 - British Telecommunications plc,BT BILL LO JUNE 13
Tendring DC,http://statistics.data.gov.uk/id/local-authority-district/22UN,Life Opportunities,8510 - Dovercourt Swimming Pool & All Weather Facilities,4710 - Telephones - Charges,02/07/2013,1053340-4,325.08,2100168 - British Telecommunications plc,BT BILL LO JUNE 13
Tendring DC,http://statistics.data.gov.uk/id/local-authority-district/22UN,Life Opportunities,5800 - Brightlingsea Sports Centre,4710 - Telephones - Charges,02/07/2013,1053340-5,252.35,2100168 - British Telecommunications plc,BT BILL LO JUNE 13
Tendring DC,http://statistics.data.gov.uk/id/local-authority-district/22UN,Life Opportunities,4540 - Cemeteries,4710 - Telephones - Charges,02/07/2013,1053340-6,37.72,2100168 - British Telecommunications plc,BT BILL LO JUNE 13
Tendring DC,http://statistics.data.gov.uk/id/local-authority-district/22UN,Life Opportunities,4560 - Crematorium,4710 - Telephones - Charges,02/07/2013,1053340-7,147.48,2100168 - British Telecommunications plc,BT BILL LO JUNE 13
Tendring DC,http://statistics.data.gov.uk/id/local-authority-district/22UN,Life Opportunities,8540 - Leisure Centre Clacton,4710 - Telephones - Charges,02/07/2013,1053340-8,791.06,2100168 - British Telecommunications plc,BT BILL LO JUNE 13
Tendring DC,http://statistics.data.gov.uk/id/local-authority-district/22UN,Life Opportunities,5860 - Manningtree Sports Centre,4710 - Telephones - Charges,02/07/2013,1053340-9,361.03,2100168 - British Telecommunications plc,BT BILL LO JUNE 13
Tendring DC,http://statistics.data.gov.uk/id/local-authority-district/22UN,Life Opportunities,8530 - Brightlingsea Swimming Pool,4710 - Telephones - Charges,09/07/2013,1053462-1,57.33,2100168 - British Telecommunications plc,
Tendring DC,http://statistics.data.gov.uk/id/local-authority-district/22UN,Life Opportunities,5800 - Brightlingsea Sports Centre,5160 - Advertising,23/07/2013,1053629-1,609.75,2106306 - British Telecommunications plc,BT
Tendring DC,http://statistics.data.gov.uk/id/local-authority-district/22UN,Life Opportunities,6740 - Careline,4710 - Telephones - Charges,02/07/2013,2109407-1,118.9,2100168 - British Telecommunications plc,BT Bill - Lone Worker
Tendring DC,http://statistics.data.gov.uk/id/local-authority-district/22UN,Life Opportunities,6740 - Careline,4710 - Telephones - Charges,02/07/2013,2109408-1,278.78,2100168 - British Telecommunications plc,BT Bill PNC
Tendring DC,http://statistics.data.gov.uk/id/local-authority-district/22UN,Life Opportunities,1760 - IT Direct Service Costs,4715 - Data Communication Charge,02/07/2013,2109439-1,36.36,2100168 - British Telecommunications plc,
Tendring DC,http://statistics.data.gov.uk/id/local-authority-district/22UN,Life Opportunities,1760 - IT Direct Service Costs,4715 - Data Communication Charge,09/07/2013,2109594-1,44.7,2100168 - British Telecommunications plc,40152531 June 13
Tendring DC,http://statistics.data.gov.uk/id/local-authority-district/22UN,Life Opportunities,C367 - Application Interfacing,C276 - Licences for Software,09/07/2013,2109528-1,1600,2109821 - BT Convergent Solutions Ltd,BT iNet
Tendring DC,http://statistics.data.gov.uk/id/local-authority-district/22UN,Life Opportunities,1840 - Central Telephone Service,4710 - Telephones - Charges,09/07/2013,2109528-2,500,2109821 - BT Convergent Solutions Ltd,BT iNet
Tendring DC,http://statistics.data.gov.uk/id/local-authority-district/22UN,Life Opportunities,C322 - Upgrade of Contact Centre software,C276 - Licences for Software,09/07/2013,2109530-1,3919.54,2109821 - BT Convergent Solutions Ltd,BT iNet
Tendring DC,http://statistics.data.gov.uk/id/local-authority-district/22UN,Life Opportunities,8540 - Leisure Centre Clacton,2700 - Cleaning Materials,02/07/2013,1053333-1,78.41,2101624 - Bunzl,CLEANING MATERIALS
Tendring DC,http://statistics.data.gov.uk/id/local-authority-district/22UN,Life Opportunities,8150 - Office Cleaning,4080 - Materials & Consumables,02/07/2013,1053361-1,-152.46,2101624 - Bunzl,Bunzl
Tendring DC,http://statistics.data.gov.uk/id/local-authority-district/22UN,Life Opportunities,8540 - Leisure Centre Clacton,2700 - Cleaning Materials,09/07/2013,1053460-1,370.71,2101624 - Bunzl,CLEANING MATERIALS
Tendring DC,http://statistics.data.gov.uk/id/local-authority-district/22UN,Life Opportunities,8520 - Frinton & Walton Swimming Pool,2700 - Cleaning Materials,23/07/2013,1053625-1,76.17,2101624 - Bunzl,FRINTON WALTON POOL
Tendring DC,http://statistics.data.gov.uk/id/local-authority-district/22UN,Life Opportunities,5820 - Harwich Sports Centre,2700 - Cleaning Materials,30/07/2013,1053842-1,29.16,2101624 - Bunzl,CLEANING MATERIALS
Tendring DC,http://statistics.data.gov.uk/id/local-authority-district/22UN,Life Opportunities,5820 - Harwich Sports Centre,2700 - Cleaning Materials,09/07/2013,2109512-1,61.4,2101624 - Bunzl,Anti-Static Wipes
Tendring DC,http://statistics.data.gov.uk/id/local-authority-district/22UN,Life Opportunities,8520 - Frinton & Walton Swimming Pool,2700 - Cleaning Materials,09/07/2013,2109564-1,147.02,REDACTED PERSONAL DATA,REDACTED PERSONAL DATA
Tendring DC,http://statistics.data.gov.uk/id/local-authority-district/22UN,Life Opportunities,8510 - Dovercourt Swimming Pool & All Weather Facilities,2700 - Cleaning Materials,16/07/2013,2109799-1,293.48,REDACTED PERSONAL DATA,REDACTED PERSONAL DATA
Tendring DC,http://statistics.data.gov.uk/id/local-authority-district/22UN,Life Opportunities,5860 - Manningtree Sports Centre,2700 - Cleaning Materials,16/07/2013,2109809-1,76.78,2101624 - Bunzl,V-Sweeper Maps x 2
Tendring DC,http://statistics.data.gov.uk/id/local-authority-district/22UN,Life Opportunities,5860 - Manningtree Sports Centre,2700 - Cleaning Materials,16/07/2013,2109857-1,180.93,2101624 - Bunzl,Cleaning Supplies
Tendring DC,http://statistics.data.gov.uk/id/local-authority-district/22UN,Life Opportunities,8150 - Office Cleaning,4080 - Materials & Consumables,23/07/2013,2110000-1,545.59,2101624 - Bunzl,Bunzl
Tendring DC,http://statistics.data.gov.uk/id/local-authority-district/22UN,Life Opportunities,8150 - Office Cleaning,4080 - Materials & Consumables,23/07/2013,2110001-1,199.65,2101624 - Bunzl,Bunzl
Tendring DC,http://statistics.data.gov.uk/id/local-authority-district/22UN,Life Opportunities,8150 - Office Cleaning,4080 - Materials & Consumables,30/07/2013,2110151-1,19,2101624 - Bunzl,Bunzl
Tendring DC,http://statistics.data.gov.uk/id/local-authority-district/22UN,Life Opportunities,8520 - Frinton & Walton Swimming Pool,2700 - Cleaning Materials,02/07/2013,7700442-1,116.92,2101624 - Bunzl,FRINTON & WALTON POOL
Tendring DC,http://statistics.data.gov.uk/id/local-authority-district/22UN,Life Opportunities,8150 - Office Cleaning,4080 - Materials & Consumables,02/07/2013,7700453-1,117.64,2101624 - Bunzl,
Tendring DC,http://statistics.data.gov.uk/id/local-authority-district/22UN,Life Opportunities,8150 - Office Cleaning,4080 - Materials & Consumables,02/07/2013,7700454-1,97.73,2101624 - Bunzl,BUNZL
Tendring DC,http://statistics.data.gov.uk/id/local-authority-district/22UN,Life Opportunities,8150 - Office Cleaning,4080 - Materials & Consumables,02/07/2013,7700455-1,17.77,2101624 - Bunzl,BUNZL
Tendring DC,http://statistics.data.gov.uk/id/local-authority-district/22UN,Life Opportunities,8150 - Office Cleaning,4080 - Materials & Consumables,02/07/2013,7700456-1,90.92,2101624 - Bunzl,BUNZL
Tendring DC,http://statistics.data.gov.uk/id/local-authority-district/22UN,Life Opportunities,8510 - Dovercourt Swimming Pool & All Weather Facilities,4400 - Maintenance Under Service Agreements,02/07/2013,1053339-1,1099.76,2100280 - C H Lindsey & Son Ltd,SERVICE AND GAS SAFETY
Tendring DC,http://statistics.data.gov.uk/id/local-authority-district/22UN,Life Opportunities,8520 - Frinton & Walton Swimming Pool,4400 - Maintenance Under Service Agreements,02/07/2013,1053339-2,833.15,2100280 - C H Lindsey & Son Ltd,SERVICE AND GAS SAFETY
Tendring DC,http://statistics.data.gov.uk/id/local-authority-district/22UN,Life Opportunities,8540 - Leisure Centre Clacton,4400 - Maintenance Under Service Agreements,02/07/2013,1053339-3,1399.69,2100280 - C H Lindsey & Son Ltd,SERVICE AND GAS SAFETY
Tendring DC,http://statistics.data.gov.uk/id/local-authority-district/22UN,Life Opportunities,8510 - Dovercourt Swimming Pool & All Weather Facilities,2100 - Building Repairs,02/07/2013,1053339-4,878.88,2100280 - C H Lindsey & Son Ltd,SERVICE AND GAS SAFETY
Tendring DC,http://statistics.data.gov.uk/id/local-authority-district/22UN,Life Opportunities,8540 - Leisure Centre Clacton,2100 - Building Repairs,02/07/2013,1053339-5,58.09,2100280 - C H Lindsey & Son Ltd,SERVICE AND GAS SAFETY
Tendring DC,http://statistics.data.gov.uk/id/local-authority-district/22UN,Life Opportunities,8540 - Leisure Centre Clacton,2100 - Building Repairs,09/07/2013,1053458-1,198,2100280 - C H Lindsey & Son Ltd,EXT ISOLATER
Tendring DC,http://statistics.data.gov.uk/id/local-authority-district/22UN,Life Opportunities,8540 - Leisure Centre Clacton,2100 - Building Repairs,09/07/2013,1053459-1,354,2100280 - C H Lindsey & Son Ltd,SAFETY VALVE
Tendring DC,http://statistics.data.gov.uk/id/local-authority-district/22UN,Life Opportunities,8520 - Frinton & Walton Swimming Pool,4400 - Maintenance Under Service Agreements,23/07/2013,1053626-1,108.15,2100281 - Cannon Hygiene,FRINTON WALTON POOL
Tendring DC,http://statistics.data.gov.uk/id/local-authority-district/22UN,Life Opportunities,5820 - Harwich Sports Centre,4597 - Hired Services - Payments to Contractors,23/07/2013,1053627-1,58.2,2100281 - Cannon Hygiene,SANITARY DISPOSAL
Tendring DC,http://statistics.data.gov.uk/id/local-authority-district/22UN,Life Opportunities,5860 - Manningtree Sports Centre,4400 - Maintenance Under Service Agreements,16/07/2013,2109810-1,49.55,2100281 - Cannon Hygiene,Quarterly Charge Sanitary Units
Tendring DC,http://statistics.data.gov.uk/id/local-authority-district/22UN,Life Opportunities,8510 - Dovercourt Swimming Pool & All Weather Facilities,4300 - Printing & Stationery,30/07/2013,7700488-1,38.49,2100281 - Cannon Hygiene,DOVERCOURT POOL
Tendring DC,http://statistics.data.gov.uk/id/local-authority-district/22UN,Life Opportunities,1650 - Building Services Service Unit,4400 - Maintenance Under Service Agreements,16/07/2013,2109778-1,48.6,2100291 - Canon (UK) Ltd,SVS 01/08/13
Tendring DC,http://statistics.data.gov.uk/id/local-authority-district/22UN,Life Opportunities,1650 - Building Services Service Unit,4400 - Maintenance Under Service Agreements,16/07/2013,2109779-1,4.86,2100291 - Canon (UK) Ltd,Copies 2012
Tendring DC,http://statistics.data.gov.uk/id/local-authority-district/22UN,Life Opportunities,5360 - HRA - Sheltered Units,1700 - Training - Courses,02/07/2013,1053322-1,350,REDACTED COMMERCIAL CONFIDENTIALITY,REDACTED COMMERCIAL CONFIDENTIALITY
Tendring DC,http://statistics.data.gov.uk/id/local-authority-district/22UN,Life Opportunities,5240 - HRA - Managing Tenancies,5242 - Tenant Relations,09/07/2013,1053389-1,10,REDACTED PERSONAL DATA,REDACTED PERSONAL DATA
Tendring DC,http://statistics.data.gov.uk/id/local-authority-district/22UN,Life Opportunities,"1580 - Benefits, Revenues and Customer Contact SU",3312 - Car Allowances - Car Hire,09/07/2013,1053441-1,17,2104746 - CC Hire,CAR HIRE FOR RH
Tendring DC,http://statistics.data.gov.uk/id/local-authority-district/22UN,Life Opportunities,"1580 - Benefits, Revenues and Customer Contact SU",3312 - Car Allowances - Car Hire,09/07/2013,1053442-1,17,2104746 - CC Hire,CARE HIRE RH
Tendring DC,http://statistics.data.gov.uk/id/local-authority-district/22UN,Life Opportunities,"1580 - Benefits, Revenues and Customer Contact SU",3312 - Car Allowances - Car Hire,09/07/2013,1053443-1,25,2104746 - CC Hire,CAR HIRE FOR COURT SECTION
Tendring DC,http://statistics.data.gov.uk/id/local-authority-district/22UN,Life Opportunities,"1580 - Benefits, Revenues and Customer Contact SU",3062 - Running Costs - Petrol,09/07/2013,1053443-2,5.83,2104746 - CC Hire,CAR HIRE FOR COURT SECTION
Tendring DC,http://statistics.data.gov.uk/id/local-authority-district/22UN,Life Opportunities,"1580 - Benefits, Revenues and Customer Contact SU",3312 - Car Allowances - Car Hire,23/07/2013,2110131-1,25,2104746 - CC Hire,Car Hire for Court Section
Tendring DC,http://statistics.data.gov.uk/id/local-authority-district/22UN,Life Opportunities,"1580 - Benefits, Revenues and Customer Contact SU",3312 - Car Allowances - Car Hire,23/07/2013,2110132-1,17,2104746 - CC Hire,Car Hire C/T
Tendring DC,http://statistics.data.gov.uk/id/local-authority-district/22UN,Life Opportunities,"1580 - Benefits, Revenues and Customer Contact SU",3312 - Car Allowances - Car Hire,23/07/2013,2110133-1,17,2104746 - CC Hire,Car Hire C/T
Tendring DC,http://statistics.data.gov.uk/id/local-authority-district/22UN,Life Opportunities,7840 - Concessionary Rail Fares,4602 - Hired Services - Purchase of Railcards,02/07/2013,1053310-1,15,2101847 - Chelmsford City Council,PAYMENT FOR ADMIN RAILCARDS INCREASED PRICE
Tendring DC,http://statistics.data.gov.uk/id/local-authority-district/22UN,Life Opportunities,1880 - Office Accommodation Expenses,2100 - Building Repairs,09/07/2013,2109533-1,355.38,2100205 - Chelmsford Safety Supplies Ltd,Chelmsford Safety
Tendring DC,http://statistics.data.gov.uk/id/local-authority-district/22UN,Life Opportunities,6740 - Careline,4200 - Clothing & Uniforms,16/07/2013,2109845-1,283.95,2100205 - Chelmsford Safety Supplies Ltd,Polo Shirts with Logo
Tendring DC,http://statistics.data.gov.uk/id/local-authority-district/22UN,Life Opportunities,5360 - HRA - Sheltered Units,4040 - Equipment & Tools,30/07/2013,7009438-1,8.24,REDACTED COMMERCIAL CONFIDENTIALITY,REDACTED COMMERCIAL CONFIDENTIALITY
Tendring DC,http://statistics.data.gov.uk/id/local-authority-district/22UN,Life Opportunities,5240 - HRA - Managing Tenancies,4644 - Energy Performance Certificate Costs,30/07/2013,7700460-1,45,REDACTED PERSONAL DATA,REDACTED PERSONAL DATA
Tendring DC,http://statistics.data.gov.uk/id/local-authority-district/22UN,Life Opportunities,5240 - HRA - Managing Tenancies,4644 - Energy Performance Certificate Costs,30/07/2013,7700461-1,45,REDACTED PERSONAL DATA,REDACTED PERSONAL DATA
Tendring DC,http://statistics.data.gov.uk/id/local-authority-district/22UN,Life Opportunities,5240 - HRA - Managing Tenancies,4644 - Energy Performance Certificate Costs,30/07/2013,7700462-1,45,REDACTED PERSONAL DATA,REDACTED PERSONAL DATA
Tendring DC,http://statistics.data.gov.uk/id/local-authority-district/22UN,Life Opportunities,5240 - HRA - Managing Tenancies,4644 - Energy Performance Certificate Costs,30/07/2013,7700463-1,45,REDACTED PERSONAL DATA,REDACTED PERSONAL DATA
Tendring DC,http://statistics.data.gov.uk/id/local-authority-district/22UN,Life Opportunities,5240 - HRA - Managing Tenancies,4644 - Energy Performance Certificate Costs,30/07/2013,7700464-1,45,REDACTED PERSONAL DATA,REDACTED PERSONAL DATA
Tendring DC,http://statistics.data.gov.uk/id/local-authority-district/22UN,Life Opportunities,5240 - HRA - Managing Tenancies,4644 - Energy Performance Certificate Costs,30/07/2013,7700465-1,45,REDACTED PERSONAL DATA,REDACTED PERSONAL DATA
Tendring DC,http://statistics.data.gov.uk/id/local-authority-district/22UN,Life Opportunities,5240 - HRA - Managing Tenancies,4644 - Energy Performance Certificate Costs,30/07/2013,7700466-1,45,REDACTED PERSONAL DATA,REDACTED PERSONAL DATA
Tendring DC,http://statistics.data.gov.uk/id/local-authority-district/22UN,Life Opportunities,5240 - HRA - Managing Tenancies,4644 - Energy Performance Certificate Costs,30/07/2013,7700467-1,50,REDACTED PERSONAL DATA,REDACTED PERSONAL DATA
Tendring DC,http://statistics.data.gov.uk/id/local-authority-district/22UN,Life Opportunities,5240 - HRA - Managing Tenancies,4644 - Energy Performance Certificate Costs,30/07/2013,7700468-1,45,REDACTED PERSONAL DATA,REDACTED PERSONAL DATA
Tendring DC,http://statistics.data.gov.uk/id/local-authority-district/22UN,Life Opportunities,5240 - HRA - Managing Tenancies,4644 - Energy Performance Certificate Costs,30/07/2013,7700469-1,45,REDACTED PERSONAL DATA,REDACTED PERSONAL DATA
Tendring DC,http://statistics.data.gov.uk/id/local-authority-district/22UN,Life Opportunities,5240 - HRA - Managing Tenancies,4644 - Energy Performance Certificate Costs,30/07/2013,7700470-1,45,REDACTED PERSONAL DATA,REDACTED PERSONAL DATA
Tendring DC,http://statistics.data.gov.uk/id/local-authority-district/22UN,Life Opportunities,5240 - HRA - Managing Tenancies,4644 - Energy Performance Certificate Costs,30/07/2013,7700471-1,45,REDACTED PERSONAL DATA,REDACTED PERSONAL DATA
Tendring DC,http://statistics.data.gov.uk/id/local-authority-district/22UN,Life Opportunities,5240 - HRA - Managing Tenancies,4644 - Energy Performance Certificate Costs,30/07/2013,7700472-1,45,REDACTED PERSONAL DATA,REDACTED PERSONAL DATA
Tendring DC,http://statistics.data.gov.uk/id/local-authority-district/22UN,Life Opportunities,5240 - HRA - Managing Tenancies,4644 - Energy Performance Certificate Costs,30/07/2013,7700473-1,45,REDACTED PERSONAL DATA,REDACTED PERSONAL DATA
Tendring DC,http://statistics.data.gov.uk/id/local-authority-district/22UN,Life Opportunities,5240 - HRA - Managing Tenancies,4644 - Energy Performance Certificate Costs,30/07/2013,7700474-1,45,REDACTED PERSONAL DATA,REDACTED PERSONAL DATA
Tendring DC,http://statistics.data.gov.uk/id/local-authority-district/22UN,Life Opportunities,5240 - HRA - Managing Tenancies,4644 - Energy Performance Certificate Costs,30/07/2013,7700475-1,50,REDACTED PERSONAL DATA,REDACTED PERSONAL DATA
Tendring DC,http://statistics.data.gov.uk/id/local-authority-district/22UN,Life Opportunities,5240 - HRA - Managing Tenancies,4644 - Energy Performance Certificate Costs,30/07/2013,7700476-1,45,REDACTED PERSONAL DATA,REDACTED PERSONAL DATA
Tendring DC,http://statistics.data.gov.uk/id/local-authority-district/22UN,Life Opportunities,5240 - HRA - Managing Tenancies,4644 - Energy Performance Certificate Costs,30/07/2013,7700477-1,45,REDACTED PERSONAL DATA,REDACTED PERSONAL DATA
Tendring DC,http://statistics.data.gov.uk/id/local-authority-district/22UN,Life Opportunities,5240 - HRA - Managing Tenancies,4644 - Energy Performance Certificate Costs,30/07/2013,7700478-1,45,REDACTED PERSONAL DATA,REDACTED PERSONAL DATA
Tendring DC,http://statistics.data.gov.uk/id/local-authority-district/22UN,Life Opportunities,5240 - HRA - Managing Tenancies,4644 - Energy Performance Certificate Costs,30/07/2013,7700479-1,45,REDACTED PERSONAL DATA,REDACTED PERSONAL DATA
Tendring DC,http://statistics.data.gov.uk/id/local-authority-district/22UN,Life Opportunities,5240 - HRA - Managing Tenancies,4644 - Energy Performance Certificate Costs,30/07/2013,7700480-1,50,REDACTED PERSONAL DATA,REDACTED PERSONAL DATA
Tendring DC,http://statistics.data.gov.uk/id/local-authority-district/22UN,Life Opportunities,5240 - HRA - Managing Tenancies,4644 - Energy Performance Certificate Costs,30/07/2013,7700481-1,45,REDACTED PERSONAL DATA,REDACTED PERSONAL DATA
Tendring DC,http://statistics.data.gov.uk/id/local-authority-district/22UN,Life Opportunities,5240 - HRA - Managing Tenancies,4644 - Energy Performance Certificate Costs,30/07/2013,7700482-1,45,REDACTED PERSONAL DATA,REDACTED PERSONAL DATA
Tendring DC,http://statistics.data.gov.uk/id/local-authority-district/22UN,Life Opportunities,5240 - HRA - Managing Tenancies,4644 - Energy Performance Certificate Costs,30/07/2013,7700499-1,45,REDACTED PERSONAL DATA,REDACTED PERSONAL DATA
Tendring DC,http://statistics.data.gov.uk/id/local-authority-district/22UN,Life Opportunities,5240 - HRA - Managing Tenancies,4644 - Energy Performance Certificate Costs,30/07/2013,7700500-1,45,REDACTED PERSONAL DATA,REDACTED PERSONAL DATA
Tendring DC,http://statistics.data.gov.uk/id/local-authority-district/22UN,Life Opportunities,5240 - HRA - Managing Tenancies,4644 - Energy Performance Certificate Costs,30/07/2013,7700501-1,45,REDACTED PERSONAL DATA,REDACTED PERSONAL DATA
Tendring DC,http://statistics.data.gov.uk/id/local-authority-district/22UN,Life Opportunities,5240 - HRA - Managing Tenancies,4644 - Energy Performance Certificate Costs,30/07/2013,7700502-1,45,REDACTED PERSONAL DATA,REDACTED PERSONAL DATA
Tendring DC,http://statistics.data.gov.uk/id/local-authority-district/22UN,Life Opportunities,"1580 - Benefits, Revenues and Customer Contact SU",4355 - Books & Periodicals,23/07/2013,1053637-1,442.99,2100265 - Child Poverty Action Group,CPAG X 15
Tendring DC,http://statistics.data.gov.uk/id/local-authority-district/22UN,Life Opportunities,5800 - Brightlingsea Sports Centre,5160 - Advertising,02/07/2013,7700435-1,104,2100246 - Chronicle Publishing Services,CHRONICLE PUBLISH SERVICES
Tendring DC,http://statistics.data.gov.uk/id/local-authority-district/22UN,Life Opportunities,6160 - Princes Theatre,5308 - Ice Cream,02/07/2013,2109461-1,119.56,REDACTED COMMERCIAL CONFIDENTIALITY,REDACTED COMMERCIAL CONFIDENTIALITY
Tendring DC,http://statistics.data.gov.uk/id/local-authority-district/22UN,Life Opportunities,6160 - Princes Theatre,5308 - Ice Cream,30/07/2013,7700493-1,54.52,2108623 - CICC Ltd,CONFECTIONARY FOR THEATRE
Tendring DC,http://statistics.data.gov.uk/id/local-authority-district/22UN,Life Opportunities,6160 - Princes Theatre,4622 - Hired Services - Artistes and Production Companies,30/07/2013,7700494-1,1077.4,2110847 - Clacton Concert Orchestra,CCO & HRBLBB
Tendring DC,http://statistics.data.gov.uk/id/local-authority-district/22UN,Life Opportunities,5260 - HRA - Rent Collection And Accounting,4461 - Court Fees,01/07/2013,1053538-1,1030,REDACTED COMMERCIAL CONFIDENTIALITY,REDACTED COMMERCIAL CONFIDENTIALITY
Tendring DC,http://statistics.data.gov.uk/id/local-authority-district/22UN,Life Opportunities,6620 - Corporate Management - General,5190 - Bank Commission Charges,01/07/2013,1053538-2,2,REDACTED COMMERCIAL CONFIDENTIALITY,REDACTED COMMERCIAL CONFIDENTIALITY
Tendring DC,http://statistics.data.gov.uk/id/local-authority-district/22UN,Life Opportunities,1650 - Building Services Service Unit,4355 - Books & Periodicals,01/07/2013,1053538-3,33.6,REDACTED COMMERCIAL CONFIDENTIALITY,REDACTED COMMERCIAL CONFIDENTIALITY
Tendring DC,http://statistics.data.gov.uk/id/local-authority-district/22UN,Life Opportunities,5820 - Harwich Sports Centre,4597 - Hired Services - Payments to Contractors,23/07/2013,1053674-1,782.5,2111358 - Colchester United FC Ltd Youth,SOCCER CLASSES
Tendring DC,http://statistics.data.gov.uk/id/local-authority-district/22UN,Life Opportunities,8540 - Leisure Centre Clacton,4597 - Hired Services - Payments to Contractors,16/07/2013,2109815-1,713,2111358 - Colchester United FC Ltd Youth,Soccer Coaching
Tendring DC,http://statistics.data.gov.uk/id/local-authority-district/22UN,Life Opportunities,"1580 - Benefits, Revenues and Customer Contact SU",4462 - Bailiffs and Tracing Agent Fees re debt recovery,02/07/2013,1053353-1,202.5,2100381 - Collect Services Ltd,VAT ON FEES COLLECTED NNDR
Tendring DC,http://statistics.data.gov.uk/id/local-authority-district/22UN,Life Opportunities,"1580 - Benefits, Revenues and Customer Contact SU",4462 - Bailiffs and Tracing Agent Fees re debt recovery,02/07/2013,1053353-2,-202.5,2100381 - Collect Services Ltd,VAT ON FEES COLLECTED NNDR
Tendring DC,http://statistics.data.gov.uk/id/local-authority-district/22UN,Life Opportunities,"1580 - Benefits, Revenues and Customer Contact SU",4462 - Bailiffs and Tracing Agent Fees re debt recovery,02/07/2013,1053354-1,2556.05,2100381 - Collect Services Ltd,VAT ON FEES COLLECTED CT
Tendring DC,http://statistics.data.gov.uk/id/local-authority-district/22UN,Life Opportunities,"1580 - Benefits, Revenues and Customer Contact SU",4462 - Bailiffs and Tracing Agent Fees re debt recovery,02/07/2013,1053354-2,-2556.05,2100381 - Collect Services Ltd,VAT ON FEES COLLECTED CT
Tendring DC,http://statistics.data.gov.uk/id/local-authority-district/22UN,Life Opportunities,"1580 - Benefits, Revenues and Customer Contact SU",4462 - Bailiffs and Tracing Agent Fees re debt recovery,02/07/2013,1053354-3,67.41,2100381 - Collect Services Ltd,VAT ON FEES COLLECTED CT
Tendring DC,http://statistics.data.gov.uk/id/local-authority-district/22UN,Life Opportunities,"1580 - Benefits, Revenues and Customer Contact SU",4462 - Bailiffs and Tracing Agent Fees re debt recovery,02/07/2013,1053354-4,-67.41,2100381 - Collect Services Ltd,VAT ON FEES COLLECTED CT
Tendring DC,http://statistics.data.gov.uk/id/local-authority-district/22UN,Life Opportunities,"1580 - Benefits, Revenues and Customer Contact SU",5189 - External Debt Recovery Commission,30/07/2013,1053878-1,214.85,2100381 - Collect Services Ltd,15% COMMISSION RECOVERED
Tendring DC,http://statistics.data.gov.uk/id/local-authority-district/22UN,Life Opportunities,"1580 - Benefits, Revenues and Customer Contact SU",4462 - Bailiffs and Tracing Agent Fees re debt recovery,30/07/2013,1053879-1,998.76,2100381 - Collect Services Ltd,VAT ON FEES COLLECTED NNDR
Tendring DC,http://statistics.data.gov.uk/id/local-authority-district/22UN,Life Opportunities,"1580 - Benefits, Revenues and Customer Contact SU",4462 - Bailiffs and Tracing Agent Fees re debt recovery,30/07/2013,1053879-2,-998.76,2100381 - Collect Services Ltd,VAT ON FEES COLLECTED NNDR
Tendring DC,http://statistics.data.gov.uk/id/local-authority-district/22UN,Life Opportunities,"1580 - Benefits, Revenues and Customer Contact SU",4462 - Bailiffs and Tracing Agent Fees re debt recovery,09/07/2013,2109584-1,7,2100381 - Collect Services Ltd,VAT on fees collected CT
Tendring DC,http://statistics.data.gov.uk/id/local-authority-district/22UN,Life Opportunities,"1580 - Benefits, Revenues and Customer Contact SU",4462 - Bailiffs and Tracing Agent Fees re debt recovery,09/07/2013,2109584-2,-7,2100381 - Collect Services Ltd,VAT on fees collected CT
Tendring DC,http://statistics.data.gov.uk/id/local-authority-district/22UN,Life Opportunities,"1580 - Benefits, Revenues and Customer Contact SU",4462 - Bailiffs and Tracing Agent Fees re debt recovery,09/07/2013,2109584-3,36.5,2100381 - Collect Services Ltd,VAT on fees collected CT
Tendring DC,http://statistics.data.gov.uk/id/local-authority-district/22UN,Life Opportunities,"1580 - Benefits, Revenues and Customer Contact SU",4462 - Bailiffs and Tracing Agent Fees re debt recovery,09/07/2013,2109584-4,-36.5,2100381 - Collect Services Ltd,VAT on fees collected CT
Tendring DC,http://statistics.data.gov.uk/id/local-authority-district/22UN,Life Opportunities,"1580 - Benefits, Revenues and Customer Contact SU",4462 - Bailiffs and Tracing Agent Fees re debt recovery,09/07/2013,2109584-5,2105.21,2100381 - Collect Services Ltd,VAT on fees collected CT
Tendring DC,http://statistics.data.gov.uk/id/local-authority-district/22UN,Life Opportunities,"1580 - Benefits, Revenues and Customer Contact SU",4462 - Bailiffs and Tracing Agent Fees re debt recovery,09/07/2013,2109584-6,-2105.21,2100381 - Collect Services Ltd,VAT on fees collected CT
Tendring DC,http://statistics.data.gov.uk/id/local-authority-district/22UN,Life Opportunities,"1580 - Benefits, Revenues and Customer Contact SU",4462 - Bailiffs and Tracing Agent Fees re debt recovery,09/07/2013,2109585-1,284.2,2100381 - Collect Services Ltd,VAT on fees collected NNDR
Tendring DC,http://statistics.data.gov.uk/id/local-authority-district/22UN,Life Opportunities,"1580 - Benefits, Revenues and Customer Contact SU",4462 - Bailiffs and Tracing Agent Fees re debt recovery,09/07/2013,2109585-2,-284.2,2100381 - Collect Services Ltd,VAT on fees collected NNDR
Tendring DC,http://statistics.data.gov.uk/id/local-authority-district/22UN,Life Opportunities,"1580 - Benefits, Revenues and Customer Contact SU",4462 - Bailiffs and Tracing Agent Fees re debt recovery,16/07/2013,2109841-1,353.2,2100381 - Collect Services Ltd,VAT on Fees Collected NNDR
Tendring DC,http://statistics.data.gov.uk/id/local-authority-district/22UN,Life Opportunities,"1580 - Benefits, Revenues and Customer Contact SU",4462 - Bailiffs and Tracing Agent Fees re debt recovery,16/07/2013,2109841-2,-353.2,2100381 - Collect Services Ltd,VAT on Fees Collected NNDR
Tendring DC,http://statistics.data.gov.uk/id/local-authority-district/22UN,Life Opportunities,"1580 - Benefits, Revenues and Customer Contact SU",4462 - Bailiffs and Tracing Agent Fees re debt recovery,16/07/2013,2109842-1,10,2100381 - Collect Services Ltd,VAT on Fees Collected CT
Tendring DC,http://statistics.data.gov.uk/id/local-authority-district/22UN,Life Opportunities,"1580 - Benefits, Revenues and Customer Contact SU",4462 - Bailiffs and Tracing Agent Fees re debt recovery,16/07/2013,2109842-2,-10,2100381 - Collect Services Ltd,VAT on Fees Collected CT
Tendring DC,http://statistics.data.gov.uk/id/local-authority-district/22UN,Life Opportunities,"1580 - Benefits, Revenues and Customer Contact SU",4462 - Bailiffs and Tracing Agent Fees re debt recovery,16/07/2013,2109842-3,21.73,2100381 - Collect Services Ltd,VAT on Fees Collected CT
Tendring DC,http://statistics.data.gov.uk/id/local-authority-district/22UN,Life Opportunities,"1580 - Benefits, Revenues and Customer Contact SU",4462 - Bailiffs and Tracing Agent Fees re debt recovery,16/07/2013,2109842-4,-21.73,2100381 - Collect Services Ltd,VAT on Fees Collected CT
Tendring DC,http://statistics.data.gov.uk/id/local-authority-district/22UN,Life Opportunities,"1580 - Benefits, Revenues and Customer Contact SU",4462 - Bailiffs and Tracing Agent Fees re debt recovery,16/07/2013,2109842-5,2256.38,2100381 - Collect Services Ltd,VAT on Fees Collected CT
Tendring DC,http://statistics.data.gov.uk/id/local-authority-district/22UN,Life Opportunities,"1580 - Benefits, Revenues and Customer Contact SU",4462 - Bailiffs and Tracing Agent Fees re debt recovery,16/07/2013,2109842-6,-2256.38,2100381 - Collect Services Ltd,VAT on Fees Collected CT
Tendring DC,http://statistics.data.gov.uk/id/local-authority-district/22UN,Life Opportunities,"1580 - Benefits, Revenues and Customer Contact SU",5189 - External Debt Recovery Commission,16/07/2013,2109887-1,613.94,2100381 - Collect Services Ltd,15% Com on 4092.96 recovered
Tendring DC,http://statistics.data.gov.uk/id/local-authority-district/22UN,Life Opportunities,"1580 - Benefits, Revenues and Customer Contact SU",4462 - Bailiffs and Tracing Agent Fees re debt recovery,23/07/2013,2110010-1,11.54,2100381 - Collect Services Ltd,VAT on fees collected CT
Tendring DC,http://statistics.data.gov.uk/id/local-authority-district/22UN,Life Opportunities,"1580 - Benefits, Revenues and Customer Contact SU",4462 - Bailiffs and Tracing Agent Fees re debt recovery,23/07/2013,2110010-2,-11.54,2100381 - Collect Services Ltd,VAT on fees collected CT
Tendring DC,http://statistics.data.gov.uk/id/local-authority-district/22UN,Life Opportunities,"1580 - Benefits, Revenues and Customer Contact SU",4462 - Bailiffs and Tracing Agent Fees re debt recovery,23/07/2013,2110010-3,67.14,2100381 - Collect Services Ltd,VAT on fees collected CT
Tendring DC,http://statistics.data.gov.uk/id/local-authority-district/22UN,Life Opportunities,"1580 - Benefits, Revenues and Customer Contact SU",4462 - Bailiffs and Tracing Agent Fees re debt recovery,23/07/2013,2110010-4,-67.14,2100381 - Collect Services Ltd,VAT on fees collected CT
Tendring DC,http://statistics.data.gov.uk/id/local-authority-district/22UN,Life Opportunities,"1580 - Benefits, Revenues and Customer Contact SU",4462 - Bailiffs and Tracing Agent Fees re debt recovery,23/07/2013,2110010-5,2441.53,2100381 - Collect Services Ltd,VAT on fees collected CT
Tendring DC,http://statistics.data.gov.uk/id/local-authority-district/22UN,Life Opportunities,"1580 - Benefits, Revenues and Customer Contact SU",4462 - Bailiffs and Tracing Agent Fees re debt recovery,23/07/2013,2110010-6,-2441.53,2100381 - Collect Services Ltd,VAT on fees collected CT
Tendring DC,http://statistics.data.gov.uk/id/local-authority-district/22UN,Life Opportunities,"1580 - Benefits, Revenues and Customer Contact SU",4462 - Bailiffs and Tracing Agent Fees re debt recovery,23/07/2013,2110015-1,184.35,2100381 - Collect Services Ltd,VAT on fees collected NNDR
Tendring DC,http://statistics.data.gov.uk/id/local-authority-district/22UN,Life Opportunities,"1580 - Benefits, Revenues and Customer Contact SU",4462 - Bailiffs and Tracing Agent Fees re debt recovery,23/07/2013,2110015-2,-184.35,2100381 - Collect Services Ltd,VAT on fees collected NNDR
Tendring DC,http://statistics.data.gov.uk/id/local-authority-district/22UN,Life Opportunities,9900 - General Fund Balance Sheet,B863 - Bailiff Payments Holding Account,02/07/2013,1053362-1,2163.87,REDACTED COMMERCIAL CONFIDENTIALITY,REDACTED COMMERCIAL CONFIDENTIALITY
Tendring DC,http://statistics.data.gov.uk/id/local-authority-district/22UN,Life Opportunities,9900 - General Fund Balance Sheet,B863 - Bailiff Payments Holding Account,16/07/2013,1053508-1,1712,REDACTED COMMERCIAL CONFIDENTIALITY,REDACTED COMMERCIAL CONFIDENTIALITY
Tendring DC,http://statistics.data.gov.uk/id/local-authority-district/22UN,Life Opportunities,9900 - General Fund Balance Sheet,B863 - Bailiff Payments Holding Account,23/07/2013,1053691-1,1390,REDACTED COMMERCIAL CONFIDENTIALITY,REDACTED COMMERCIAL CONFIDENTIALITY
Tendring DC,http://statistics.data.gov.uk/id/local-authority-district/22UN,Life Opportunities,9900 - General Fund Balance Sheet,B863 - Bailiff Payments Holding Account,09/07/2013,2109640-1,2433.79,REDACTED COMMERCIAL CONFIDENTIALITY,REDACTED COMMERCIAL CONFIDENTIALITY
Tendring DC,http://statistics.data.gov.uk/id/local-authority-district/22UN,Life Opportunities,"1580 - Benefits, Revenues and Customer Contact SU",4462 - Bailiffs and Tracing Agent Fees re debt recovery,12/07/2013,2109675-1,10,REDACTED COMMERCIAL CONFIDENTIALITY,REDACTED COMMERCIAL CONFIDENTIALITY
Tendring DC,http://statistics.data.gov.uk/id/local-authority-district/22UN,Life Opportunities,8520 - Frinton & Walton Swimming Pool,2100 - Building Repairs,30/07/2013,1053703-1,-756.43,2110353 - Contract Fire Security,FRINTON POOL
Tendring DC,http://statistics.data.gov.uk/id/local-authority-district/22UN,Life Opportunities,8520 - Frinton & Walton Swimming Pool,2100 - Building Repairs,30/07/2013,7009444-1,520.2,2110353 - Contract Fire Security,FRINTON POOL
Tendring DC,http://statistics.data.gov.uk/id/local-authority-district/22UN,Life Opportunities,8520 - Frinton & Walton Swimming Pool,2100 - Building Repairs,30/07/2013,7009445-1,454.52,2110353 - Contract Fire Security,FRINTONPOOL
Tendring DC,http://statistics.data.gov.uk/id/local-authority-district/22UN,Life Opportunities,8520 - Frinton & Walton Swimming Pool,2100 - Building Repairs,30/07/2013,7009446-1,238.13,2110353 - Contract Fire Security,FRINTON POOL
Tendring DC,http://statistics.data.gov.uk/id/local-authority-district/22UN,Life Opportunities,8520 - Frinton & Walton Swimming Pool,2100 - Building Repairs,30/07/2013,7009447-1,300,2110353 - Contract Fire Security,FRINTON POOL
Tendring DC,http://statistics.data.gov.uk/id/local-authority-district/22UN,Life Opportunities,"1580 - Benefits, Revenues and Customer Contact SU",4461 - Court Fees,12/07/2013,2109676-1,2627,2100304 - CO-OP Bank,HM Court
Tendring DC,http://statistics.data.gov.uk/id/local-authority-district/22UN,Life Opportunities,5480 - HRA - Repair & Maintenance,2088 - Disabled Adaptations,09/07/2013,1053412-1,268.84,REDACTED PERSONAL DATA,REDACTED PERSONAL DATA
Tendring DC,http://statistics.data.gov.uk/id/local-authority-district/22UN,Life Opportunities,H700 - First time Heating,C200 - Main Contractor,23/07/2013,1053530-1,3250,REDACTED PERSONAL DATA,REDACTED PERSONAL DATA
Tendring DC,http://statistics.data.gov.uk/id/local-authority-district/22UN,Life Opportunities,H700 - First time Heating,C200 - Main Contractor,23/07/2013,1053531-1,4350,REDACTED PERSONAL DATA,REDACTED PERSONAL DATA
Tendring DC,http://statistics.data.gov.uk/id/local-authority-district/22UN,Life Opportunities,H920 - DFGs,C400 - Grant payments,30/07/2013,1053721-1,4762.14,REDACTED PERSONAL DATA,REDACTED PERSONAL DATA
Tendring DC,http://statistics.data.gov.uk/id/local-authority-district/22UN,Life Opportunities,8540 - Leisure Centre Clacton,2308 - Energy Costs - Gas (Including LPG),02/07/2013,1053271-1,1835.97,2104620 - Corona Energy Retail 4 Limited,MAY GAS
Tendring DC,http://statistics.data.gov.uk/id/local-authority-district/22UN,Life Opportunities,5340 - HRA - Communal Central Heating,2308 - Energy Costs - Gas (Including LPG),23/07/2013,1053516-1,-1303.33,2104620 - Corona Energy Retail 4 Limited,HC APRIL CR
Tendring DC,http://statistics.data.gov.uk/id/local-authority-district/22UN,Life Opportunities,5340 - HRA - Communal Central Heating,2308 - Energy Costs - Gas (Including LPG),23/07/2013,1053517-1,-1019.24,2104620 - Corona Energy Retail 4 Limited,HC MAY/JUNE CREDITS
Tendring DC,http://statistics.data.gov.uk/id/local-authority-district/22UN,Life Opportunities,5340 - HRA - Communal Central Heating,2308 - Energy Costs - Gas (Including LPG),23/07/2013,1053518-1,-4869.34,2104620 - Corona Energy Retail 4 Limited,MAY CREDITS ALL
Tendring DC,http://statistics.data.gov.uk/id/local-authority-district/22UN,Life Opportunities,5360 - HRA - Sheltered Units,2308 - Energy Costs - Gas (Including LPG),23/07/2013,1053518-2,-50.93,2104620 - Corona Energy Retail 4 Limited,MAY CREDITS ALL
Tendring DC,http://statistics.data.gov.uk/id/local-authority-district/22UN,Life Opportunities,8510 - Dovercourt Swimming Pool & All Weather Facilities,2308 - Energy Costs - Gas (Including LPG),23/07/2013,1053613-1,2321.74,2104620 - Corona Energy Retail 4 Limited,DOVERCOURT POOL
Tendring DC,http://statistics.data.gov.uk/id/local-authority-district/22UN,Life Opportunities,8520 - Frinton & Walton Swimming Pool,2308 - Energy Costs - Gas (Including LPG),23/07/2013,1053614-1,1744.43,2104620 - Corona Energy Retail 4 Limited,FRINTON POOL
Tendring DC,http://statistics.data.gov.uk/id/local-authority-district/22UN,Life Opportunities,8520 - Frinton & Walton Swimming Pool,2308 - Energy Costs - Gas (Including LPG),23/07/2013,1053614-2,899.42,2104620 - Corona Energy Retail 4 Limited,FRINTON POOL
Tendring DC,http://statistics.data.gov.uk/id/local-authority-district/22UN,Life Opportunities,1860 - Depots General,2308 - Energy Costs - Gas (Including LPG),23/07/2013,2110113-1,150.85,2104620 - Corona Energy Retail 4 Limited,Corona Energy - June 2013
Tendring DC,http://statistics.data.gov.uk/id/local-authority-district/22UN,Life Opportunities,1880 - Office Accommodation Expenses,2308 - Energy Costs - Gas (Including LPG),23/07/2013,2110113-2,37.23,2104620 - Corona Energy Retail 4 Limited,Corona Energy - June 2013
Tendring DC,http://statistics.data.gov.uk/id/local-authority-district/22UN,Life Opportunities,1880 - Office Accommodation Expenses,2308 - Energy Costs - Gas (Including LPG),23/07/2013,2110113-3,63.22,2104620 - Corona Energy Retail 4 Limited,Corona Energy - June 2013
Tendring DC,http://statistics.data.gov.uk/id/local-authority-district/22UN,Life Opportunities,1880 - Office Accommodation Expenses,2308 - Energy Costs - Gas (Including LPG),23/07/2013,2110113-4,30.84,2104620 - Corona Energy Retail 4 Limited,Corona Energy - June 2013
Tendring DC,http://statistics.data.gov.uk/id/local-authority-district/22UN,Life Opportunities,1880 - Office Accommodation Expenses,2308 - Energy Costs - Gas (Including LPG),23/07/2013,2110113-5,173.86,2104620 - Corona Energy Retail 4 Limited,Corona Energy - June 2013
Tendring DC,http://statistics.data.gov.uk/id/local-authority-district/22UN,Life Opportunities,6160 - Princes Theatre,2308 - Energy Costs - Gas (Including LPG),23/07/2013,2110113-6,19.32,2104620 - Corona Energy Retail 4 Limited,Corona Energy - June 2013
Tendring DC,http://statistics.data.gov.uk/id/local-authority-district/22UN,Life Opportunities,5340 - HRA - Communal Central Heating,2308 - Energy Costs - Gas (Including LPG),23/07/2013,2110114-1,11683.05,2104620 - Corona Energy Retail 4 Limited,SHU June 2013
Tendring DC,http://statistics.data.gov.uk/id/local-authority-district/22UN,Life Opportunities,5360 - HRA - Sheltered Units,2308 - Energy Costs - Gas (Including LPG),23/07/2013,2110114-2,68.87,2104620 - Corona Energy Retail 4 Limited,SHU June 2013
Tendring DC,http://statistics.data.gov.uk/id/local-authority-district/22UN,Life Opportunities,5240 - HRA - Managing Tenancies,5242 - Tenant Relations,16/07/2013,2109793-1,2442,REDACTED PERSONAL DATA,REDACTED PERSONAL DATA
Tendring DC,http://statistics.data.gov.uk/id/local-authority-district/22UN,Life Opportunities,5240 - HRA - Managing Tenancies,5242 - Tenant Relations,16/07/2013,2109794-1,294,REDACTED PERSONAL DATA,REDACTED PERSONAL DATA
Tendring DC,http://statistics.data.gov.uk/id/local-authority-district/22UN,Life Opportunities,5140 - Homelessness,4683 - Other Homelessness Expenses,16/07/2013,2109703-1,600,REDACTED PERSONAL DATA,REDACTED PERSONAL DATA
Tendring DC,http://statistics.data.gov.uk/id/local-authority-district/22UN,Life Opportunities,8510 - Dovercourt Swimming Pool & All Weather Facilities,2100 - Building Repairs,23/07/2013,1053618-1,100,2100183 - CR Services,DOVERCOURT POOL
Tendring DC,http://statistics.data.gov.uk/id/local-authority-district/22UN,Life Opportunities,8530 - Brightlingsea Swimming Pool,2100 - Building Repairs,23/07/2013,1053631-1,300,2100183 - CR Services,CR SERVICES
Tendring DC,http://statistics.data.gov.uk/id/local-authority-district/22UN,Life Opportunities,8510 - Dovercourt Swimming Pool & All Weather Facilities,2100 - Building Repairs,02/07/2013,7700426-1,566.5,2100183 - CR Services,DOVERCOURT POOL
Tendring DC,http://statistics.data.gov.uk/id/local-authority-district/22UN,Life Opportunities,5240 - HRA - Managing Tenancies,5242 - Tenant Relations,16/07/2013,2109838-1,250,2113169 - Crooked Elms Residents Association,Crooked Elms Residents Association Payment
Tendring DC,http://statistics.data.gov.uk/id/local-authority-district/22UN,Life Opportunities,H860 - Disabled Adaptations,C200 - Main Contractor,30/07/2013,1053749-1,4630,REDACTED PERSONAL DATA,REDACTED PERSONAL DATA
Tendring DC,http://statistics.data.gov.uk/id/local-authority-district/22UN,Life Opportunities,5480 - HRA - Repair & Maintenance,2088 - Disabled Adaptations,30/07/2013,1053735-1,200,REDACTED PERSONAL DATA,REDACTED PERSONAL DATA
Tendring DC,http://statistics.data.gov.uk/id/local-authority-district/22UN,Life Opportunities,5480 - HRA - Repair & Maintenance,2088 - Disabled Adaptations,30/07/2013,1053735-2,50,REDACTED PERSONAL DATA,REDACTED PERSONAL DATA
Tendring DC,http://statistics.data.gov.uk/id/local-authority-district/22UN,Life Opportunities,5360 - HRA - Sheltered Units,4710 - Telephones - Charges,30/07/2013,1053826-1,262.47,2106704 - Daisy Communications Ltd,DAISY BILL-JUNE 13
Tendring DC,http://statistics.data.gov.uk/id/local-authority-district/22UN,Life Opportunities,6160 - Princes Theatre,4597 - Hired Services - Payments to Contractors,16/07/2013,2109763-1,19.8,2100397 - Danes of Colchester Ltd,Table Cloth
Tendring DC,http://statistics.data.gov.uk/id/local-authority-district/22UN,Life Opportunities,6160 - Princes Theatre,4597 - Hired Services - Payments to Contractors,16/07/2013,2109764-1,7.92,2100397 - Danes of Colchester Ltd,Tablecloth
Tendring DC,http://statistics.data.gov.uk/id/local-authority-district/22UN,Life Opportunities,1840 - Central Telephone Service,4710 - Telephones - Charges,02/07/2013,7700450-1,509.84,2109315 - Data Track Technology plc,DATA TRACK
Tendring DC,http://statistics.data.gov.uk/id/local-authority-district/22UN,Life Opportunities,8540 - Leisure Centre Clacton,4400 - Maintenance Under Service Agreements,09/07/2013,1053457-1,73.58,2107840 - Digital Office Systems Ltd,XEROX COPIES 21/6/13
Tendring DC,http://statistics.data.gov.uk/id/local-authority-district/22UN,Life Opportunities,8540 - Leisure Centre Clacton,5160 - Advertising,02/07/2013,1053269-1,135,2103510 - Direct Solutions,MEMBERSHIP FORMS
Tendring DC,http://statistics.data.gov.uk/id/local-authority-district/22UN,Life Opportunities,6740 - Careline,1700 - Training - Courses,02/07/2013,2109409-1,225,2103062 - Dods Parliamentary Communications Ltd,CCTV Code of Practice 19/6/13
Tendring DC,http://statistics.data.gov.uk/id/local-authority-district/22UN,Life Opportunities,H860 - Disabled Adaptations,C200 - Main Contractor,02/07/2013,1053331-1,6670.67,REDACTED PERSONAL DATA,REDACTED PERSONAL DATA
Tendring DC,http://statistics.data.gov.uk/id/local-authority-district/22UN,Life Opportunities,5480 - HRA - Repair & Maintenance,2068 - Other Minor Equipment Repairs,23/07/2013,1053607-1,101,REDACTED PERSONAL DATA,REDACTED PERSONAL DATA
Tendring DC,http://statistics.data.gov.uk/id/local-authority-district/22UN,Life Opportunities,5480 - HRA - Repair & Maintenance,2018 - Other Responsive Repairs,23/07/2013,1053605-1,528.06,REDACTED PERSONAL DATA,REDACTED PERSONAL DATA
Tendring DC,http://statistics.data.gov.uk/id/local-authority-district/22UN,Life Opportunities,5480 - HRA - Repair & Maintenance,2018 - Other Responsive Repairs,23/07/2013,1053606-1,528.06,REDACTED PERSONAL DATA,REDACTED PERSONAL DATA
Tendring DC,http://statistics.data.gov.uk/id/local-authority-district/22UN,Life Opportunities,H705 - Window/Door Replacement,C200 - Main Contractor,16/07/2013,2109804-1,80,REDACTED COMMERCIAL CONFIDENTIALITY,REDACTED COMMERCIAL CONFIDENTIALITY
Tendring DC,http://statistics.data.gov.uk/id/local-authority-district/22UN,Life Opportunities,5440 - HRA - Communal Electricity,2304 - Energy Costs - Electricity,16/07/2013,1053513-1,25.12,2107521 - E.On,TV AMPS FRINTON
Tendring DC,http://statistics.data.gov.uk/id/local-authority-district/22UN,Life Opportunities,5360 - HRA - Sheltered Units,2304 - Energy Costs - Electricity,30/07/2013,7009450-1,25.64,2107521 - E.On,16 HC VOID
Tendring DC,http://statistics.data.gov.uk/id/local-authority-district/22UN,Life Opportunities,5360 - HRA - Sheltered Units,2304 - Energy Costs - Electricity,30/07/2013,7009451-1,24.3,2107521 - E.On,19 HC VOID
Tendring DC,http://statistics.data.gov.uk/id/local-authority-district/22UN,Life Opportunities,5360 - HRA - Sheltered Units,2304 - Energy Costs - Electricity,30/07/2013,7009452-1,24.5,2107521 - E.On,22 HC VOID
Tendring DC,http://statistics.data.gov.uk/id/local-authority-district/22UN,Life Opportunities,5360 - HRA - Sheltered Units,2304 - Energy Costs - Electricity,30/07/2013,7009453-1,26.02,2107521 - E.On,29 HC VOID
Tendring DC,http://statistics.data.gov.uk/id/local-authority-district/22UN,Life Opportunities,5360 - HRA - Sheltered Units,2304 - Energy Costs - Electricity,30/07/2013,7009454-1,24.3,2107521 - E.On,30 HC VOID
Tendring DC,http://statistics.data.gov.uk/id/local-authority-district/22UN,Life Opportunities,H825 - Refurbishment of Door Entry Systems,C200 - Main Contractor,23/07/2013,1053595-1,300,REDACTED COMMERCIAL CONFIDENTIALITY,REDACTED COMMERCIAL CONFIDENTIALITY
Tendring DC,http://statistics.data.gov.uk/id/local-authority-district/22UN,Life Opportunities,5480 - HRA - Repair & Maintenance,2071 - Electric Installation Testing,23/07/2013,1053610-1,60,REDACTED PERSONAL DATA,REDACTED PERSONAL DATA
Tendring DC,http://statistics.data.gov.uk/id/local-authority-district/22UN,Life Opportunities,H825 - Refurbishment of Door Entry Systems,C200 - Main Contractor,23/07/2013,1053612-1,700,REDACTED PERSONAL DATA,REDACTED PERSONAL DATA
Tendring DC,http://statistics.data.gov.uk/id/local-authority-district/22UN,Life Opportunities,7560 - Tourism Publications,4668 - Production Expenses,23/07/2013,2110071-1,393,REDACTED COMMERCIAL CONFIDENTIALITY,REDACTED COMMERCIAL CONFIDENTIALITY
Tendring DC,http://statistics.data.gov.uk/id/local-authority-district/22UN,Life Opportunities,8510 - Dovercourt Swimming Pool & All Weather Facilities,2304 - Energy Costs - Electricity,16/07/2013,2109798-1,2586.47,REDACTED PERSONAL DATA,REDACTED PERSONAL DATA
Tendring DC,http://statistics.data.gov.uk/id/local-authority-district/22UN,Life Opportunities,8540 - Leisure Centre Clacton,2304 - Energy Costs - Electricity,16/07/2013,2109820-1,6699.7,2105146 - EDF Energy 1 Ltd,Electric June
Tendring DC,http://statistics.data.gov.uk/id/local-authority-district/22UN,Life Opportunities,1880 - Office Accommodation Expenses,2304 - Energy Costs - Electricity,16/07/2013,2109933-1,3912.01,2105146 - EDF Energy 1 Ltd,EDF
Tendring DC,http://statistics.data.gov.uk/id/local-authority-district/22UN,Life Opportunities,6160 - Princes Theatre,2304 - Energy Costs - Electricity,16/07/2013,2109933-2,434.67,2105146 - EDF Energy 1 Ltd,EDF
Tendring DC,http://statistics.data.gov.uk/id/local-authority-district/22UN,Life Opportunities,6160 - Princes Theatre,4622 - Hired Services - Artistes and Production Companies,16/07/2013,2109767-1,4774.82,2111197 - Entertainers Promotions Ltd,Magic of Motown P343
Tendring DC,http://statistics.data.gov.uk/id/local-authority-district/22UN,Life Opportunities,5440 - HRA - Communal Electricity,2304 - Energy Costs - Electricity,02/07/2013,2109769-1,25.12,2107644 - Eon,TV Amps Frinton
Tendring DC,http://statistics.data.gov.uk/id/local-authority-district/22UN,Life Opportunities,5480 - HRA - Repair & Maintenance,2304 - Energy Costs - Electricity,23/07/2013,2110070-1,19.11,2107644 - Eon,22 ST MC
Tendring DC,http://statistics.data.gov.uk/id/local-authority-district/22UN,Life Opportunities,8540 - Leisure Centre Clacton,4400 - Maintenance Under Service Agreements,09/07/2013,1053435-1,240,2105226 - Essex Inflatables,PIPA TESTS X2
Tendring DC,http://statistics.data.gov.uk/id/local-authority-district/22UN,Life Opportunities,8540 - Leisure Centre Clacton,2100 - Building Repairs,02/07/2013,1053273-1,120,2111548 - Essex Lift Services Ltd,LIFT FAULT
Tendring DC,http://statistics.data.gov.uk/id/local-authority-district/22UN,Life Opportunities,8540 - Leisure Centre Clacton,2100 - Building Repairs,09/07/2013,2109510-1,150,2111548 - Essex Lift Services Ltd,Lift Repair
Tendring DC,http://statistics.data.gov.uk/id/local-authority-district/22UN,Life Opportunities,6160 - Princes Theatre,4040 - Equipment & Tools,09/07/2013,2109548-1,1200,REDACTED COMMERCIAL CONFIDENTIALITY,REDACTED COMMERCIAL CONFIDENTIALITY
Tendring DC,http://statistics.data.gov.uk/id/local-authority-district/22UN,Life Opportunities,8520 - Frinton & Walton Swimming Pool,4400 - Maintenance Under Service Agreements,30/07/2013,1053831-1,68.95,2100531 - Euro-Fire Ltd,FRINTON WALTON POOL
Tendring DC,http://statistics.data.gov.uk/id/local-authority-district/22UN,Life Opportunities,8540 - Leisure Centre Clacton,4400 - Maintenance Under Service Agreements,30/07/2013,7700490-1,11,REDACTED COMMERCIAL CONFIDENTIALITY,REDACTED COMMERCIAL CONFIDENTIALITY
Tendring DC,http://statistics.data.gov.uk/id/local-authority-district/22UN,Life Opportunities,H825 - Refurbishment of Door Entry Systems,C200 - Main Contractor,23/07/2013,1053602-1,1781.65,REDACTED PERSONAL DATA,REDACTED PERSONAL DATA
Tendring DC,http://statistics.data.gov.uk/id/local-authority-district/22UN,Life Opportunities,5140 - Homelessness,4683 - Other Homelessness Expenses,16/07/2013,2109699-1,450,REDACTED PERSONAL DATA,REDACTED PERSONAL DATA
Tendring DC,http://statistics.data.gov.uk/id/local-authority-district/22UN,Life Opportunities,5480 - HRA - Repair & Maintenance,2058 - Fire Alarms Repairs,23/07/2013,1053604-1,50,REDACTED PERSONAL DATA,REDACTED PERSONAL DATA
Tendring DC,http://statistics.data.gov.uk/id/local-authority-district/22UN,Life Opportunities,5480 - HRA - Repair & Maintenance,2057 - Fire Alarms Servicing,02/07/2013,2109466-1,110,REDACTED PERSONAL DATA,REDACTED PERSONAL DATA
Tendring DC,http://statistics.data.gov.uk/id/local-authority-district/22UN,Life Opportunities,5480 - HRA - Repair & Maintenance,2058 - Fire Alarms Repairs,02/07/2013,2109467-1,290,REDACTED PERSONAL DATA,REDACTED PERSONAL DATA
Tendring DC,http://statistics.data.gov.uk/id/local-authority-district/22UN,Life Opportunities,5480 - HRA - Repair & Maintenance,2057 - Fire Alarms Servicing,09/07/2013,2109514-1,135,REDACTED PERSONAL DATA,REDACTED PERSONAL DATA
Tendring DC,http://statistics.data.gov.uk/id/local-authority-district/22UN,Life Opportunities,5480 - HRA - Repair & Maintenance,2057 - Fire Alarms Servicing,09/07/2013,2109549-1,110,REDACTED PERSONAL DATA,REDACTED PERSONAL DATA
Tendring DC,http://statistics.data.gov.uk/id/local-authority-district/22UN,Life Opportunities,5480 - HRA - Repair & Maintenance,2058 - Fire Alarms Repairs,09/07/2013,2109549-2,40,REDACTED PERSONAL DATA,REDACTED PERSONAL DATA
Tendring DC,http://statistics.data.gov.uk/id/local-authority-district/22UN,Life Opportunities,7600 - Tourist Information Centres,9356 - Commission Sales,16/07/2013,2109833-1,1559.7,REDACTED PERSONAL DATA,REDACTED PERSONAL DATA
Tendring DC,http://statistics.data.gov.uk/id/local-authority-district/22UN,Life Opportunities,1760 - IT Direct Service Costs,4880 - Subscriptions Paid,09/07/2013,2109593-1,149,2106319 - First Report Limited,Credit Checking Licence
Tendring DC,http://statistics.data.gov.uk/id/local-authority-district/22UN,Life Opportunities,7600 - Tourist Information Centres,9356 - Commission Sales,16/07/2013,2109762-1,300.6,2107423 - Fizz Coach Trips,Coach Trip Bookings June 13
Tendring DC,http://statistics.data.gov.uk/id/local-authority-district/22UN,Life Opportunities,5800 - Brightlingsea Sports Centre,1700 - Training - Courses,02/07/2013,1053274-1,165,2107351 - Frinton Training Services Ltd,FRINTON TRAINING SERVICES
Tendring DC,http://statistics.data.gov.uk/id/local-authority-district/22UN,Life Opportunities,"1580 - Benefits, Revenues and Customer Contact SU",4635 - Cash Collection Contract,23/07/2013,1053232-1,-5,2101233 - G4S Cash Services (UK) Limited,CR FOR WRONG DELIVERY
Tendring DC,http://statistics.data.gov.uk/id/local-authority-district/22UN,Life Opportunities,"1580 - Benefits, Revenues and Customer Contact SU",4635 - Cash Collection Contract,23/07/2013,1053693-1,470.49,2101233 - G4S Cash Services (UK) Limited,G4S AUG 2013
Tendring DC,http://statistics.data.gov.uk/id/local-authority-district/22UN,Life Opportunities,5860 - Manningtree Sports Centre,4635 - Cash Collection Contract,23/07/2013,1053693-10,69.57,2101233 - G4S Cash Services (UK) Limited,G4S AUG 2013
Tendring DC,http://statistics.data.gov.uk/id/local-authority-district/22UN,Life Opportunities,5820 - Harwich Sports Centre,4635 - Cash Collection Contract,23/07/2013,1053693-11,69.57,2101233 - G4S Cash Services (UK) Limited,G4S AUG 2013
Tendring DC,http://statistics.data.gov.uk/id/local-authority-district/22UN,Life Opportunities,8025 - Car Parks - Off St,4635 - Cash Collection Contract,23/07/2013,1053693-12,47.8,2101233 - G4S Cash Services (UK) Limited,G4S AUG 2013
Tendring DC,http://statistics.data.gov.uk/id/local-authority-district/22UN,Life Opportunities,5260 - HRA - Rent Collection And Accounting,4635 - Cash Collection Contract,23/07/2013,1053693-2,119.64,2101233 - G4S Cash Services (UK) Limited,G4S AUG 2013
Tendring DC,http://statistics.data.gov.uk/id/local-authority-district/22UN,Life Opportunities,5260 - HRA - Rent Collection And Accounting,4635 - Cash Collection Contract,23/07/2013,1053693-3,19.58,2101233 - G4S Cash Services (UK) Limited,G4S AUG 2013
Tendring DC,http://statistics.data.gov.uk/id/local-authority-district/22UN,Life Opportunities,"1580 - Benefits, Revenues and Customer Contact SU",4635 - Cash Collection Contract,23/07/2013,1053693-4,29.11,2101233 - G4S Cash Services (UK) Limited,G4S AUG 2013
Tendring DC,http://statistics.data.gov.uk/id/local-authority-district/22UN,Life Opportunities,8025 - Car Parks - Off St,4635 - Cash Collection Contract,23/07/2013,1053693-5,68.11,2101233 - G4S Cash Services (UK) Limited,G4S AUG 2013
Tendring DC,http://statistics.data.gov.uk/id/local-authority-district/22UN,Life Opportunities,8540 - Leisure Centre Clacton,4635 - Cash Collection Contract,23/07/2013,1053693-6,208.7,2101233 - G4S Cash Services (UK) Limited,G4S AUG 2013
Tendring DC,http://statistics.data.gov.uk/id/local-authority-district/22UN,Life Opportunities,8510 - Dovercourt Swimming Pool & All Weather Facilities,4635 - Cash Collection Contract,23/07/2013,1053693-7,139.13,2101233 - G4S Cash Services (UK) Limited,G4S AUG 2013
Tendring DC,http://statistics.data.gov.uk/id/local-authority-district/22UN,Life Opportunities,5800 - Brightlingsea Sports Centre,4635 - Cash Collection Contract,23/07/2013,1053693-8,69.57,2101233 - G4S Cash Services (UK) Limited,G4S AUG 2013
Tendring DC,http://statistics.data.gov.uk/id/local-authority-district/22UN,Life Opportunities,8520 - Frinton & Walton Swimming Pool,4635 - Cash Collection Contract,23/07/2013,1053693-9,139.13,2101233 - G4S Cash Services (UK) Limited,G4S AUG 2013
Tendring DC,http://statistics.data.gov.uk/id/local-authority-district/22UN,Life Opportunities,"1580 - Benefits, Revenues and Customer Contact SU",4635 - Cash Collection Contract,23/07/2013,2109990-1,15,2101233 - G4S Cash Services (UK) Limited,Cash Delivery June/July 13
Tendring DC,http://statistics.data.gov.uk/id/local-authority-district/22UN,Life Opportunities,H920 - DFGs,C400 - Grant payments,09/07/2013,1053393-1,406.4,REDACTED PERSONAL DATA,REDACTED PERSONAL DATA
Tendring DC,http://statistics.data.gov.uk/id/local-authority-district/22UN,Life Opportunities,H920 - DFGs,C400 - Grant payments,09/07/2013,1053394-1,1346.6,REDACTED PERSONAL DATA,REDACTED PERSONAL DATA
Tendring DC,http://statistics.data.gov.uk/id/local-authority-district/22UN,Life Opportunities,H920 - DFGs,C400 - Grant payments,30/07/2013,1053722-1,7990.8,REDACTED PERSONAL DATA,REDACTED PERSONAL DATA
Tendring DC,http://statistics.data.gov.uk/id/local-authority-district/22UN,Life Opportunities,7000 - CCTV,4400 - Maintenance Under Service Agreements,09/07/2013,1053464-1,50,2100546 - GCS Alarms,GCS-HARWICH CAM 3
Tendring DC,http://statistics.data.gov.uk/id/local-authority-district/22UN,Life Opportunities,7000 - CCTV,4400 - Maintenance Under Service Agreements,09/07/2013,1053465-1,50,2100546 - GCS Alarms,GCS-HARWICH
Tendring DC,http://statistics.data.gov.uk/id/local-authority-district/22UN,Life Opportunities,7000 - CCTV,4400 - Maintenance Under Service Agreements,09/07/2013,1053466-1,50,2100546 - GCS Alarms,GCS-CAMERA 27 LIDLS
Tendring DC,http://statistics.data.gov.uk/id/local-authority-district/22UN,Life Opportunities,7000 - CCTV,4400 - Maintenance Under Service Agreements,09/07/2013,1053467-1,50,2100546 - GCS Alarms,GCS-CAM 38 JAYWICK
Tendring DC,http://statistics.data.gov.uk/id/local-authority-district/22UN,Life Opportunities,8025 - Car Parks - Off St,4040 - Equipment & Tools,09/07/2013,1053468-1,50,2100546 - GCS Alarms,CLACTON CAR PARK CAMERA 20
Tendring DC,http://statistics.data.gov.uk/id/local-authority-district/22UN,Life Opportunities,8025 - Car Parks - Off St,4040 - Equipment & Tools,09/07/2013,1053469-1,50,2100546 - GCS Alarms,CLACTON CAR PARK CAM 23
Tendring DC,http://statistics.data.gov.uk/id/local-authority-district/22UN,Life Opportunities,7000 - CCTV,4400 - Maintenance Under Service Agreements,23/07/2013,1053645-1,50,2100546 - GCS Alarms,GCS-ROVER AVENUE
Tendring DC,http://statistics.data.gov.uk/id/local-authority-district/22UN,Life Opportunities,8025 - Car Parks - Off St,4040 - Equipment & Tools,30/07/2013,1053823-1,120,2100546 - GCS Alarms,HIGH STREET CAMERA 19
Tendring DC,http://statistics.data.gov.uk/id/local-authority-district/22UN,Life Opportunities,7000 - CCTV,4400 - Maintenance Under Service Agreements,30/07/2013,1053824-1,255,2100546 - GCS Alarms,VGA SPLITTER CABLE
Tendring DC,http://statistics.data.gov.uk/id/local-authority-district/22UN,Life Opportunities,7000 - CCTV,4400 - Maintenance Under Service Agreements,30/07/2013,1053825-1,165,2100546 - GCS Alarms,LIDLS-AS QUOTED
Tendring DC,http://statistics.data.gov.uk/id/local-authority-district/22UN,Life Opportunities,7000 - CCTV,4400 - Maintenance Under Service Agreements,02/07/2013,2109410-1,50,2100546 - GCS Alarms,Frinton Railway Gates 1
Tendring DC,http://statistics.data.gov.uk/id/local-authority-district/22UN,Life Opportunities,7000 - CCTV,4400 - Maintenance Under Service Agreements,02/07/2013,2109411-1,50,2100546 - GCS Alarms,Frinton Gates Camera 1
Tendring DC,http://statistics.data.gov.uk/id/local-authority-district/22UN,Life Opportunities,7000 - CCTV,4400 - Maintenance Under Service Agreements,02/07/2013,2109412-1,50,2100546 - GCS Alarms,Network Viewer
Tendring DC,http://statistics.data.gov.uk/id/local-authority-district/22UN,Life Opportunities,7000 - CCTV,4400 - Maintenance Under Service Agreements,02/07/2013,2109413-1,50,2100546 - GCS Alarms,London Road Roundabout
Tendring DC,http://statistics.data.gov.uk/id/local-authority-district/22UN,Life Opportunities,7000 - CCTV,4400 - Maintenance Under Service Agreements,02/07/2013,2109414-1,50,2100546 - GCS Alarms,Seafront Camera 13
Tendring DC,http://statistics.data.gov.uk/id/local-authority-district/22UN,Life Opportunities,7000 - CCTV,4400 - Maintenance Under Service Agreements,02/07/2013,2109415-1,25,2100546 - GCS Alarms,Multiple faults Clacton & Jaywick
Tendring DC,http://statistics.data.gov.uk/id/local-authority-district/22UN,Life Opportunities,7000 - CCTV,4400 - Maintenance Under Service Agreements,02/07/2013,2109415-2,25,2100546 - GCS Alarms,Multiple faults Clacton & Jaywick
Tendring DC,http://statistics.data.gov.uk/id/local-authority-district/22UN,Life Opportunities,7000 - CCTV,4400 - Maintenance Under Service Agreements,02/07/2013,2109416-1,50,2100546 - GCS Alarms,Edinborough Woolen Mill
Tendring DC,http://statistics.data.gov.uk/id/local-authority-district/22UN,Life Opportunities,7000 - CCTV,4400 - Maintenance Under Service Agreements,02/07/2013,2109417-1,50,2100546 - GCS Alarms,Wahoo Camera SO
Tendring DC,http://statistics.data.gov.uk/id/local-authority-district/22UN,Life Opportunities,8540 - Leisure Centre Clacton,2100 - Building Repairs,16/07/2013,2109822-1,40,2100546 - GCS Alarms,Faulty Door Contact
Tendring DC,http://statistics.data.gov.uk/id/local-authority-district/22UN,Life Opportunities,7000 - CCTV,4400 - Maintenance Under Service Agreements,16/07/2013,2109846-1,50,2100546 - GCS Alarms,GCS - Seafront 12
Tendring DC,http://statistics.data.gov.uk/id/local-authority-district/22UN,Life Opportunities,8025 - Car Parks - Off St,4040 - Equipment & Tools,16/07/2013,2109847-1,50,2100546 - GCS Alarms,Multi Story 19
Tendring DC,http://statistics.data.gov.uk/id/local-authority-district/22UN,Life Opportunities,1880 - Office Accommodation Expenses,4632 - Security,23/07/2013,2109998-1,68.5,2100546 - GCS Alarms,GCS
Tendring DC,http://statistics.data.gov.uk/id/local-authority-district/22UN,Life Opportunities,7000 - CCTV,4400 - Maintenance Under Service Agreements,02/07/2013,7700403-1,80,2100546 - GCS Alarms,LONDON ROAD ROUNDABOUT
Tendring DC,http://statistics.data.gov.uk/id/local-authority-district/22UN,Life Opportunities,8510 - Dovercourt Swimming Pool & All Weather Facilities,4400 - Maintenance Under Service Agreements,02/07/2013,7700427-1,80,2100546 - GCS Alarms,DOVERCOURT POOL
Tendring DC,http://statistics.data.gov.uk/id/local-authority-district/22UN,Life Opportunities,1880 - Office Accommodation Expenses,4632 - Security,02/07/2013,7700451-1,55,2100546 - GCS Alarms,GCS
Tendring DC,http://statistics.data.gov.uk/id/local-authority-district/22UN,Life Opportunities,5480 - HRA - Repair & Maintenance,2018 - Other Responsive Repairs,09/07/2013,1053463-1,89.2,REDACTED PERSONAL DATA,REDACTED PERSONAL DATA
Tendring DC,http://statistics.data.gov.uk/id/local-authority-district/22UN,Life Opportunities,5480 - HRA - Repair & Maintenance,2018 - Other Responsive Repairs,30/07/2013,1053811-1,80,REDACTED PERSONAL DATA,REDACTED PERSONAL DATA
Tendring DC,http://statistics.data.gov.uk/id/local-authority-district/22UN,Life Opportunities,5480 - HRA - Repair & Maintenance,2018 - Other Responsive Repairs,30/07/2013,1053812-1,26.5,REDACTED PERSONAL DATA,REDACTED PERSONAL DATA
Tendring DC,http://statistics.data.gov.uk/id/local-authority-district/22UN,Life Opportunities,5140 - Homelessness,4683 - Other Homelessness Expenses,16/07/2013,2109696-1,275,REDACTED PERSONAL DATA,REDACTED PERSONAL DATA
Tendring DC,http://statistics.data.gov.uk/id/local-authority-district/22UN,Life Opportunities,5240 - HRA - Managing Tenancies,5242 - Tenant Relations,09/07/2013,1053386-1,10,REDACTED PERSONAL DATA,REDACTED PERSONAL DATA
Tendring DC,http://statistics.data.gov.uk/id/local-authority-district/22UN,Life Opportunities,1880 - Office Accommodation Expenses,2100 - Building Repairs,16/07/2013,2109930-1,233.8,2113189 - Grant Haze (Suffolk) Ltd,Grant Haze
Tendring DC,http://statistics.data.gov.uk/id/local-authority-district/22UN,Life Opportunities,1880 - Office Accommodation Expenses,2100 - Building Repairs,30/07/2013,2110150-1,116.9,2113189 - Grant Haze (Suffolk) Ltd,Grant Haze
Tendring DC,http://statistics.data.gov.uk/id/local-authority-district/22UN,Life Opportunities,1880 - Office Accommodation Expenses,2100 - Building Repairs,16/07/2013,2109646-1,91.67,REDACTED PERSONAL DATA,REDACTED PERSONAL DATA
Tendring DC,http://statistics.data.gov.uk/id/local-authority-district/22UN,Life Opportunities,8540 - Leisure Centre Clacton,2700 - Cleaning Materials,16/07/2013,2109825-1,72.1,2100509 - Granwax Products Ltd,Swift Low Foam
Tendring DC,http://statistics.data.gov.uk/id/local-authority-district/22UN,Life Opportunities,1880 - Office Accommodation Expenses,4446 - Bulk Bin Collection,16/07/2013,2109943-1,466.44,2111348 - Green Recycling Ltd,Green Recycling - Weeley
Tendring DC,http://statistics.data.gov.uk/id/local-authority-district/22UN,Life Opportunities,1880 - Office Accommodation Expenses,4446 - Bulk Bin Collection,16/07/2013,2109944-1,349.83,2111348 - Green Recycling Ltd,Green Recycling - Town Hall
Tendring DC,http://statistics.data.gov.uk/id/local-authority-district/22UN,Life Opportunities,1880 - Office Accommodation Expenses,4446 - Bulk Bin Collection,16/07/2013,2109945-1,233.22,2111348 - Green Recycling Ltd,Green Recycling - CTax
Tendring DC,http://statistics.data.gov.uk/id/local-authority-district/22UN,Life Opportunities,6160 - Princes Theatre,4105 - Bar/Catering Expenses,09/07/2013,1053438-1,498.29,2112641 - Greene King Brewing and Retailing Ltd,DRINKS ORDER THEATRE
Tendring DC,http://statistics.data.gov.uk/id/local-authority-district/22UN,Life Opportunities,5480 - HRA - Repair & Maintenance,2017 - Mechanical Equipment /Extract Fans,09/07/2013,1053456-1,60,REDACTED PERSONAL DATA,REDACTED PERSONAL DATA
Tendring DC,http://statistics.data.gov.uk/id/local-authority-district/22UN,Life Opportunities,5480 - HRA - Repair & Maintenance,2017 - Mechanical Equipment /Extract Fans,02/07/2013,2109463-1,60,REDACTED PERSONAL DATA,REDACTED PERSONAL DATA
Tendring DC,http://statistics.data.gov.uk/id/local-authority-district/22UN,Life Opportunities,5480 - HRA - Repair & Maintenance,2017 - Mechanical Equipment /Extract Fans,02/07/2013,2109464-1,50,REDACTED PERSONAL DATA,REDACTED PERSONAL DATA
Tendring DC,http://statistics.data.gov.uk/id/local-authority-district/22UN,Life Opportunities,1880 - Office Accommodation Expenses,2100 - Building Repairs,09/07/2013,2109535-1,210,2106272 - Greenleaf Pest Control Services,GPCS
Tendring DC,http://statistics.data.gov.uk/id/local-authority-district/22UN,Life Opportunities,5800 - Brightlingsea Sports Centre,5300 - Resaleable Items,09/07/2013,2109503-1,24,2100641 - Gymnastic Enterprises Ltd,Gymnastics Badges
Tendring DC,http://statistics.data.gov.uk/id/local-authority-district/22UN,Life Opportunities,8540 - Leisure Centre Clacton,5300 - Resaleable Items,09/07/2013,2109503-2,73.5,2100641 - Gymnastic Enterprises Ltd,Gymnastics Badges
Tendring DC,http://statistics.data.gov.uk/id/local-authority-district/22UN,Life Opportunities,8540 - Leisure Centre Clacton,5300 - Resaleable Items,09/07/2013,2109503-3,15.3,2100641 - Gymnastic Enterprises Ltd,Gymnastics Badges
Tendring DC,http://statistics.data.gov.uk/id/local-authority-district/22UN,Life Opportunities,5820 - Harwich Sports Centre,5300 - Resaleable Items,16/07/2013,2109783-1,64,2100641 - Gymnastic Enterprises Ltd,Trampoline Awards
Tendring DC,http://statistics.data.gov.uk/id/local-authority-district/22UN,Life Opportunities,"1580 - Benefits, Revenues and Customer Contact SU",4462 - Bailiffs and Tracing Agent Fees re debt recovery,02/07/2013,1053360-1,138,2113197 - Hambury Tilmond Ltd,VAT ON FEES COLLECTED
Tendring DC,http://statistics.data.gov.uk/id/local-authority-district/22UN,Life Opportunities,"1580 - Benefits, Revenues and Customer Contact SU",4462 - Bailiffs and Tracing Agent Fees re debt recovery,02/07/2013,1053360-2,-138,2113197 - Hambury Tilmond Ltd,VAT ON FEES COLLECTED
Tendring DC,http://statistics.data.gov.uk/id/local-authority-district/22UN,Life Opportunities,"1580 - Benefits, Revenues and Customer Contact SU",4462 - Bailiffs and Tracing Agent Fees re debt recovery,30/07/2013,1053874-1,370,2113197 - Hambury Tilmond Ltd,BAILIFF FEES 16/7/13
Tendring DC,http://statistics.data.gov.uk/id/local-authority-district/22UN,Life Opportunities,"1580 - Benefits, Revenues and Customer Contact SU",4462 - Bailiffs and Tracing Agent Fees re debt recovery,30/07/2013,1053874-2,-370,2113197 - Hambury Tilmond Ltd,BAILIFF FEES 16/7/13
Tendring DC,http://statistics.data.gov.uk/id/local-authority-district/22UN,Life Opportunities,H860 - Disabled Adaptations,C200 - Main Contractor,16/07/2013,2109773-1,5465,REDACTED PERSONAL DATA,REDACTED PERSONAL DATA
Tendring DC,http://statistics.data.gov.uk/id/local-authority-district/22UN,Life Opportunities,H860 - Disabled Adaptations,C200 - Main Contractor,16/07/2013,2109776-1,4970,REDACTED PERSONAL DATA,REDACTED PERSONAL DATA
Tendring DC,http://statistics.data.gov.uk/id/local-authority-district/22UN,Life Opportunities,5140 - Homelessness,4683 - Other Homelessness Expenses,16/07/2013,2109697-1,550,REDACTED PERSONAL DATA,REDACTED PERSONAL DATA
Tendring DC,http://statistics.data.gov.uk/id/local-authority-district/22UN,Life Opportunities,5240 - HRA - Managing Tenancies,5242 - Tenant Relations,16/07/2013,2109772-1,22,REDACTED PERSONAL DATA,REDACTED PERSONAL DATA
Tendring DC,http://statistics.data.gov.uk/id/local-authority-district/22UN,Life Opportunities,5240 - HRA - Managing Tenancies,5242 - Tenant Relations,16/07/2013,2109790-1,55,REDACTED COMMERCIAL CONFIDENTIALITY,REDACTED COMMERCIAL CONFIDENTIALITY
Tendring DC,http://statistics.data.gov.uk/id/local-authority-district/22UN,Life Opportunities,5240 - HRA - Managing Tenancies,5242 - Tenant Relations,30/07/2013,7700483-1,44,REDACTED COMMERCIAL CONFIDENTIALITY,REDACTED COMMERCIAL CONFIDENTIALITY
Tendring DC,http://statistics.data.gov.uk/id/local-authority-district/22UN,Life Opportunities,7600 - Tourist Information Centres,9356 - Commission Sales,16/07/2013,2109761-1,1185.48,2103622 - Hedingham & District Omnibuses Ltd,May/June 13 Excursions
Tendring DC,http://statistics.data.gov.uk/id/local-authority-district/22UN,Life Opportunities,1880 - Office Accommodation Expenses,2100 - Building Repairs,09/07/2013,2109534-1,412,2112468 - Henry Ashe Projects Ltd,Henry Ashe
Tendring DC,http://statistics.data.gov.uk/id/local-authority-district/22UN,Life Opportunities,8540 - Leisure Centre Clacton,5160 - Advertising,10/07/2013,1053921-1,52,2111275 - hibu (UK) Ltd,YELL AD JULY
Tendring DC,http://statistics.data.gov.uk/id/local-authority-district/22UN,Life Opportunities,"1580 - Benefits, Revenues and Customer Contact SU",4466 - Land Registry Fees,23/07/2013,1053641-1,279,2112599 - HM Land Registry - NW,OWNERSHIP CHANGE INDICATOR
Tendring DC,http://statistics.data.gov.uk/id/local-authority-district/22UN,Life Opportunities,5260 - HRA - Rent Collection And Accounting,4460 - Legal & Professional Expenses,02/07/2013,1053239-1,110,REDACTED COMMERCIAL CONFIDENTIALITY,REDACTED COMMERCIAL CONFIDENTIALITY
Tendring DC,http://statistics.data.gov.uk/id/local-authority-district/22UN,Life Opportunities,5260 - HRA - Rent Collection And Accounting,4460 - Legal & Professional Expenses,02/07/2013,1053240-1,110,REDACTED COMMERCIAL CONFIDENTIALITY,REDACTED COMMERCIAL CONFIDENTIALITY
Tendring DC,http://statistics.data.gov.uk/id/local-authority-district/22UN,Life Opportunities,8510 - Dovercourt Swimming Pool & All Weather Facilities,2100 - Building Repairs,23/07/2013,1053617-1,52,2111080 - Homecraft Contracts Electrical Ltd,DOVERCOURT POOL
Tendring DC,http://statistics.data.gov.uk/id/local-authority-district/22UN,Life Opportunities,8540 - Leisure Centre Clacton,2100 - Building Repairs,09/07/2013,2109505-1,85,2111080 - Homecraft Contracts Electrical Ltd,Refit Hairdryer
Tendring DC,http://statistics.data.gov.uk/id/local-authority-district/22UN,Life Opportunities,8510 - Dovercourt Swimming Pool & All Weather Facilities,2100 - Building Repairs,23/07/2013,1053616-1,54,2101848 - Homecraft Contracts Ltd,DOVERCOURT POOL
Tendring DC,http://statistics.data.gov.uk/id/local-authority-district/22UN,Life Opportunities,H920 - DFGs,C400 - Grant payments,30/07/2013,1053725-1,6446.24,REDACTED PERSONAL DATA,REDACTED PERSONAL DATA
Tendring DC,http://statistics.data.gov.uk/id/local-authority-district/22UN,Life Opportunities,H920 - DFGs,C400 - Grant payments,30/07/2013,1053726-1,2120,REDACTED PERSONAL DATA,REDACTED PERSONAL DATA
Tendring DC,http://statistics.data.gov.uk/id/local-authority-district/22UN,Life Opportunities,8510 - Dovercourt Swimming Pool & All Weather Facilities,2100 - Building Repairs,30/07/2013,1053829-1,270,2101848 - Homecraft Contracts Ltd,DOVERCOURT POOL
Tendring DC,http://statistics.data.gov.uk/id/local-authority-district/22UN,Life Opportunities,"1580 - Benefits, Revenues and Customer Contact SU",1700 - Training - Courses,09/07/2013,1053449-1,199,REDACTED COMMERCIAL CONFIDENTIALITY,REDACTED COMMERCIAL CONFIDENTIALITY
Tendring DC,http://statistics.data.gov.uk/id/local-authority-district/22UN,Life Opportunities,5260 - HRA - Rent Collection And Accounting,4757 - IT External Charges,23/07/2013,1053624-1,33.05,REDACTED COMMERCIAL CONFIDENTIALITY,REDACTED COMMERCIAL CONFIDENTIALITY
Tendring DC,http://statistics.data.gov.uk/id/local-authority-district/22UN,Life Opportunities,5860 - Manningtree Sports Centre,4597 - Hired Services - Payments to Contractors,23/07/2013,2110018-1,120,2113090 - HRC All Stars,Zumba Instructor x 6 Hrs
Tendring DC,http://statistics.data.gov.uk/id/local-authority-district/22UN,Life Opportunities,5480 - HRA - Repair & Maintenance,2014 - Decoration Allowances,16/07/2013,2109893-1,425.01,REDACTED COMMERCIAL CONFIDENTIALITY,REDACTED COMMERCIAL CONFIDENTIALITY
Tendring DC,http://statistics.data.gov.uk/id/local-authority-district/22UN,Life Opportunities,5880 - Management Of Sport & Leisure Facilities,4597 - Hired Services - Payments to Contractors,16/07/2013,2109894-1,4900,REDACTED COMMERCIAL CONFIDENTIALITY,REDACTED COMMERCIAL CONFIDENTIALITY
Tendring DC,http://statistics.data.gov.uk/id/local-authority-district/22UN,Life Opportunities,H720 - Environmental Improvements,C200 - Main Contractor,16/07/2013,2109895-1,1657.11,REDACTED PERSONAL DATA,REDACTED PERSONAL DATA
Tendring DC,http://statistics.data.gov.uk/id/local-authority-district/22UN,Life Opportunities,5820 - Harwich Sports Centre,4400 - Maintenance Under Service Agreements,30/07/2013,1053844-1,187.4,2113083 - Initial Facilities - Water Services,WATERSAFE CONTRACT
Tendring DC,http://statistics.data.gov.uk/id/local-authority-district/22UN,Life Opportunities,H710 - Selected Improvements,C200 - Main Contractor,02/07/2013,1053323-1,2248.28,REDACTED PERSONAL DATA,REDACTED PERSONAL DATA
Tendring DC,http://statistics.data.gov.uk/id/local-authority-district/22UN,Life Opportunities,H710 - Selected Improvements,C200 - Main Contractor,16/07/2013,2109803-1,193.76,REDACTED PERSONAL DATA,REDACTED PERSONAL DATA
Tendring DC,http://statistics.data.gov.uk/id/local-authority-district/22UN,Life Opportunities,1880 - Office Accommodation Expenses,4448 - Confidential Waste,23/07/2013,2109999-1,89.3,2110936 - IPPlus (UK) Ltd,Ancora
Tendring DC,http://statistics.data.gov.uk/id/local-authority-district/22UN,Life Opportunities,8520 - Frinton & Walton Swimming Pool,4300 - Printing & Stationery,23/07/2013,1053620-1,63,2100724 - IQL UK Ltd,FRINTON WALTON POOL
Tendring DC,http://statistics.data.gov.uk/id/local-authority-district/22UN,Life Opportunities,8520 - Frinton & Walton Swimming Pool,4300 - Printing & Stationery,09/07/2013,2109561-1,324,REDACTED PERSONAL DATA,REDACTED PERSONAL DATA
Tendring DC,http://statistics.data.gov.uk/id/local-authority-district/22UN,Life Opportunities,6160 - Princes Theatre,4040 - Equipment & Tools,09/07/2013,2109485-1,2.17,REDACTED COMMERCIAL CONFIDENTIALITY,REDACTED COMMERCIAL CONFIDENTIALITY
Tendring DC,http://statistics.data.gov.uk/id/local-authority-district/22UN,Life Opportunities,8540 - Leisure Centre Clacton,4000 - Furniture,02/07/2013,1053334-1,108.74,2100755 - J P Lennard Ltd,TENNIS BALLS
Tendring DC,http://statistics.data.gov.uk/id/local-authority-district/22UN,Life Opportunities,8540 - Leisure Centre Clacton,4000 - Furniture,02/07/2013,1053338-1,88.2,2100755 - J P Lennard Ltd,SPA LOUNGER
Tendring DC,http://statistics.data.gov.uk/id/local-authority-district/22UN,Life Opportunities,8520 - Frinton & Walton Swimming Pool,4200 - Clothing & Uniforms,23/07/2013,1053622-1,114.2,2100755 - J P Lennard Ltd,FRINTON WALTON POOL
Tendring DC,http://statistics.data.gov.uk/id/local-authority-district/22UN,Life Opportunities,8520 - Frinton & Walton Swimming Pool,4000 - Furniture,23/07/2013,1053623-1,41.69,2100755 - J P Lennard Ltd,FRINTON WALTON POOL
Tendring DC,http://statistics.data.gov.uk/id/local-authority-district/22UN,Life Opportunities,8520 - Frinton & Walton Swimming Pool,4000 - Furniture,30/07/2013,1053853-1,39.8,2100755 - J P Lennard Ltd,FRINTON WALTON POOL
Tendring DC,http://statistics.data.gov.uk/id/local-authority-district/22UN,Life Opportunities,5800 - Brightlingsea Sports Centre,4000 - Furniture,09/07/2013,2109482-1,272.3,2100755 - J P Lennard Ltd,J P Lennard
Tendring DC,http://statistics.data.gov.uk/id/local-authority-district/22UN,Life Opportunities,8530 - Brightlingsea Swimming Pool,4000 - Furniture,09/07/2013,2109483-1,62.25,2100755 - J P Lennard Ltd,J P Lennard
Tendring DC,http://statistics.data.gov.uk/id/local-authority-district/22UN,Life Opportunities,8540 - Leisure Centre Clacton,4000 - Furniture,09/07/2013,2109509-1,90.19,2100755 - J P Lennard Ltd,B P Monitor
Tendring DC,http://statistics.data.gov.uk/id/local-authority-district/22UN,Life Opportunities,8520 - Frinton & Walton Swimming Pool,4000 - Furniture,09/07/2013,2109562-1,114,REDACTED PERSONAL DATA,REDACTED PERSONAL DATA
Tendring DC,http://statistics.data.gov.uk/id/local-authority-district/22UN,Life Opportunities,8520 - Frinton & Walton Swimming Pool,4000 - Furniture,09/07/2013,2109563-1,63.8,REDACTED PERSONAL DATA,REDACTED PERSONAL DATA
Tendring DC,http://statistics.data.gov.uk/id/local-authority-district/22UN,Life Opportunities,5800 - Brightlingsea Sports Centre,4000 - Furniture,16/07/2013,2109853-1,103.38,2100755 - J P Lennard Ltd,JP Lennard
Tendring DC,http://statistics.data.gov.uk/id/local-authority-district/22UN,Life Opportunities,8530 - Brightlingsea Swimming Pool,4000 - Furniture,02/07/2013,7700419-1,271.5,2100755 - J P Lennard Ltd,J P LENNARD
Tendring DC,http://statistics.data.gov.uk/id/local-authority-district/22UN,Life Opportunities,8530 - Brightlingsea Swimming Pool,4000 - Furniture,02/07/2013,7700420-1,241.91,2100755 - J P Lennard Ltd,J P LENNARD
Tendring DC,http://statistics.data.gov.uk/id/local-authority-district/22UN,Life Opportunities,8540 - Leisure Centre Clacton,4000 - Furniture,02/07/2013,7700440-1,357.1,2100755 - J P Lennard Ltd,TENNIS POST & HANDLE
Tendring DC,http://statistics.data.gov.uk/id/local-authority-district/22UN,Life Opportunities,8520 - Frinton & Walton Swimming Pool,5300 - Resaleable Items,30/07/2013,7700487-1,62.61,2100755 - J P Lennard Ltd,FRINTON & WALTON POOL
Tendring DC,http://statistics.data.gov.uk/id/local-authority-district/22UN,Life Opportunities,8520 - Frinton & Walton Swimming Pool,5300 - Resaleable Items,30/07/2013,7700487-2,357.95,2100755 - J P Lennard Ltd,FRINTON & WALTON POOL
Tendring DC,http://statistics.data.gov.uk/id/local-authority-district/22UN,Life Opportunities,8540 - Leisure Centre Clacton,4597 - Hired Services - Payments to Contractors,16/07/2013,2109817-1,120,2100785 - J W Goding,Archery Coach June
Tendring DC,http://statistics.data.gov.uk/id/local-authority-district/22UN,Life Opportunities,6160 - Princes Theatre,4622 - Hired Services - Artistes and Production Companies,09/07/2013,2109518-1,3748.45,2105942 - JA Performing Arts,Footworx P348
Tendring DC,http://statistics.data.gov.uk/id/local-authority-district/22UN,Life Opportunities,"1580 - Benefits, Revenues and Customer Contact SU",3311 - Travelling Career Track,02/07/2013,1053318-1,13.5,REDACTED PERSONAL DATA,REDACTED PERSONAL DATA
Tendring DC,http://statistics.data.gov.uk/id/local-authority-district/22UN,Life Opportunities,1240 - Housing Services Service Unit,3302 - Car Allowances - Officers,09/07/2013,1053487-1,34.4,2112601 - Jasmine Colley,BUS FARES
Tendring DC,http://statistics.data.gov.uk/id/local-authority-district/22UN,Life Opportunities,8520 - Frinton & Walton Swimming Pool,5311 - General Provisions - Vending,30/07/2013,1053788-1,91.6,2109088 - JC Vending Services,FRINTON WALTON POOL
Tendring DC,http://statistics.data.gov.uk/id/local-authority-district/22UN,Life Opportunities,8510 - Dovercourt Swimming Pool & All Weather Facilities,5311 - General Provisions - Vending,30/07/2013,1053857-1,46,2109088 - JC Vending Services,DOVERCOURT POOL
Tendring DC,http://statistics.data.gov.uk/id/local-authority-district/22UN,Life Opportunities,8540 - Leisure Centre Clacton,9277 - Lifestyles Plus - Annual,09/07/2013,1053398-1,172.8,REDACTED PERSONAL DATA,REDACTED PERSONAL DATA
Tendring DC,http://statistics.data.gov.uk/id/local-authority-district/22UN,Life Opportunities,5480 - HRA - Repair & Maintenance,2018 - Other Responsive Repairs,23/07/2013,2110084-1,1200,REDACTED PERSONAL DATA,REDACTED PERSONAL DATA
Tendring DC,http://statistics.data.gov.uk/id/local-authority-district/22UN,Life Opportunities,8540 - Leisure Centre Clacton,9275 - Lifestyles Plus - DD,30/07/2013,1053890-1,14.33,REDACTED PERSONAL DATA,REDACTED PERSONAL DATA
Tendring DC,http://statistics.data.gov.uk/id/local-authority-district/22UN,Life Opportunities,5240 - HRA - Managing Tenancies,5242 - Tenant Relations,09/07/2013,1053388-1,10,REDACTED PERSONAL DATA,REDACTED PERSONAL DATA
Tendring DC,http://statistics.data.gov.uk/id/local-authority-district/22UN,Life Opportunities,5240 - HRA - Managing Tenancies,5242 - Tenant Relations,02/07/2013,1053306-1,10,REDACTED PERSONAL DATA,REDACTED PERSONAL DATA
Tendring DC,http://statistics.data.gov.uk/id/local-authority-district/22UN,Life Opportunities,5240 - HRA - Managing Tenancies,5242 - Tenant Relations,02/07/2013,1053266-1,35,REDACTED PERSONAL DATA,REDACTED PERSONAL DATA
Tendring DC,http://statistics.data.gov.uk/id/local-authority-district/22UN,Life Opportunities,5480 - HRA - Repair & Maintenance,2064 - Domestic Appliance Repairs,02/07/2013,1053262-1,55,REDACTED PERSONAL DATA,REDACTED PERSONAL DATA
Tendring DC,http://statistics.data.gov.uk/id/local-authority-district/22UN,Life Opportunities,5480 - HRA - Repair & Maintenance,2064 - Domestic Appliance Repairs,02/07/2013,1053263-1,250,REDACTED PERSONAL DATA,REDACTED PERSONAL DATA
Tendring DC,http://statistics.data.gov.uk/id/local-authority-district/22UN,Life Opportunities,5480 - HRA - Repair & Maintenance,2064 - Domestic Appliance Repairs,23/07/2013,2110082-1,95,REDACTED PERSONAL DATA,REDACTED PERSONAL DATA
Tendring DC,http://statistics.data.gov.uk/id/local-authority-district/22UN,Life Opportunities,5480 - HRA - Repair & Maintenance,2064 - Domestic Appliance Repairs,23/07/2013,2110083-1,155,REDACTED PERSONAL DATA,REDACTED PERSONAL DATA
Tendring DC,http://statistics.data.gov.uk/id/local-authority-district/22UN,Life Opportunities,1880 - Office Accommodation Expenses,2100 - Building Repairs,16/07/2013,2109687-1,120,2111266 - JW Plumbing and Heating,JW Plumbing
Tendring DC,http://statistics.data.gov.uk/id/local-authority-district/22UN,Life Opportunities,1880 - Office Accommodation Expenses,2100 - Building Repairs,16/07/2013,2109688-1,190,2111266 - JW Plumbing and Heating,JW Plumbing
Tendring DC,http://statistics.data.gov.uk/id/local-authority-district/22UN,Life Opportunities,1880 - Office Accommodation Expenses,2100 - Building Repairs,23/07/2013,1053527-1,83.33,2100758 - K A Hockley Ltd,KA HOCKLEY
Tendring DC,http://statistics.data.gov.uk/id/local-authority-district/22UN,Life Opportunities,1880 - Office Accommodation Expenses,2100 - Building Repairs,16/07/2013,2109686-1,195.83,2100758 - K A Hockley Ltd,K A Hockley & Sons
Tendring DC,http://statistics.data.gov.uk/id/local-authority-district/22UN,Life Opportunities,1565 - Careline / CCTV Service Unit,3302 - Car Allowances - Officers,16/07/2013,2109705-1,7.2,REDACTED PERSONAL DATA,REDACTED PERSONAL DATA
Tendring DC,http://statistics.data.gov.uk/id/local-authority-district/22UN,Life Opportunities,1860 - Depots General,2100 - Building Repairs,23/07/2013,2109995-1,375,2100016 - Kemp Rust Consulting Ltd,Kemp Rust Consulting Ltd
Tendring DC,http://statistics.data.gov.uk/id/local-authority-district/22UN,Life Opportunities,5860 - Manningtree Sports Centre,4040 - Equipment & Tools,02/07/2013,1053231-1,-25.15,2100870 - Kingswood Leisure Services Ltd,CREDIT 2 FOOTBALLS
Tendring DC,http://statistics.data.gov.uk/id/local-authority-district/22UN,Life Opportunities,5820 - Harwich Sports Centre,5300 - Resaleable Items,23/07/2013,1053628-1,46.25,2100870 - Kingswood Leisure Services Ltd,RESALE STOCK
Tendring DC,http://statistics.data.gov.uk/id/local-authority-district/22UN,Life Opportunities,5860 - Manningtree Sports Centre,4040 - Equipment & Tools,02/07/2013,7700405-1,69.55,2100870 - Kingswood Leisure Services Ltd,6 X INDOOR FOOTBALLS
Tendring DC,http://statistics.data.gov.uk/id/local-authority-district/22UN,Life Opportunities,5360 - HRA - Sheltered Units,4601 - Hired services - Cleaning,16/07/2013,2109789-1,204,REDACTED COMMERCIAL CONFIDENTIALITY,REDACTED COMMERCIAL CONFIDENTIALITY
Tendring DC,http://statistics.data.gov.uk/id/local-authority-district/22UN,Life Opportunities,5360 - HRA - Sheltered Units,4601 - Hired services - Cleaning,16/07/2013,2109791-1,289,REDACTED PERSONAL DATA,REDACTED PERSONAL DATA
Tendring DC,http://statistics.data.gov.uk/id/local-authority-district/22UN,Life Opportunities,5360 - HRA - Sheltered Units,4601 - Hired services - Cleaning,16/07/2013,2109792-1,588.88,REDACTED PERSONAL DATA,REDACTED PERSONAL DATA
Tendring DC,http://statistics.data.gov.uk/id/local-authority-district/22UN,Life Opportunities,8540 - Leisure Centre Clacton,4597 - Hired Services - Payments to Contractors,16/07/2013,2109826-1,262.5,2100851 - KO-SHEEN Contract Cleaning Ltd,Cleaning June
Tendring DC,http://statistics.data.gov.uk/id/local-authority-district/22UN,Life Opportunities,5860 - Manningtree Sports Centre,4601 - Hired services - Cleaning,23/07/2013,2110020-1,255,2100851 - KO-SHEEN Contract Cleaning Ltd,Contract Cleaning June 13
Tendring DC,http://statistics.data.gov.uk/id/local-authority-district/22UN,Life Opportunities,H800 - Structural Repairs,C200 - Main Contractor,02/07/2013,1053299-1,2940,REDACTED PERSONAL DATA,REDACTED PERSONAL DATA
Tendring DC,http://statistics.data.gov.uk/id/local-authority-district/22UN,Life Opportunities,5800 - Brightlingsea Sports Centre,4000 - Furniture,23/07/2013,1053630-1,430.4,2111918 - LeisureTek Fitness Ltd,LEISURE TEK FITNESS LTD
Tendring DC,http://statistics.data.gov.uk/id/local-authority-district/22UN,Life Opportunities,"1580 - Benefits, Revenues and Customer Contact SU",4355 - Books & Periodicals,02/07/2013,1053341-1,863,2100874 - Lexis Nexis UK,Ryde rating annual sub
Tendring DC,http://statistics.data.gov.uk/id/local-authority-district/22UN,Life Opportunities,"1580 - Benefits, Revenues and Customer Contact SU",1350 - Agency Staff,23/07/2013,2110059-1,367.1,2108077 - Liberata Financial Services Ltd,June 13 Submissions
Tendring DC,http://statistics.data.gov.uk/id/local-authority-district/22UN,Life Opportunities,"1580 - Benefits, Revenues and Customer Contact SU",1350 - Agency Staff,09/07/2013,2109565-1,233.29,2100894 - Liberata UK Ltd,Submissions/Reconsiderations
Tendring DC,http://statistics.data.gov.uk/id/local-authority-district/22UN,Life Opportunities,5800 - Brightlingsea Sports Centre,4080 - Materials & Consumables,23/07/2013,1053676-1,122.2,2103500 - Liquidline,LIQUIDLINE
Tendring DC,http://statistics.data.gov.uk/id/local-authority-district/22UN,Life Opportunities,7560 - Tourism Publications,4307 - Attractions Leaflet Printing,09/07/2013,2109513-1,1395,REDACTED COMMERCIAL CONFIDENTIALITY,REDACTED COMMERCIAL CONFIDENTIALITY
Tendring DC,http://statistics.data.gov.uk/id/local-authority-district/22UN,Life Opportunities,8540 - Leisure Centre Clacton,5160 - Advertising,16/07/2013,2109823-1,298,2107277 - Look 5 Ltd,2 x FPC Look 5 & 6
Tendring DC,http://statistics.data.gov.uk/id/local-authority-district/22UN,Life Opportunities,7620 - Air Show,5160 - Advertising,23/07/2013,2110072-1,232.5,REDACTED COMMERCIAL CONFIDENTIALITY,REDACTED COMMERCIAL CONFIDENTIALITY
Tendring DC,http://statistics.data.gov.uk/id/local-authority-district/22UN,Life Opportunities,6740 - Careline,3300 - Public Transport - Officers,02/07/2013,1053316-1,32.5,REDACTED PERSONAL DATA,REDACTED PERSONAL DATA
Tendring DC,http://statistics.data.gov.uk/id/local-authority-district/22UN,Life Opportunities,6740 - Careline,3300 - Public Transport - Officers,02/07/2013,1053317-1,37.5,REDACTED PERSONAL DATA,REDACTED PERSONAL DATA
Tendring DC,http://statistics.data.gov.uk/id/local-authority-district/22UN,Life Opportunities,6160 - Princes Theatre,4080 - Materials & Consumables,02/07/2013,7700423-1,22.64,2105052 - Maddisons,COFFEE AND PAPER TOWELS
Tendring DC,http://statistics.data.gov.uk/id/local-authority-district/22UN,Life Opportunities,6160 - Princes Theatre,4080 - Materials & Consumables,02/07/2013,7700423-2,32.49,2105052 - Maddisons,COFFEE AND PAPER TOWELS
Tendring DC,http://statistics.data.gov.uk/id/local-authority-district/22UN,Life Opportunities,6740 - Careline,5160 - Advertising,23/07/2013,2109982-1,295,2103382 - Majestic Publications Ltd,Majestic - Hospice Diaries
Tendring DC,http://statistics.data.gov.uk/id/local-authority-district/22UN,Life Opportunities,5240 - HRA - Managing Tenancies,5242 - Tenant Relations,16/07/2013,2109892-1,78,REDACTED COMMERCIAL CONFIDENTIALITY,REDACTED COMMERCIAL CONFIDENTIALITY
Tendring DC,http://statistics.data.gov.uk/id/local-authority-district/22UN,Life Opportunities,5240 - HRA - Managing Tenancies,5242 - Tenant Relations,02/07/2013,7700457-1,78,2113137 - Manningtree Taxis,MANNINGTREE TAXIS 28/5/13
Tendring DC,http://statistics.data.gov.uk/id/local-authority-district/22UN,Life Opportunities,5240 - HRA - Managing Tenancies,5248 - Estate Management Expenses,09/07/2013,2109547-1,84,REDACTED COMMERCIAL CONFIDENTIALITY,REDACTED COMMERCIAL CONFIDENTIALITY
Tendring DC,http://statistics.data.gov.uk/id/local-authority-district/22UN,Life Opportunities,H815 - Re-roofing,C200 - Main Contractor,30/07/2013,1053740-1,819,REDACTED PERSONAL DATA,REDACTED PERSONAL DATA
Tendring DC,http://statistics.data.gov.uk/id/local-authority-district/22UN,Life Opportunities,H815 - Re-roofing,C200 - Main Contractor,30/07/2013,1053741-1,257,REDACTED PERSONAL DATA,REDACTED PERSONAL DATA
Tendring DC,http://statistics.data.gov.uk/id/local-authority-district/22UN,Life Opportunities,8540 - Leisure Centre Clacton,2100 - Building Repairs,09/07/2013,2109506-1,295.1,2111673 - Maplin Mechanical Services Ltd,Faulty Compressor
Tendring DC,http://statistics.data.gov.uk/id/local-authority-district/22UN,Life Opportunities,8540 - Leisure Centre Clacton,2100 - Building Repairs,16/07/2013,2109816-1,3091.66,2111673 - Maplin Mechanical Services Ltd,Compressor
Tendring DC,http://statistics.data.gov.uk/id/local-authority-district/22UN,Life Opportunities,5140 - Homelessness,4680 - Bed & Breakfast Accommodation,09/07/2013,1053427-1,420,REDACTED PERSONAL DATA,REDACTED PERSONAL DATA
Tendring DC,http://statistics.data.gov.uk/id/local-authority-district/22UN,Life Opportunities,5140 - Homelessness,9032 - Homelessness Accommodation Charges,09/07/2013,1053427-2,-16.45,REDACTED PERSONAL DATA,REDACTED PERSONAL DATA
Tendring DC,http://statistics.data.gov.uk/id/local-authority-district/22UN,Life Opportunities,5140 - Homelessness,4680 - Bed & Breakfast Accommodation,09/07/2013,1053428-1,180,REDACTED PERSONAL DATA,REDACTED PERSONAL DATA
Tendring DC,http://statistics.data.gov.uk/id/local-authority-district/22UN,Life Opportunities,5140 - Homelessness,9032 - Homelessness Accommodation Charges,09/07/2013,1053428-2,-7.05,REDACTED PERSONAL DATA,REDACTED PERSONAL DATA
Tendring DC,http://statistics.data.gov.uk/id/local-authority-district/22UN,Life Opportunities,5140 - Homelessness,4680 - Bed & Breakfast Accommodation,16/07/2013,2109645-1,400,REDACTED PERSONAL DATA,REDACTED PERSONAL DATA
Tendring DC,http://statistics.data.gov.uk/id/local-authority-district/22UN,Life Opportunities,5140 - Homelessness,9032 - Homelessness Accommodation Charges,16/07/2013,2109645-2,-11.75,REDACTED PERSONAL DATA,REDACTED PERSONAL DATA
Tendring DC,http://statistics.data.gov.uk/id/local-authority-district/22UN,Life Opportunities,5140 - Homelessness,4680 - Bed & Breakfast Accommodation,16/07/2013,2109648-1,140,REDACTED PERSONAL DATA,REDACTED PERSONAL DATA
Tendring DC,http://statistics.data.gov.uk/id/local-authority-district/22UN,Life Opportunities,5140 - Homelessness,9032 - Homelessness Accommodation Charges,16/07/2013,2109648-2,-16.45,REDACTED PERSONAL DATA,REDACTED PERSONAL DATA
Tendring DC,http://statistics.data.gov.uk/id/local-authority-district/22UN,Life Opportunities,5140 - Homelessness,4680 - Bed & Breakfast Accommodation,16/07/2013,2109650-1,60,REDACTED PERSONAL DATA,REDACTED PERSONAL DATA
Tendring DC,http://statistics.data.gov.uk/id/local-authority-district/22UN,Life Opportunities,5140 - Homelessness,9032 - Homelessness Accommodation Charges,16/07/2013,2109650-2,-2.35,REDACTED PERSONAL DATA,REDACTED PERSONAL DATA
Tendring DC,http://statistics.data.gov.uk/id/local-authority-district/22UN,Life Opportunities,5140 - Homelessness,4680 - Bed & Breakfast Accommodation,16/07/2013,2109651-1,60,REDACTED PERSONAL DATA,REDACTED PERSONAL DATA
Tendring DC,http://statistics.data.gov.uk/id/local-authority-district/22UN,Life Opportunities,5140 - Homelessness,9032 - Homelessness Accommodation Charges,16/07/2013,2109651-2,-2.35,REDACTED PERSONAL DATA,REDACTED PERSONAL DATA
Tendring DC,http://statistics.data.gov.uk/id/local-authority-district/22UN,Life Opportunities,5140 - Homelessness,4680 - Bed & Breakfast Accommodation,16/07/2013,2109652-1,80,REDACTED PERSONAL DATA,REDACTED PERSONAL DATA
Tendring DC,http://statistics.data.gov.uk/id/local-authority-district/22UN,Life Opportunities,5140 - Homelessness,9032 - Homelessness Accommodation Charges,16/07/2013,2109652-2,-9.4,REDACTED PERSONAL DATA,REDACTED PERSONAL DATA
Tendring DC,http://statistics.data.gov.uk/id/local-authority-district/22UN,Life Opportunities,5480 - HRA - Repair & Maintenance,2088 - Disabled Adaptations,09/07/2013,1053408-1,200,REDACTED PERSONAL DATA,REDACTED PERSONAL DATA
Tendring DC,http://statistics.data.gov.uk/id/local-authority-district/22UN,Life Opportunities,5480 - HRA - Repair & Maintenance,2088 - Disabled Adaptations,09/07/2013,1053408-2,135,REDACTED PERSONAL DATA,REDACTED PERSONAL DATA
Tendring DC,http://statistics.data.gov.uk/id/local-authority-district/22UN,Life Opportunities,H860 - Disabled Adaptations,C200 - Main Contractor,23/07/2013,1053522-1,1940,REDACTED PERSONAL DATA,REDACTED PERSONAL DATA
Tendring DC,http://statistics.data.gov.uk/id/local-authority-district/22UN,Life Opportunities,H860 - Disabled Adaptations,C200 - Main Contractor,23/07/2013,1053522-2,844,REDACTED PERSONAL DATA,REDACTED PERSONAL DATA
Tendring DC,http://statistics.data.gov.uk/id/local-authority-district/22UN,Life Opportunities,5480 - HRA - Repair & Maintenance,2088 - Disabled Adaptations,16/07/2013,2109683-1,245,REDACTED PERSONAL DATA,REDACTED PERSONAL DATA
Tendring DC,http://statistics.data.gov.uk/id/local-authority-district/22UN,Life Opportunities,5480 - HRA - Repair & Maintenance,2088 - Disabled Adaptations,16/07/2013,2109683-2,180,REDACTED PERSONAL DATA,REDACTED PERSONAL DATA
Tendring DC,http://statistics.data.gov.uk/id/local-authority-district/22UN,Life Opportunities,6160 - Princes Theatre,4622 - Hired Services - Artistes and Production Companies,02/07/2013,2109474-1,3375,REDACTED PERSONAL DATA,REDACTED PERSONAL DATA
Tendring DC,http://statistics.data.gov.uk/id/local-authority-district/22UN,Life Opportunities,5480 - HRA - Repair & Maintenance,8136 - Housing Repairs Costs Recovered from Tenants,16/07/2013,2109832-1,10.36,REDACTED PERSONAL DATA,REDACTED PERSONAL DATA
Tendring DC,http://statistics.data.gov.uk/id/local-authority-district/22UN,Life Opportunities,1090 - Chief Executive and Support Service Unit,4355 - Books & Periodicals,09/07/2013,1053437-1,31.4,2112734 - Matt's Carousel,MATTS CAROUSEL JUNE 13
Tendring DC,http://statistics.data.gov.uk/id/local-authority-district/22UN,Life Opportunities,1100 - Head of Corporate Services and Admin Service Unit,4355 - Books & Periodicals,09/07/2013,1053437-2,43.3,2112734 - Matt's Carousel,MATTS CAROUSEL JUNE 13
Tendring DC,http://statistics.data.gov.uk/id/local-authority-district/22UN,Life Opportunities,1040 - Regeneration Service Unit,4355 - Books & Periodicals,09/07/2013,1053437-3,18.4,2112734 - Matt's Carousel,MATTS CAROUSEL JUNE 13
Tendring DC,http://statistics.data.gov.uk/id/local-authority-district/22UN,Life Opportunities,"1580 - Benefits, Revenues and Customer Contact SU",4355 - Books & Periodicals,09/07/2013,1053437-4,18.4,2112734 - Matt's Carousel,MATTS CAROUSEL JUNE 13
Tendring DC,http://statistics.data.gov.uk/id/local-authority-district/22UN,Life Opportunities,7040 - Civic Ceremonial Expenses,4080 - Materials & Consumables,09/07/2013,1053437-5,3.2,2112734 - Matt's Carousel,MATTS CAROUSEL JUNE 13
Tendring DC,http://statistics.data.gov.uk/id/local-authority-district/22UN,Life Opportunities,1090 - Chief Executive and Support Service Unit,4355 - Books & Periodicals,09/07/2013,1053437-6,32,2112734 - Matt's Carousel,MATTS CAROUSEL JUNE 13
Tendring DC,http://statistics.data.gov.uk/id/local-authority-district/22UN,Life Opportunities,8540 - Leisure Centre Clacton,2100 - Building Repairs,30/07/2013,1053838-1,133.2,REDACTED COMMERCIAL CONFIDENTIALITY,REDACTED COMMERCIAL CONFIDENTIALITY
Tendring DC,http://statistics.data.gov.uk/id/local-authority-district/22UN,Life Opportunities,8510 - Dovercourt Swimming Pool & All Weather Facilities,4000 - Furniture,30/07/2013,1053839-1,79.25,REDACTED COMMERCIAL CONFIDENTIALITY,REDACTED COMMERCIAL CONFIDENTIALITY
Tendring DC,http://statistics.data.gov.uk/id/local-authority-district/22UN,Life Opportunities,6160 - Princes Theatre,4040 - Equipment & Tools,02/07/2013,7700447-1,23.4,2101791 - Medlock Electrical,MEDLOCK
Tendring DC,http://statistics.data.gov.uk/id/local-authority-district/22UN,Life Opportunities,5140 - Homelessness,4683 - Other Homelessness Expenses,23/07/2013,1053557-1,435,REDACTED PERSONAL DATA,REDACTED PERSONAL DATA
Tendring DC,http://statistics.data.gov.uk/id/local-authority-district/22UN,Life Opportunities,5140 - Homelessness,4683 - Other Homelessness Expenses,16/07/2013,2109698-1,475,REDACTED PERSONAL DATA,REDACTED PERSONAL DATA
Tendring DC,http://statistics.data.gov.uk/id/local-authority-district/22UN,Life Opportunities,5860 - Manningtree Sports Centre,1700 - Training - Courses,16/07/2013,2109858-1,240,2112603 - Mile End Climbing Wall,Training for Climbing Wall
Tendring DC,http://statistics.data.gov.uk/id/local-authority-district/22UN,Life Opportunities,7620 - Air Show,5160 - Advertising,16/07/2013,2109782-1,150,REDACTED COMMERCIAL CONFIDENTIALITY,REDACTED COMMERCIAL CONFIDENTIALITY
Tendring DC,http://statistics.data.gov.uk/id/local-authority-district/22UN,Life Opportunities,9920 - HRA Balance Sheet,B860 - Housing Rents - Cash,23/07/2013,1053563-1,2286.9,REDACTED PERSONAL DATA,REDACTED PERSONAL DATA
Tendring DC,http://statistics.data.gov.uk/id/local-authority-district/22UN,Life Opportunities,9920 - HRA Balance Sheet,B860 - Housing Rents - Cash,16/07/2013,1053510-1,593.21,REDACTED PERSONAL DATA,REDACTED PERSONAL DATA
Tendring DC,http://statistics.data.gov.uk/id/local-authority-district/22UN,Life Opportunities,5480 - HRA - Repair & Maintenance,2071 - Electric Installation Testing,16/07/2013,1053503-1,707.14,2100953 - Mitie Property Services (UK) Limited,TEST & UPGRADE PROPERTIES
Tendring DC,http://statistics.data.gov.uk/id/local-authority-district/22UN,Life Opportunities,5480 - HRA - Repair & Maintenance,2072 - Planned Partial Refurbishment To Electrical Instal,16/07/2013,1053503-2,1864.06,2100953 - Mitie Property Services (UK) Limited,TEST & UPGRADE PROPERTIES
Tendring DC,http://statistics.data.gov.uk/id/local-authority-district/22UN,Life Opportunities,H810 - Electrical Re-wiring,C200 - Main Contractor,16/07/2013,1053503-3,2730,2100953 - Mitie Property Services (UK) Limited,TEST & UPGRADE PROPERTIES
Tendring DC,http://statistics.data.gov.uk/id/local-authority-district/22UN,Life Opportunities,8540 - Leisure Centre Clacton,4400 - Maintenance Under Service Agreements,02/07/2013,1053272-1,62.2,2104791 - Mobile Mini Uk Ltd,CONTAINER 5/6/13-2/7/13
Tendring DC,http://statistics.data.gov.uk/id/local-authority-district/22UN,Life Opportunities,5480 - HRA - Repair & Maintenance,2073 - Smoke Alarm Service/Testing,30/07/2013,1053900-1,3300.48,2111370 - Morrison Facilities Services,GAS SERVICE & REPAIR-SOUTH AREA 13/14
Tendring DC,http://statistics.data.gov.uk/id/local-authority-district/22UN,Life Opportunities,5480 - HRA - Repair & Maintenance,2075 - Gas Service Contract Servicing/Testing (Domestic I,30/07/2013,1053900-2,8269.12,2111370 - Morrison Facilities Services,GAS SERVICE & REPAIR-SOUTH AREA 13/14
Tendring DC,http://statistics.data.gov.uk/id/local-authority-district/22UN,Life Opportunities,5480 - HRA - Repair & Maintenance,2076 - Gas Service Contract Other Refurbishment/Repairs (,30/07/2013,1053900-3,3141.87,2111370 - Morrison Facilities Services,GAS SERVICE & REPAIR-SOUTH AREA 13/14
Tendring DC,http://statistics.data.gov.uk/id/local-authority-district/22UN,Life Opportunities,5240 - HRA - Managing Tenancies,5242 - Tenant Relations,09/07/2013,1053390-1,10,REDACTED PERSONAL DATA,REDACTED PERSONAL DATA
Tendring DC,http://statistics.data.gov.uk/id/local-authority-district/22UN,Life Opportunities,H945 - Empty Homes funding,C402 - Grant payments for Empty Homes scheme,09/07/2013,1053395-1,5532.54,REDACTED PERSONAL DATA,REDACTED PERSONAL DATA
Tendring DC,http://statistics.data.gov.uk/id/local-authority-district/22UN,Life Opportunities,9920 - HRA Balance Sheet,B860 - Housing Rents - Cash,02/07/2013,1053243-1,253,REDACTED PERSONAL DATA,REDACTED PERSONAL DATA
Tendring DC,http://statistics.data.gov.uk/id/local-authority-district/22UN,Life Opportunities,9920 - HRA Balance Sheet,B860 - Housing Rents - Cash,09/07/2013,1053489-1,46.14,REDACTED PERSONAL DATA,REDACTED PERSONAL DATA
Tendring DC,http://statistics.data.gov.uk/id/local-authority-district/22UN,Life Opportunities,8540 - Leisure Centre Clacton,4597 - Hired Services - Payments to Contractors,02/07/2013,1053336-1,518.04,REDACTED PERSONAL DATA,REDACTED PERSONAL DATA
Tendring DC,http://statistics.data.gov.uk/id/local-authority-district/22UN,Life Opportunities,5240 - HRA - Managing Tenancies,5242 - Tenant Relations,02/07/2013,1053307-1,10,REDACTED PERSONAL DATA,REDACTED PERSONAL DATA
Tendring DC,http://statistics.data.gov.uk/id/local-authority-district/22UN,Life Opportunities,5240 - HRA - Managing Tenancies,5242 - Tenant Relations,02/07/2013,1053237-1,10,REDACTED PERSONAL DATA,REDACTED PERSONAL DATA
Tendring DC,http://statistics.data.gov.uk/id/local-authority-district/22UN,Life Opportunities,9920 - HRA Balance Sheet,B860 - Housing Rents - Cash,09/07/2013,1053488-1,224.6,REDACTED PERSONAL DATA,REDACTED PERSONAL DATA
Tendring DC,http://statistics.data.gov.uk/id/local-authority-district/22UN,Life Opportunities,5240 - HRA - Managing Tenancies,5242 - Tenant Relations,02/07/2013,1053301-1,10,REDACTED PERSONAL DATA,REDACTED PERSONAL DATA
Tendring DC,http://statistics.data.gov.uk/id/local-authority-district/22UN,Life Opportunities,9920 - HRA Balance Sheet,B860 - Housing Rents - Cash,02/07/2013,1053241-1,30.03,REDACTED PERSONAL DATA,REDACTED PERSONAL DATA
Tendring DC,http://statistics.data.gov.uk/id/local-authority-district/22UN,Life Opportunities,9920 - HRA Balance Sheet,B860 - Housing Rents - Cash,30/07/2013,1053892-1,708,REDACTED PERSONAL DATA,REDACTED PERSONAL DATA
Tendring DC,http://statistics.data.gov.uk/id/local-authority-district/22UN,Life Opportunities,5140 - Homelessness,4689 - Special Homelessness Projects Expenses,30/07/2013,7104728-1,870,REDACTED PERSONAL DATA,REDACTED PERSONAL DATA
Tendring DC,http://statistics.data.gov.uk/id/local-authority-district/22UN,Life Opportunities,6740 - Careline,9050 - Careline Income - General,16/07/2013,2109708-1,7.8,REDACTED PERSONAL DATA,REDACTED PERSONAL DATA
Tendring DC,http://statistics.data.gov.uk/id/local-authority-district/22UN,Life Opportunities,5240 - HRA - Managing Tenancies,5242 - Tenant Relations,09/07/2013,1053384-1,10,REDACTED PERSONAL DATA,REDACTED PERSONAL DATA
Tendring DC,http://statistics.data.gov.uk/id/local-authority-district/22UN,Life Opportunities,5240 - HRA - Managing Tenancies,5242 - Tenant Relations,23/07/2013,1053559-1,10,REDACTED PERSONAL DATA,REDACTED PERSONAL DATA
Tendring DC,http://statistics.data.gov.uk/id/local-authority-district/22UN,Life Opportunities,5240 - HRA - Managing Tenancies,5242 - Tenant Relations,30/07/2013,1053712-1,10,REDACTED PERSONAL DATA,REDACTED PERSONAL DATA
Tendring DC,http://statistics.data.gov.uk/id/local-authority-district/22UN,Life Opportunities,5240 - HRA - Managing Tenancies,5242 - Tenant Relations,16/07/2013,2109835-1,10,REDACTED PERSONAL DATA,REDACTED PERSONAL DATA
Tendring DC,http://statistics.data.gov.uk/id/local-authority-district/22UN,Life Opportunities,5240 - HRA - Managing Tenancies,5242 - Tenant Relations,02/07/2013,1053302-1,10,REDACTED PERSONAL DATA,REDACTED PERSONAL DATA
Tendring DC,http://statistics.data.gov.uk/id/local-authority-district/22UN,Life Opportunities,9920 - HRA Balance Sheet,B860 - Housing Rents - Cash,02/07/2013,1053242-1,118,REDACTED PERSONAL DATA,REDACTED PERSONAL DATA
Tendring DC,http://statistics.data.gov.uk/id/local-authority-district/22UN,Life Opportunities,H810 - Electrical Re-wiring,C200 - Main Contractor,02/07/2013,1053324-1,1300,REDACTED PERSONAL DATA,REDACTED PERSONAL DATA
Tendring DC,http://statistics.data.gov.uk/id/local-authority-district/22UN,Life Opportunities,5240 - HRA - Managing Tenancies,5242 - Tenant Relations,02/07/2013,1053305-1,10,REDACTED PERSONAL DATA,REDACTED PERSONAL DATA
Tendring DC,http://statistics.data.gov.uk/id/local-authority-district/22UN,Life Opportunities,6740 - Careline,9050 - Careline Income - General,16/07/2013,2109707-1,7.8,REDACTED PERSONAL DATA,REDACTED PERSONAL DATA
Tendring DC,http://statistics.data.gov.uk/id/local-authority-district/22UN,Life Opportunities,6740 - Careline,9050 - Careline Income - General,02/07/2013,1053313-1,9.6,REDACTED PERSONAL DATA,REDACTED PERSONAL DATA
Tendring DC,http://statistics.data.gov.uk/id/local-authority-district/22UN,Life Opportunities,6740 - Careline,9050 - Careline Income - General,16/07/2013,2109710-1,10.8,REDACTED PERSONAL DATA,REDACTED PERSONAL DATA
Tendring DC,http://statistics.data.gov.uk/id/local-authority-district/22UN,Life Opportunities,9920 - HRA Balance Sheet,B860 - Housing Rents - Cash,09/07/2013,1053490-1,3.68,REDACTED PERSONAL DATA,REDACTED PERSONAL DATA
Tendring DC,http://statistics.data.gov.uk/id/local-authority-district/22UN,Life Opportunities,6740 - Careline,9050 - Careline Income - General,16/07/2013,2109709-1,10.8,REDACTED PERSONAL DATA,REDACTED PERSONAL DATA
Tendring DC,http://statistics.data.gov.uk/id/local-authority-district/22UN,Life Opportunities,6160 - Princes Theatre,9352 - Opportunity Bookings,02/07/2013,1053234-1,44,REDACTED PERSONAL DATA,REDACTED PERSONAL DATA
Tendring DC,http://statistics.data.gov.uk/id/local-authority-district/22UN,Life Opportunities,5240 - HRA - Managing Tenancies,5242 - Tenant Relations,09/07/2013,1053391-1,10,REDACTED PERSONAL DATA,REDACTED PERSONAL DATA
Tendring DC,http://statistics.data.gov.uk/id/local-authority-district/22UN,Life Opportunities,5820 - Harwich Sports Centre,4597 - Hired Services - Payments to Contractors,16/07/2013,2109801-1,60,REDACTED PERSONAL DATA,REDACTED PERSONAL DATA
Tendring DC,http://statistics.data.gov.uk/id/local-authority-district/22UN,Life Opportunities,1860 - Depots General,2100 - Building Repairs,23/07/2013,2109996-1,240,2100967 - N Rudelhoff,N R Electrical
Tendring DC,http://statistics.data.gov.uk/id/local-authority-district/22UN,Life Opportunities,1880 - Office Accommodation Expenses,2100 - Building Repairs,23/07/2013,2109996-2,172,2100967 - N Rudelhoff,N R Electrical
Tendring DC,http://statistics.data.gov.uk/id/local-authority-district/22UN,Life Opportunities,1880 - Office Accommodation Expenses,2100 - Building Repairs,23/07/2013,2109996-3,32,2100967 - N Rudelhoff,N R Electrical
Tendring DC,http://statistics.data.gov.uk/id/local-authority-district/22UN,Life Opportunities,1880 - Office Accommodation Expenses,2100 - Building Repairs,23/07/2013,2109996-4,83,2100967 - N Rudelhoff,N R Electrical
Tendring DC,http://statistics.data.gov.uk/id/local-authority-district/22UN,Life Opportunities,1880 - Office Accommodation Expenses,2100 - Building Repairs,23/07/2013,2109997-1,48,2100967 - N Rudelhoff,N R Electrical
Tendring DC,http://statistics.data.gov.uk/id/local-authority-district/22UN,Life Opportunities,1860 - Depots General,2100 - Building Repairs,23/07/2013,2109997-2,371,2100967 - N Rudelhoff,N R Electrical
Tendring DC,http://statistics.data.gov.uk/id/local-authority-district/22UN,Life Opportunities,1880 - Office Accommodation Expenses,2100 - Building Repairs,23/07/2013,2109997-3,73,2100967 - N Rudelhoff,N R Electrical
Tendring DC,http://statistics.data.gov.uk/id/local-authority-district/22UN,Life Opportunities,1880 - Office Accommodation Expenses,2100 - Building Repairs,02/07/2013,7700448-1,469,2100967 - N Rudelhoff,N R ELECTRICAL
Tendring DC,http://statistics.data.gov.uk/id/local-authority-district/22UN,Life Opportunities,1880 - Office Accommodation Expenses,2100 - Building Repairs,02/07/2013,7700448-2,36,2100967 - N Rudelhoff,N R ELECTRICAL
Tendring DC,http://statistics.data.gov.uk/id/local-authority-district/22UN,Life Opportunities,1880 - Office Accommodation Expenses,2100 - Building Repairs,02/07/2013,7700449-1,425,2100967 - N Rudelhoff,N R ELECTRICAL
Tendring DC,http://statistics.data.gov.uk/id/local-authority-district/22UN,Life Opportunities,1880 - Office Accommodation Expenses,2100 - Building Repairs,02/07/2013,7700449-2,69,2100967 - N Rudelhoff,N R ELECTRICAL
Tendring DC,http://statistics.data.gov.uk/id/local-authority-district/22UN,Life Opportunities,H705 - Window/Door Replacement,C200 - Main Contractor,02/07/2013,1053332-1,71.44,REDACTED PERSONAL DATA,REDACTED PERSONAL DATA
Tendring DC,http://statistics.data.gov.uk/id/local-authority-district/22UN,Life Opportunities,1240 - Housing Services Service Unit,3302 - Car Allowances - Officers,09/07/2013,1053397-1,12.5,REDACTED PERSONAL DATA,REDACTED PERSONAL DATA
Tendring DC,http://statistics.data.gov.uk/id/local-authority-district/22UN,Life Opportunities,1240 - Housing Services Service Unit,3302 - Car Allowances - Officers,30/07/2013,1053713-1,12.5,REDACTED PERSONAL DATA,REDACTED PERSONAL DATA
Tendring DC,http://statistics.data.gov.uk/id/local-authority-district/22UN,Life Opportunities,1240 - Housing Services Service Unit,3302 - Car Allowances - Officers,16/07/2013,2109834-1,12.5,REDACTED PERSONAL DATA,REDACTED PERSONAL DATA
Tendring DC,http://statistics.data.gov.uk/id/local-authority-district/22UN,Life Opportunities,1240 - Housing Services Service Unit,3302 - Car Allowances - Officers,16/07/2013,2109839-1,7.5,REDACTED PERSONAL DATA,REDACTED PERSONAL DATA
Tendring DC,http://statistics.data.gov.uk/id/local-authority-district/22UN,Life Opportunities,7600 - Tourist Information Centres,9356 - Commission Sales,16/07/2013,2109663-1,1147.14,2110032 - National Express Ltd,June Commission
Tendring DC,http://statistics.data.gov.uk/id/local-authority-district/22UN,Life Opportunities,9900 - General Fund Balance Sheet,B869 - Cashiers Suspense Account,16/07/2013,1053509-1,69,2105467 - NEEB Holdings Ltd,NEEB-REFUND
Tendring DC,http://statistics.data.gov.uk/id/local-authority-district/22UN,Life Opportunities,6160 - Princes Theatre,5160 - Advertising,02/07/2013,2109473-1,227,REDACTED PERSONAL DATA,REDACTED PERSONAL DATA
Tendring DC,http://statistics.data.gov.uk/id/local-authority-district/22UN,Life Opportunities,6160 - Princes Theatre,5160 - Advertising,09/07/2013,2109519-1,53.4,2100989 - Newsquest (London) Ltd,Clacton & Frinton Gazette
Tendring DC,http://statistics.data.gov.uk/id/local-authority-district/22UN,Life Opportunities,6160 - Princes Theatre,5160 - Advertising,09/07/2013,2109520-1,227,2100989 - Newsquest (London) Ltd,Clacton & Frinton Gazette
Tendring DC,http://statistics.data.gov.uk/id/local-authority-district/22UN,Life Opportunities,6160 - Princes Theatre,5160 - Advertising,09/07/2013,2109543-1,550.3,REDACTED COMMERCIAL CONFIDENTIALITY,REDACTED COMMERCIAL CONFIDENTIALITY
Tendring DC,http://statistics.data.gov.uk/id/local-authority-district/22UN,Life Opportunities,6160 - Princes Theatre,5160 - Advertising,09/07/2013,2109544-1,164.5,REDACTED COMMERCIAL CONFIDENTIALITY,REDACTED COMMERCIAL CONFIDENTIALITY
Tendring DC,http://statistics.data.gov.uk/id/local-authority-district/22UN,Life Opportunities,6160 - Princes Theatre,5160 - Advertising,16/07/2013,2109765-1,64,2100989 - Newsquest (London) Ltd,Clacton & Frinton Gazette
Tendring DC,http://statistics.data.gov.uk/id/local-authority-district/22UN,Life Opportunities,6160 - Princes Theatre,5160 - Advertising,16/07/2013,2109766-1,64,2100989 - Newsquest (London) Ltd,Clacton & Frinton Gazette
Tendring DC,http://statistics.data.gov.uk/id/local-authority-district/22UN,Life Opportunities,6160 - Princes Theatre,5160 - Advertising,23/07/2013,2110053-1,60,2100989 - Newsquest (London) Ltd,Evening Gazette 12/07
Tendring DC,http://statistics.data.gov.uk/id/local-authority-district/22UN,Life Opportunities,6160 - Princes Theatre,5160 - Advertising,23/07/2013,2110054-1,40.21,2100989 - Newsquest (London) Ltd,Evening Gazette 10/7
Tendring DC,http://statistics.data.gov.uk/id/local-authority-district/22UN,Life Opportunities,6160 - Princes Theatre,5160 - Advertising,23/07/2013,2110055-1,180,2100989 - Newsquest (London) Ltd,Evening Gazette 12/07
Tendring DC,http://statistics.data.gov.uk/id/local-authority-district/22UN,Life Opportunities,6160 - Princes Theatre,5160 - Advertising,23/07/2013,2110056-1,154.2,2100989 - Newsquest (London) Ltd,Clacton & Frinton Gazette 11/07
Tendring DC,http://statistics.data.gov.uk/id/local-authority-district/22UN,Life Opportunities,6160 - Princes Theatre,5160 - Advertising,30/07/2013,7700497-1,195,2100989 - Newsquest (London) Ltd,EVENING GAZETTE 17/07
Tendring DC,http://statistics.data.gov.uk/id/local-authority-district/22UN,Life Opportunities,6160 - Princes Theatre,5160 - Advertising,30/07/2013,7700498-1,113.4,2100989 - Newsquest (London) Ltd,CLACTON & FRINTON GAZETTE 18/07
Tendring DC,http://statistics.data.gov.uk/id/local-authority-district/22UN,Life Opportunities,5820 - Harwich Sports Centre,4597 - Hired Services - Payments to Contractors,09/07/2013,2109502-1,75,2112824 - Nick Boucher,Pilates Lessons
Tendring DC,http://statistics.data.gov.uk/id/local-authority-district/22UN,Life Opportunities,5860 - Manningtree Sports Centre,4597 - Hired Services - Payments to Contractors,09/07/2013,2109527-1,75,2112824 - Nick Boucher,Pilates Coaching x 3hrs
Tendring DC,http://statistics.data.gov.uk/id/local-authority-district/22UN,Life Opportunities,5820 - Harwich Sports Centre,4597 - Hired Services - Payments to Contractors,16/07/2013,2109874-1,255,2112920 - Nigel Bruce Electrical Services,Notice Board Lighting
Tendring DC,http://statistics.data.gov.uk/id/local-authority-district/22UN,Life Opportunities,5820 - Harwich Sports Centre,4597 - Hired Services - Payments to Contractors,16/07/2013,2109875-1,55.6,2112920 - Nigel Bruce Electrical Services,Faulty PIR Light
Tendring DC,http://statistics.data.gov.uk/id/local-authority-district/22UN,Life Opportunities,8520 - Frinton & Walton Swimming Pool,9252 - Active Option Card,09/07/2013,1053399-1,41.25,REDACTED PERSONAL DATA,REDACTED PERSONAL DATA
Tendring DC,http://statistics.data.gov.uk/id/local-authority-district/22UN,Life Opportunities,5240 - HRA - Managing Tenancies,5242 - Tenant Relations,02/07/2013,1053303-1,10,REDACTED PERSONAL DATA,REDACTED PERSONAL DATA
Tendring DC,http://statistics.data.gov.uk/id/local-authority-district/22UN,Life Opportunities,4960 - Rent Allowances,4753 - Computer - Application Software,09/07/2013,2109556-1,15235,REDACTED PERSONAL DATA,REDACTED PERSONAL DATA
Tendring DC,http://statistics.data.gov.uk/id/local-authority-district/22UN,Life Opportunities,5260 - HRA - Rent Collection And Accounting,4757 - IT External Charges,16/07/2013,2109805-1,22656.69,2101204 - Northgate Information Solutions UK Ltd,Software Support 13/14
Tendring DC,http://statistics.data.gov.uk/id/local-authority-district/22UN,Life Opportunities,5260 - HRA - Rent Collection And Accounting,4757 - IT External Charges,16/07/2013,2109806-1,-965.78,2101204 - Northgate Information Solutions UK Ltd,Audit Comm Interface Credit
Tendring DC,http://statistics.data.gov.uk/id/local-authority-district/22UN,Life Opportunities,5260 - HRA - Rent Collection And Accounting,4757 - IT External Charges,16/07/2013,2109807-1,-521.99,2101204 - Northgate Information Solutions UK Ltd,Internet App Service Credit
Tendring DC,http://statistics.data.gov.uk/id/local-authority-district/22UN,Life Opportunities,"1580 - Benefits, Revenues and Customer Contact SU",4753 - Computer - Application Software,16/07/2013,2109873-1,950,2101204 - Northgate Information Solutions UK Ltd,Module Type 18A(2) Return
Tendring DC,http://statistics.data.gov.uk/id/local-authority-district/22UN,Life Opportunities,5140 - Homelessness,4683 - Other Homelessness Expenses,16/07/2013,2109787-1,25,2107920 - NowMedical,Brian Cavil Medical Advice
Tendring DC,http://statistics.data.gov.uk/id/local-authority-district/22UN,Life Opportunities,5480 - HRA - Repair & Maintenance,2012 - Responsive Maintenance - Clearance And Cleaning,02/07/2013,2109470-1,70,REDACTED PERSONAL DATA,REDACTED PERSONAL DATA
Tendring DC,http://statistics.data.gov.uk/id/local-authority-district/22UN,Life Opportunities,8540 - Leisure Centre Clacton,2904 - Premises Licensing - Other,02/07/2013,1053319-1,75,2104833 - Ofcom,
Tendring DC,http://statistics.data.gov.uk/id/local-authority-district/22UN,Life Opportunities,5140 - Homelessness,4683 - Other Homelessness Expenses,23/07/2013,1053554-1,114.42,REDACTED PERSONAL DATA,REDACTED PERSONAL DATA
Tendring DC,http://statistics.data.gov.uk/id/local-authority-district/22UN,Life Opportunities,5140 - Homelessness,4683 - Other Homelessness Expenses,16/07/2013,2109700-1,246.39,REDACTED PERSONAL DATA,REDACTED PERSONAL DATA
Tendring DC,http://statistics.data.gov.uk/id/local-authority-district/22UN,Life Opportunities,5140 - Homelessness,4683 - Other Homelessness Expenses,16/07/2013,2109701-1,270,REDACTED PERSONAL DATA,REDACTED PERSONAL DATA
Tendring DC,http://statistics.data.gov.uk/id/local-authority-district/22UN,Life Opportunities,5140 - Homelessness,4683 - Other Homelessness Expenses,16/07/2013,2109702-1,107.74,REDACTED PERSONAL DATA,REDACTED PERSONAL DATA
Tendring DC,http://statistics.data.gov.uk/id/local-authority-district/22UN,Life Opportunities,H920 - DFGs,C400 - Grant payments,30/07/2013,1053723-1,4942.46,REDACTED PERSONAL DATA,REDACTED PERSONAL DATA
Tendring DC,http://statistics.data.gov.uk/id/local-authority-district/22UN,Life Opportunities,H920 - DFGs,C400 - Grant payments,30/07/2013,1053724-1,5551.25,REDACTED PERSONAL DATA,REDACTED PERSONAL DATA
Tendring DC,http://statistics.data.gov.uk/id/local-authority-district/22UN,Life Opportunities,5800 - Brightlingsea Sports Centre,5316 - General Provisions,23/07/2013,1053672-1,147.12,2101083 - Osgood Smith,OSGGOD SMITH
Tendring DC,http://statistics.data.gov.uk/id/local-authority-district/22UN,Life Opportunities,5820 - Harwich Sports Centre,5311 - General Provisions - Vending,23/07/2013,1053673-1,72.1,2101083 - Osgood Smith,CANTEEN SUPPLIES
Tendring DC,http://statistics.data.gov.uk/id/local-authority-district/22UN,Life Opportunities,5820 - Harwich Sports Centre,5311 - General Provisions - Vending,30/07/2013,1053701-1,-0.64,2101083 - Osgood Smith,CANTEEN GOODS
Tendring DC,http://statistics.data.gov.uk/id/local-authority-district/22UN,Life Opportunities,8520 - Frinton & Walton Swimming Pool,5311 - General Provisions - Vending,30/07/2013,1053832-1,60.86,2101083 - Osgood Smith,FRINTON WALTON POOL
Tendring DC,http://statistics.data.gov.uk/id/local-authority-district/22UN,Life Opportunities,5860 - Manningtree Sports Centre,5311 - General Provisions - Vending,30/07/2013,1053833-1,9.99,2101083 - Osgood Smith,VENDING SERVICES
Tendring DC,http://statistics.data.gov.uk/id/local-authority-district/22UN,Life Opportunities,5820 - Harwich Sports Centre,5311 - General Provisions - Vending,30/07/2013,1053834-1,77.86,2101083 - Osgood Smith,CANTEEN GOODS
Tendring DC,http://statistics.data.gov.uk/id/local-authority-district/22UN,Life Opportunities,5860 - Manningtree Sports Centre,5311 - General Provisions - Vending,30/07/2013,1053835-1,85.4,2101083 - Osgood Smith,VENDING SUPPLIES
Tendring DC,http://statistics.data.gov.uk/id/local-authority-district/22UN,Life Opportunities,8520 - Frinton & Walton Swimming Pool,5311 - General Provisions - Vending,30/07/2013,1053836-1,19.08,2101083 - Osgood Smith,FRINTON WALTON POOL
Tendring DC,http://statistics.data.gov.uk/id/local-authority-district/22UN,Life Opportunities,8510 - Dovercourt Swimming Pool & All Weather Facilities,5311 - General Provisions - Vending,30/07/2013,1053849-1,334.67,2101083 - Osgood Smith,DOVERCOURT POOL
Tendring DC,http://statistics.data.gov.uk/id/local-authority-district/22UN,Life Opportunities,8510 - Dovercourt Swimming Pool & All Weather Facilities,5311 - General Provisions - Vending,30/07/2013,1053850-1,31.08,2101083 - Osgood Smith,DOVERCOURT POOL
Tendring DC,http://statistics.data.gov.uk/id/local-authority-district/22UN,Life Opportunities,8520 - Frinton & Walton Swimming Pool,5311 - General Provisions - Vending,09/07/2013,2109481-1,117.57,2101083 - Osgood Smith,Frinton & Walton Pool
Tendring DC,http://statistics.data.gov.uk/id/local-authority-district/22UN,Life Opportunities,5820 - Harwich Sports Centre,5311 - General Provisions - Vending,09/07/2013,2109501-1,132.01,2101083 - Osgood Smith,Canteen Goods
Tendring DC,http://statistics.data.gov.uk/id/local-authority-district/22UN,Life Opportunities,5860 - Manningtree Sports Centre,5311 - General Provisions - Vending,09/07/2013,2109526-1,113.53,2101083 - Osgood Smith,Vending Supplier
Tendring DC,http://statistics.data.gov.uk/id/local-authority-district/22UN,Life Opportunities,8520 - Frinton & Walton Swimming Pool,5311 - General Provisions - Vending,16/07/2013,2109812-1,55.2,2101083 - Osgood Smith,Frinton & Walton Pool
Tendring DC,http://statistics.data.gov.uk/id/local-authority-district/22UN,Life Opportunities,8520 - Frinton & Walton Swimming Pool,5311 - General Provisions - Vending,16/07/2013,2109813-1,31.08,2101083 - Osgood Smith,Frinton & Walton Pool
Tendring DC,http://statistics.data.gov.uk/id/local-authority-district/22UN,Life Opportunities,8520 - Frinton & Walton Swimming Pool,5311 - General Provisions - Vending,16/07/2013,2109814-1,30.62,2101083 - Osgood Smith,Frinton & Walton Pool
Tendring DC,http://statistics.data.gov.uk/id/local-authority-district/22UN,Life Opportunities,5820 - Harwich Sports Centre,5311 - General Provisions - Vending,16/07/2013,2109855-1,50.62,2101083 - Osgood Smith,Canteen Goods
Tendring DC,http://statistics.data.gov.uk/id/local-authority-district/22UN,Life Opportunities,5860 - Manningtree Sports Centre,5311 - General Provisions - Vending,16/07/2013,2109859-1,7.81,2101083 - Osgood Smith,Vending Supplies
